{"text_format":"1","workbook":"xlsx","n_sheets":34,"sheets":["Field of Play","Game Info","Settings & Expansion","Angels","Astros","Athletics","BlueJays","Braves","Brewers","Cardinals","Cubs","DBacks","Dodgers","Giants","Indians","Mariners","Marlins","Mets","Nationals","Orioles","Padres","Phillies","Pirates","Rangers","Rays","RedSox","Reds","Rockies","Royals","Tigers","Twins","WhiteSox","Yankees","Production"],"not_rendered":{"charts":2,"images":12,"macros":1,"external_links":1,"defined_names":0,"comments":0,"pivot_tables":0},"unopened":[],"bounds":{"document_bytes":16777216,"sheet_cells":100000,"rows_first":2000,"rows_last":500,"rows_between":2000,"halvings":0,"cell_chars":16384,"cell_head_chars":4096},"cells_cut":0,"cells_raw":0,"read":"whole","date_system":"1900"}

{"sheet":"Field of Play","index":0,"n_rows":32,"n_cols":21,"rows_kept":32,"cut":false,"hidden":false,"merged":[[31,12,31,13],[3,16,3,19],[4,16,4,17],[5,16,5,17],[6,16,6,17],[8,16,8,17],[10,16,11,19],[14,16,14,19],[7,16,7,17]]}
[null,1,2,3,4,5,6,7,8,9,10,11,"R","H","E"]
[{"$f":"'Game Info'!B2","v":"Indians"},null,null,null,null,null,null,null,null,null,null,null,{"$f":"SUM(B2:L2)","v":0},{"$f":"'Game Info'!B7","v":0},{"$f":"'Game Info'!B9","v":0}]
[{"$f":"'Game Info'!B1","v":"BlueJays"},null,null,null,null,null,null,null,null,null,null,null,{"$f":"SUM(B3:L3)","v":0},{"$f":"'Game Info'!B8","v":0},{"$f":"'Game Info'!B10","v":0}]
[null,null,null,null,null,null,null,null,null,null,null,null,null,null,null,null,"THE MATCH UP"]
[null,null,null,null,null,null,null,null,null,null,"Away",1,{"$f":"'Game Info'!O2","v":"CF"},{"$f":"'Game Info'!P2","v":"M Brantley"},{"$f":"IF('Game Info'!Q2=\"\",\"\",'Game Info'!Q2)","v":"*"},null,"Baseline Batting Average:",null,null,{"$f":"'Settings & Expansion'!D1","v":0.26100000000000001}]
[null,null,null,null,null,null,null,null,null,null,{"$f":"A2","v":"Indians"},2,{"$f":"'Game Info'!O3","v":"SS"},{"$f":"'Game Info'!P3","v":"A Cabrera"},{"$f":"IF('Game Info'!Q3=\"\",\"\",'Game Info'!Q3)","v":""},null,{"$f":"'Game Info'!C23&\" Contact Rating:\"","v":"M Brantley Contact Rating:"},null,":",{"$f":"'Game Info'!D23","v":42}]
[null,null,null,null,null,null,null,null,null,null,null,3,{"$f":"'Game Info'!O4","v":"RF"},{"$f":"'Game Info'!P4","v":"S Choo"},{"$f":"IF('Game Info'!Q4=\"\",\"\",'Game Info'!Q4)","v":""},null,{"$f":"'Game Info'!C13&\" Effectiveness:\"","v":"S Marcum Effectiveness:"},null,":",{"$f":"'Game Info'!D13","v":68}]
[null,null,null,null,null,null,null,null,null,null,null,4,{"$f":"'Game Info'!O5","v":"LF"},{"$f":"'Game Info'!P5","v":"S Duncan"},{"$f":"IF('Game Info'!Q5=\"\",\"\",'Game Info'!Q5)","v":""},null,{"$f":"IF(M32=\"Normal Depth\",\"Infield at Normal Depth\",\"Infield In\")","v":"Infield at Normal Depth"},null,":",{"$f":"IF(M32=\"Normal Depth\",0,50)","v":0},{"$f":"IF(OR(T9<0.21,T9>0.35),\"*\",\"\")","v":""}]
[null,null,null,null,null,null,null,null,null,null,null,5,{"$f":"'Game Info'!O6","v":"C"},{"$f":"'Game Info'!P6","v":"C Santana"},{"$f":"IF('Game Info'!Q6=\"\",\"\",'Game Info'!Q6)","v":""},null,"Batter's Adjusted Average:",null,null,{"$f":"(IF(T5*1000+2*(T6-T7)<210,210,IF(T5*1000+2*(T6-T7)>350,IF(T6<101,350,T5*1000+2*(T6-T7)),T5*1000+2*(T6-T7))))/1000+T8/1000","v":0.21}]
[null,null,null,null,null,null,null,null,null,null,null,6,{"$f":"'Game Info'!O7","v":"DH"},{"$f":"'Game Info'!P7","v":"T Hafner"},{"$f":"IF('Game Info'!Q7=\"\",\"\",'Game Info'!Q7)","v":""}]
[null,null,null,null,null,null,null,null,null,null,null,7,{"$f":"'Game Info'!O8","v":"1B"},{"$f":"'Game Info'!P8","v":"M LaPorta"},{"$f":"IF('Game Info'!Q8=\"\",\"\",'Game Info'!Q8)","v":""},null,{"$f":"IF(T9<0.21,\"*minimum batting average of .210\",IF(T9>0.35,\"*maximum batting average of .350 unless the batter is a .350+ hitter\",\"\"))","v":""}]
[null,null,null,null,null,null,null,null,null,null,null,8,{"$f":"'Game Info'!O9","v":"2B"},{"$f":"'Game Info'!P9","v":"L Valbuena"},{"$f":"IF('Game Info'!Q9=\"\",\"\",'Game Info'!Q9)","v":""}]
[null,null,null,null,null,null,null,null,null,null,null,9,{"$f":"'Game Info'!O10","v":"3B"},{"$f":"'Game Info'!P10","v":"J Nix"},{"$f":"IF('Game Info'!Q10=\"\",\"\",'Game Info'!Q10)","v":""}]
[]
[null,null,null,null,null,null,null,null,null,null,null,null,"Pitching",{"$f":"'Game Info'!P12","v":"J Westbrook"},{"$f":"'Game Info'!T12","v":47},null,"ON THE BASES"]
[null,null,null,null,null,null,null,null,null,null,null,null,null,null,null,null,{"$f":"\"First Base: \"&IF('Game Info'!C24=\"\",\"      Empty\",\"      \"&'Game Info'!C24)","v":"First Base:       Empty"},null,{"$f":"IF('Game Info'!C24=\"\",\"\",\"Speed: \"&'Game Info'!F24)","v":""}]
[null,null,null,null,null,null,null,null,null,null,"Home",1,{"$f":"'Game Info'!F2","v":"LF"},{"$f":"'Game Info'!G2","v":"F Lewis"},{"$f":"IF('Game Info'!H2=\"\",\"\",'Game Info'!H2)","v":"*"},null,{"$f":"\"Second Base: \"&IF('Game Info'!C25=\"\",\"Empty\",'Game Info'!C25)","v":"Second Base: Empty"},null,{"$f":"IF('Game Info'!C25=\"\",\"\",\"Speed: \"&'Game Info'!F25)","v":""}]
[null,null,null,null,null,null,null,null,null,null,{"$f":"A3","v":"BlueJays"},2,{"$f":"'Game Info'!F3","v":"SS"},{"$f":"'Game Info'!G3","v":"A Gonzalez"},{"$f":"IF('Game Info'!H3=\"\",\"\",'Game Info'!H3)","v":""},null,{"$f":"\"Third Base:  \"&IF('Game Info'!C26=\"\",\"    Empty\",\"    \"&'Game Info'!C26)","v":"Third Base:      Empty"},null,{"$f":"IF('Game Info'!C26=\"\",\"\",\"Speed: \"&'Game Info'!F26)","v":""}]
[null,null,null,null,null,null,null,null,null,null,null,3,{"$f":"'Game Info'!F4","v":"RF"},{"$f":"'Game Info'!G4","v":"J Bautista"},{"$f":"IF('Game Info'!H4=\"\",\"\",'Game Info'!H4)","v":""}]
[null,null,null,null,"Landis",null,null,null,null,null,null,4,{"$f":"'Game Info'!F5","v":"CF"},{"$f":"'Game Info'!G5","v":"V Wells"},{"$f":"IF('Game Info'!H5=\"\",\"\",'Game Info'!H5)","v":""}]
[null,null,null,null,148,null,null,null,null,null,null,5,{"$f":"'Game Info'!F6","v":"DH"},{"$f":"'Game Info'!G6","v":"A Lind"},""]
[null,null,null,null,null,null,null,null,null,null,null,6,{"$f":"'Game Info'!F7","v":"C"},{"$f":"'Game Info'!G7","v":"J Buck"},{"$f":"IF('Game Info'!H7=\"\",\"\",'Game Info'!H7)","v":""}]
[null,null,null,null,null,null,null,null,null,null,null,7,{"$f":"'Game Info'!F8","v":"1B"},{"$f":"'Game Info'!G8","v":"L Overbay"},{"$f":"IF('Game Info'!H8=\"\",\"\",'Game Info'!H8)","v":""}]
[null,null,null,null,null,null,null,null,null,null,null,8,{"$f":"'Game Info'!F9","v":"3B"},{"$f":"'Game Info'!G9","v":"E Encarnacion"},{"$f":"IF('Game Info'!H9=\"\",\"\",'Game Info'!H9)","v":""}]
[null,null,null,null,null,null,null,null,null,null,null,9,{"$f":"'Game Info'!F10","v":"2B"},{"$f":"'Game Info'!G10","v":"J McDonald"},{"$f":"IF('Game Info'!H10=\"\",\"\",'Game Info'!H10)","v":""}]
[]
[null,null,null,null,null,null,null,null,null,null,null,null,"Pitching",{"$f":"'Game Info'!G12","v":"S Marcum"},{"$f":"'Game Info'!K12","v":68}]
[]
[null,null,null,null,null,null,null,null,null,null,null,"Outs",{"$f":"'Game Info'!B4","v":0}]
[null,null,null,null,null,null,null,null,null,null,null,"Inning",{"$f":"'Game Info'!B6","v":1},{"$f":"'Game Info'!C6","v":"Top"}]
[]
[null,null,null,null,null,null,null,null,null,null,null,null,"Normal Depth"]

{"sheet":"Game Info","index":1,"n_rows":46,"n_cols":22,"rows_kept":46,"cut":false,"hidden":false,"merged":[]}
["Home Team","BlueJays","Fielding",null,null,null,null,null,"Contact","Power","Speed","Def/Arm","Bunt",null,null,null,null,"Contact","Power","Speed","Def/Arm","Bunt"]
["Away Team","Indians",{"$f":"IF(C1=\"Batting\",\"Fielding\",\"Batting\")","v":"Batting"},null,"Home Lineup",{"$f":"INDIRECT(B1&\"!N1\")","v":"LF"},{"$f":"INDIRECT(B1&\"!O1\")","v":"F Lewis"},"*",{"$f":"VLOOKUP(G2,INDIRECT($B$1&\"!A1:F100\"),3,FALSE)","v":51},{"$f":"VLOOKUP(G2,INDIRECT($B$1&\"!A1:F100\"),4,FALSE)","v":53},{"$f":"IFERROR(VLOOKUP(G2,INDIRECT($B$1&\"!A11:F100\"),5,FALSE),20)","v":60},{"$f":"IFERROR(VLOOKUP(G2,INDIRECT($B$1&\"!A1:F100\"),6,FALSE),0)","v":65},{"$f":"IF(VLOOKUP(G2,INDIRECT($B$1&\"!A1:G100\"),7,FALSE)=0,50,VLOOKUP(G2,INDIRECT($B$1&\"!A1:G100\"),7,FALSE))","v":60},"Away Lineup",{"$f":"INDIRECT(B2&\"!N1\")","v":"CF"},{"$f":"INDIRECT(B2&\"!O1\")","v":"M Brantley"},"*",{"$f":"IFERROR(VLOOKUP(P2,INDIRECT($B$2&\"!A1:F100\"),3,FALSE),20)","v":42},{"$f":"IFERROR(VLOOKUP(P2,INDIRECT($B$2&\"!A1:F100\"),4,FALSE),20)","v":35},{"$f":"IFERROR(VLOOKUP(P2,INDIRECT($B$2&\"!A1:F100\"),5,FALSE),20)","v":85},{"$f":"IFERROR(VLOOKUP(P2,INDIRECT($B$2&\"!A1:F100\"),6,FALSE),0)","v":70},{"$f":"IF(VLOOKUP(P2,INDIRECT($B$2&\"!A1:G100\"),7,FALSE)=0,50,VLOOKUP(P2,INDIRECT($B$2&\"!A1:G100\"),7,FALSE))","v":65}]
[null,null,null,null,null,{"$f":"INDIRECT(B1&\"!N2\")","v":"SS"},{"$f":"INDIRECT(B1&\"!O2\")","v":"A Gonzalez"},null,{"$f":"VLOOKUP(G3,INDIRECT($B$1&\"!A1:F100\"),3,FALSE)","v":49},{"$f":"VLOOKUP(G3,INDIRECT($B$1&\"!A1:F100\"),4,FALSE)","v":69},70,20,60,null,{"$f":"INDIRECT(B2&\"!N2\")","v":"SS"},{"$f":"INDIRECT(B2&\"!O2\")","v":"A Cabrera"},null,58,39,75,{"$f":"IFERROR(VLOOKUP(P3,INDIRECT($B$2&\"!A1:F100\"),6,FALSE),0)","v":20},80]
["Outs",0,null,null,null,{"$f":"INDIRECT(B1&\"!N3\")","v":"RF"},{"$f":"INDIRECT(B1&\"!O3\")","v":"J Bautista"},null,49,93,60,75,25,null,{"$f":"INDIRECT(B2&\"!N3\")","v":"RF"},{"$f":"INDIRECT(B2&\"!O3\")","v":"S Choo"},null,72,67,80,{"$f":"IFERROR(VLOOKUP(P4,INDIRECT($B$2&\"!A1:F100\"),6,FALSE),0)","v":90},35]
[null,null,null,null,null,{"$f":"INDIRECT(B1&\"!N4\")","v":"CF"},{"$f":"INDIRECT(B1&\"!O4\")","v":"V Wells"},null,57,73,75,80,35,null,{"$f":"INDIRECT(B2&\"!N4\")","v":"LF"},{"$f":"INDIRECT(B2&\"!O4\")","v":"S Duncan"},null,33,54,45,{"$f":"IFERROR(VLOOKUP(P5,INDIRECT($B$2&\"!A1:F100\"),6,FALSE),0)","v":55},50]
["Inning",1,{"$f":"IF(C1=\"Fielding\",\"Top\",\"Bottom\")","v":"Top"},null,null,{"$f":"INDIRECT(B1&\"!N5\")","v":"DH"},{"$f":"INDIRECT(B1&\"!O5\")","v":"A Lind"},null,37,55,40,20,40,null,{"$f":"INDIRECT(B2&\"!N5\")","v":"C"},{"$f":"INDIRECT(B2&\"!O5\")","v":"C Santana"},null,49,63,30,{"$f":"IFERROR(VLOOKUP(P6,INDIRECT($B$2&\"!A1:F100\"),6,FALSE),0)","v":80},60]
["Away Hits",0,null,null,null,{"$f":"INDIRECT(B1&\"!N6\")","v":"C"},{"$f":"INDIRECT(B1&\"!O6\")","v":"J Buck"},null,61,68,40,60,55,null,{"$f":"INDIRECT(B2&\"!N6\")","v":"DH"},{"$f":"INDIRECT(B2&\"!O6\")","v":"T Hafner"},null,60,60,25,{"$f":"IFERROR(VLOOKUP(P7,INDIRECT($B$2&\"!A1:F100\"),6,FALSE),0)","v":10},10]
["Home Hits",0,null,null,null,{"$f":"INDIRECT(B1&\"!N7\")","v":"1B"},{"$f":"INDIRECT(B1&\"!O7\")","v":"L Overbay"},null,40,57,45,20,40,null,{"$f":"INDIRECT(B2&\"!N7\")","v":"1B"},{"$f":"INDIRECT(B2&\"!O7\")","v":"M LaPorta"},null,28,42,30,20,20]
["Away Errors",0,null,null,null,{"$f":"INDIRECT(B1&\"!N8\")","v":"3B"},{"$f":"INDIRECT(B1&\"!O8\")","v":"E Encarnacion"},null,40,66,70,20,60,null,{"$f":"INDIRECT(B2&\"!N8\")","v":"2B"},{"$f":"INDIRECT(B2&\"!O8\")","v":"L Valbuena"},null,12,22,75,20,70]
["Home Errors",0,null,null,null,{"$f":"INDIRECT(B1&\"!N9\")","v":"2B"},{"$f":"INDIRECT(B1&\"!O9\")","v":"J McDonald"},null,{"$f":"IF(F10=\"P\",20,IFERROR(VLOOKUP(G10,INDIRECT($B$1&\"!A1:F100\"),3,FALSE),20))","v":44},{"$f":"IF(F10=\"P\",10,VLOOKUP(G10,INDIRECT($B$1&\"!A1:F100\"),4,FALSE))","v":61},{"$f":"IF(F10=\"P\",25,IFERROR(VLOOKUP(G10,INDIRECT($B$1&\"!A1:F100\"),5,FALSE),20))","v":75},{"$f":"IFERROR(VLOOKUP(G10,INDIRECT($B$1&\"!A18:F100\"),6,FALSE),0)","v":20},{"$f":"IF(F10=\"P\",60,IF(VLOOKUP(G10,INDIRECT($B$1&\"!A1:G100\"),7,FALSE)=0,50,VLOOKUP(G10,INDIRECT($B$1&\"!A1:G100\"),7,FALSE)))","v":70},null,{"$f":"INDIRECT(B2&\"!N9\")","v":"3B"},{"$f":"INDIRECT(B2&\"!O9\")","v":"J Nix"},null,{"$f":"IF(O10=\"P\",20,IFERROR(VLOOKUP(P10,INDIRECT($B$2&\"!A1:F100\"),3,FALSE),20))","v":35},{"$f":"IF(O10=\"P\",10,IFERROR(VLOOKUP(P10,INDIRECT($B$2&\"!A20:F100\"),4,FALSE),20))","v":54},{"$f":"IF(O10=\"P\",25,IFERROR(VLOOKUP(P10,INDIRECT($B$2&\"!A18:F100\"),5,FALSE),20))","v":65},{"$f":"IFERROR(VLOOKUP(P10,INDIRECT($B$2&\"!A20:F100\"),6,FALSE),0)","v":20},{"$f":"IF(O10=\"P\",60,IF(VLOOKUP(P10,INDIRECT($B$2&\"!A1:G100\"),7,FALSE)=0,50,VLOOKUP(P10,INDIRECT($B$2&\"!A1:G100\"),7,FALSE)))","v":55}]
["Infield In?","N",{"$f":"IF(B11=\"N\",1.3,0.4)","v":1.3},null,null,null,null,null,"Effectiveness","Stamina","Total",null,null,null,null,null,null,"Effectiveness","Stamina","Total"]
[null,null,null,null,null,{"$f":"INDIRECT(B1&\"!N11\")","v":"P"},{"$f":"INDIRECT(B1&\"!O11\")","v":"S Marcum"},null,{"$f":"IFERROR(VLOOKUP(G12,INDIRECT($B$1&\"!A1:F100\"),3,FALSE),10)","v":68},{"$f":"IFERROR(VLOOKUP(G12,INDIRECT($B$1&\"!A1:F100\"),4,FALSE),3)","v":1},{"$f":"IF(F12<>\"P\",0,IF(J12=1,IF(H13>24,IF(I12>50,50-(H13-24),I12-(H13-24)),I12),IF(J12=2,IF(H13>6,IF(I12>50,50-2*(H13-6),I12-2*(H13-6)),I12),IF(J12=3,IF(H13>3,IF(I12>50,50-3*(H13-3),I12-3*(H13-3)),I12),50))))","v":68},null,null,null,{"$f":"INDIRECT(B2&\"!N11\")","v":"P"},{"$f":"INDIRECT(B2&\"!O11\")","v":"J Westbrook"},null,{"$f":"IFERROR(VLOOKUP(P12,INDIRECT($B$2&\"!A1:F100\"),3,FALSE),10)","v":47},{"$f":"IFERROR(VLOOKUP(P12,INDIRECT($B$2&\"!A1:F100\"),4,FALSE),3)","v":1},{"$f":"IF(O12<>\"P\",0,IF(S12=1,IF(Q13>24,IF(R12>50,50-(Q13-24),R12-(Q13-24)),R12),IF(S12=2,IF(Q13>6,IF(R12>50,50-2*(Q13-6),R12-2*(Q13-6)),R12),IF(S12=3,IF(Q13>3,IF(R12>50,50-3*(Q13-3),R12-3*(Q13-3)),R12),50))))","v":47}]
["Fielding","P",{"$f":"IF($C$1=\"Batting\",INDIRECT(B2&\"!O11\"),INDIRECT(B1&\"!O11\"))","v":"S Marcum"},{"$f":"IF(C1=\"Fielding\",VLOOKUP(C13,G12:K12,5,FALSE),VLOOKUP(C13,P12:T12,5,FALSE))","v":68},null,null,"Batters Faced",null,null,null,null,null,null,null,null,"Batters Faced"]
[null,"C",{"$f":"IF($C$1=\"Batting\",VLOOKUP(B14,$O$2:$P$12,2,FALSE),VLOOKUP(B14,$F$2:$G$12,2,FALSE))","v":"J Buck"},{"$f":"IF(C1=\"Fielding\",VLOOKUP(C14,G2:L10,6,FALSE),VLOOKUP(C14,P2:U10,6,FALSE))","v":60},null,"Mound visit?",null,null,null,null,null,null,null,null,"Mound visit?"]
[null,"1B","L Overbay"]
[null,"2B","J McDonald"]
[null,"3B","E Encarnacion"]
[null,"SS","A Gonzalez"]
[null,"LF","F Lewis",{"$f":"IF(C1=\"Fielding\",VLOOKUP(C19,G2:L10,6,FALSE),VLOOKUP(C19,P2:U10,6,FALSE))","v":65},{"$f":"C19&\" (\"&D19&\")\"","v":"F Lewis (65)"}]
[null,"CF","V Wells",{"$f":"IF(C1=\"Fielding\",VLOOKUP(C20,G2:L10,6,FALSE),VLOOKUP(C20,P2:U10,6,FALSE))","v":80},{"$f":"C20&\" (\"&D20&\")\"","v":"V Wells (80)"}]
[null,"RF","J Bautista",{"$f":"IF(C1=\"Fielding\",VLOOKUP(C21,G2:L10,6,FALSE),VLOOKUP(C21,P2:U10,6,FALSE))","v":75},"J Bautista (75)"]
[null,null,null,"Contact","Power","Speed","Bunt","Speed +/-"]
[0,"At bat",{"$f":"IF(C1=\"Fielding\",INDEX(P:P,MATCH(\"*\",Q:Q,0)),INDEX(G:G,MATCH(\"*\",H:H,0)))","v":"M Brantley"},{"$f":"IFERROR(VLOOKUP(C23,G2:K10,3,FALSE),0)+IFERROR(VLOOKUP(C23,P2:T10,3,FALSE),0)","v":42},{"$f":"IFERROR(VLOOKUP(C23,G2:K10,4,FALSE),0)+IFERROR(VLOOKUP(C23,P2:T10,4,FALSE),0)","v":35},{"$f":"IFERROR(VLOOKUP(C23,G2:K10,5,FALSE),0)+IFERROR(VLOOKUP(C23,P2:T10,5,FALSE),0)","v":85},{"$f":"IFERROR(VLOOKUP(C23,G2:M10,7,FALSE),0)+IFERROR(VLOOKUP(C23,P2:V10,7,FALSE),0)","v":65},{"$f":"F23-50","v":35}]
[1,"1st base",null,{"$f":"IFERROR(VLOOKUP(C24,G2:K10,3,FALSE),0)+IFERROR(VLOOKUP(C24,P2:T10,3,FALSE),0)","v":0},{"$f":"IFERROR(VLOOKUP(C24,G2:K10,4,FALSE),0)+IFERROR(VLOOKUP(C24,P2:T10,4,FALSE),0)","v":0},{"$f":"IFERROR(VLOOKUP(C24,G2:K10,5,FALSE),0)+IFERROR(VLOOKUP(C24,P2:T10,5,FALSE),0)","v":0},{"$f":"IFERROR(VLOOKUP(C24,G2:M10,7,FALSE),0)+IFERROR(VLOOKUP(C24,P2:V10,7,FALSE),0)","v":0},{"$f":"F24-50","v":-50}]
[2,"2nd base",null,{"$f":"IFERROR(VLOOKUP(C25,G2:K10,3,FALSE),0)+IFERROR(VLOOKUP(C25,P2:T10,3,FALSE),0)","v":0},{"$f":"IFERROR(VLOOKUP(C25,G2:K10,4,FALSE),0)+IFERROR(VLOOKUP(C25,P2:T10,4,FALSE),0)","v":0},{"$f":"IFERROR(VLOOKUP(C25,G2:K10,5,FALSE),0)+IFERROR(VLOOKUP(C25,P2:T10,5,FALSE),0)","v":0},{"$f":"IFERROR(VLOOKUP(C25,G2:M10,7,FALSE),0)+IFERROR(VLOOKUP(C25,P2:V10,7,FALSE),0)","v":0},{"$f":"F25-50","v":-50}]
[3,"3rd base",null,{"$f":"IFERROR(VLOOKUP(C26,G2:K10,3,FALSE),0)+IFERROR(VLOOKUP(C26,P2:T10,3,FALSE),0)","v":0},{"$f":"IFERROR(VLOOKUP(C26,G2:K10,4,FALSE),0)+IFERROR(VLOOKUP(C26,P2:T10,4,FALSE),0)","v":0},{"$f":"IFERROR(VLOOKUP(C26,G2:K10,5,FALSE),0)+IFERROR(VLOOKUP(C26,P2:T10,5,FALSE),0)","v":0},{"$f":"IFERROR(VLOOKUP(C26,G2:M10,7,FALSE),0)+IFERROR(VLOOKUP(C26,P2:V10,7,FALSE),0)","v":0},-50]
[]
[null,null,{"$f":"COUNTA(C23:C26)","v":1}]
[]
["Hit direction","left-center field",{"$f":"IF(B30=\"left field\",C19,IF(B30=\"left-center field\",C20,IF(B30=\"center field\",C20,IF(B30=\"right-center field\",C21,IF(B30=\"right field\",C21,\"\")))))","v":"V Wells"},{"$f":"VLOOKUP(C30,C13:D21,2,FALSE)","v":80},19]
[]
["Score difference",null,{"$f":"ABS('Field of Play'!M2-'Field of Play'!M3)","v":0}]
[]
["Out Player","pitcher"]
[]
[]
["Clear bases marker in B38"]
[null,1]
["Inning Over"]
[]
["Grounder scoring chances:",null,42]
[]
["Winning","Athletics","Athletics"]
["Losing","Indians","Indians"]
[]
["Scoring P"]

{"sheet":"Settings & Expansion","index":2,"n_rows":98,"n_cols":4,"rows_kept":98,"cut":false,"hidden":false,"merged":[[0,0,0,2],[2,0,3,10],[44,0,45,10],[89,0,90,10]]}
["Baseline batting average:",null,null,0.26100000000000001]
[]
["GAME PLAY"]
[]
[]
["Welcome to Will Morrison's Excel Baseball.  This page is designed to help with any game play questions that may come up."]
["I recommend using Excel's search function if there is something specific you are looking for."]
[]
["When the game starts, you will be prompted to select the teams that are playing.  After you do so, you will need to select the"]
["starting pitchers.  If you are continuing a game in progress, just click the \"Continue Game\" button and the window will close."]
[]
["The main button you will be using is the \"SWING!\" button.  This will prompt the pitcher to deliver the pitch and the event to"]
["occur.  The other gameplay buttons on the \"Field of Play\" tab are \"Mound Visit\", \"Toggle Infield Depth\" and \"Game Options\"."]
[]
["Mound Visit - This button allows the manager a chance to come settle down the pitcher.  Just as in real baseball, sometimes"]
[null,"this is beneficial and sometimes it is detrimental.  Based on 50/50 odds, the pitcher will either react like he has"]
[null,"pitched to fewer batters or more batters."]
[]
["Toggle Infield Depth - This button draws the infield in or moves them back.  If the infield is in, the defensive team will have a"]
[null,"better chance of gunning down a runner trying to score on a groundout.  However, the batter's batting average will"]
[null,"increase by 50 points.  The infield depth is reset to normal after each play."]
[]
["Game Options - This button will lead to a number of managerial options:"]
[null,"Steal A Base"]
[null,"Sacrifice Bunt"]
[null,"Issue an Intentional Walk"]
[null,"Throw at the Batter"]
[null,"Pinch Hit or Defensive Substitution"]
[null,"Call to the Bullpen"]
[null,"Start a New Game"]
[null,"Link to www.mlb.com"]
[]
[null,"To return to the game, click on the picture icon in the middle of the window."]
[]
["The \"Field of Play\" tab (where the game is played) also has two other buttons.  The first is About The Designer, which is just a"]
[null,"short bio about me and how to get a hold of me with any questions or comments.  The second is the Boss Button,"]
[null,"which will close all the tabs except a new one called \"Production\" and has some data and a couple graphs that look"]
[null,"look it could be business-related.  There is a button on that page all the way at the bottom that will take you back to"]
[null,"the game."]
[]
["Everything on the Game Info tab should not be adjusted during the game.  If changes are made and then saved, the game will"]
[null,"not run correctly, so make sure you do not move things around.  It can be helpful to look at that page though and look"]
[null,"at player ratings."]
[]
["NUMBER RATING EXPLANATION"]
[]
[]
["If you would like to adjust ratings for a player, you may do so at any time but it has to be in the right place.  Each team has its own"]
[null,"tab and that is where the changes need to be made.  To the right of each player, there are numbers listed for various"]
[null,"facets of the game.  Here is how each of these numbers affect the game:"]
[]
[null,"PITCHERS"]
[null,"1) Effectiveness - This measures how good a pitcher is by comparing their WHIP to the league average. Pitchers"]
[null,null,"start with an effectiveness rating of 50. A WHIP of 0.80 is the high mark, earning 100 points. A WHIP of"]
[null,null,"1.80 is the low mark, which would be an effectiveness rating of 0.  Any WHIP can be converted to a raw"]
[null,null,"score by using the formula y = -90.909x + 172.7272."]
[null,"2) Stamina - This is more of a classification system than a true numerical ranking.  1 is for starting pitchers, 2 is for"]
[null,null,"middle relievers and 3 is for short relievers.  Starters tire more slowly, middle relievers more quickly and"]
[null,null,"short relievers normally tire after one inning."]
[]
[null,"HITTERS"]
[null,"1) Contact - This number is derived from comparing a player's batting average to the league average of .261.  A"]
[null,null,"batting average of exactly .261 earns a contact score of 50 and an average of .350 earns a 100 rating."]
[null,null,"Any batting average can be converted to a raw score by the formula y = 561.7977x - 96.6292."]
[null,null,"It will not change the players' ratings but you can adjust the standard in-game batting average at the top"]
[null,null,"of this page.  So if a batter and a pitcher have matching contact and effectiveness ratings, they will hit"]
[null,null,"the average at the top of the page.  The default setting is .261.  If a hitter has a contact score higher than"]
[null,null,"the pitcher's effectiveness score by 10 points, then the hitter will hit .261 + .010 = .271 against that"]
[null,null,"particular pitcher."]
[null,"2) Power - When the game generates a home run, a batter must also pass the power test.  The probability of hitting a"]
[null,null,"home run increases the higher power rating they have.  This number is calculated by taking their slugging"]
[null,null,"percentage and comparing it to an approximate league average of .400.  A slugging percentage of .400"]
[null,null,"earns the player a power rating of 50 and a slugging percentage of .650 earns them a 100.  Any slugging"]
[null,null,"percentage can be converted to a raw score by the formula y = 200x - 30.  The game randomly generates"]
[null,null,"a number between 0 and 100 and if the hitter's power score is higher than that number, then the batter"]
[null,null,"will hit a home run if the random number before had determined a deep drive.  If they do not pass the"]
[null,null,"power test, the batter will hit a double."]
[null,"3) Speed - This number affects stolen bases and baserunning plays like scoring from second base on a single."]
[null,null,"This number is harder to quantify as good baserunners are not always the fastest.  Consider 50 average"]
[null,null,"with 0 being Cecil Fielder and 100 being Rickey Henderson."]
[null,"4) Arm - The arm rating really only affects outfielders and catchers.  Infielders do not have arm ratings as infield range"]
[null,null,"is taken into account into the hit probabilities.  I am hoping to fix this in later versions if I ever get around"]
[null,null,"to it.  Just like speed, this is harder to quantify so it is kind of a judgment call.  Roberto Clemente would be"]
[null,null,"100 and Johnny Damon would be a 20.  Similarly, Johnny Bench would be a 100 and Mike Piazza would"]
[null,null,"a 20 or so.  All players who are not catchers or outfielders should be listed as 20 so if they are put in those"]
[null,null,"positions, they will perform poorly.  Don't set it equal to 0, no outfielder is completely inept."]
[null,"5) Bunt - This number is setting the percentage of time they can sacrifice successfully.  Bunt execution percentage is"]
[null,null,"a stat I have never seen so use yout best judgment here as well."]
[]
["EXPANSION"]
[]
[]
["This workbook is not currently set up for the addition of other teams.  Adding other teams would require manual changes in the"]
["code.  If you want to take a crack at adding new teams, go for it, just remember that the workbook is very particular about what"]
["data is going in what cells.  One number in the wrong place can cause the game to crash.  I am planning on adding other teams"]
["as new season gets played.  I am also interested in putting together a workbook of the greatest teams in baseball history.  If"]
["there are modifications you would like to see or if you want to provide me a list of teams you would like to have in a workbook, "]
["please email me at will.e.morrison@gmail.com."]

{"sheet":"Angels","index":3,"n_rows":73,"n_cols":23,"rows_kept":73,"cut":false,"hidden":false,"merged":[]}
["PITCHERS",null,"WHIP","Stamina",1,"SS","E Aybar",null,1,"J Weaver",null,null,1,"SS","E Aybar"]
["J Weaver",null,75,1,2,"RF","B Abreu",null,2,"E Santana",null,null,2,"RF","B Abreu"]
["E Santana",null,53,1,3,"CF","T Hunter",null,3,"J Piniero",null,null,3,"CF","T Hunter"]
["J Piniero",null,60,1,4,"1B","K Morales",null,4,"S Kazmir",null,null,4,"1B","K Morales"]
["S Kazmir",null,29,1,5,"DH","H Matsui",null,null,null,null,null,5,"DH","H Matsui"]
["B Fuentes",null,64,3,6,"LF","J Rivera",null,null,null,null,null,6,"LF","J Rivera"]
["F Rodney",null,32,3,7,"3B","H Kendrick",null,null,null,null,null,7,"3B","H Kendrick"]
["K Jepsen",null,45,2,8,"C","M Napoli",null,null,null,null,null,8,"C","M Napoli"]
["F Rodriguez",null,34,3,9,"2B","A Callaspo",null,null,null,null,null,9,"2B","A Callaspo"]
["S Shields",null,17,3]
["T Bell",null,27,2,null,null,null,null,null,null,null,null,null,"P","J Weaver"]
["M Palmer",null,16,2]
["CATCHERS",null,"AVG","Slug%","Speed","Def/Arm","Bunt",null,null,null,null,null,null,null,null,"IP","H","R","K","ERA",null,null,"BB"]
["M Napoli",null,37,64,40,50,50,null,null,null,null,null,null,"Starter","J Weaver",null,null,null,null,{"$f":"IFERROR(IF(O14=\"\",\"\",R14*9/P14),\"INF\")","v":"INF"}]
["J Mathis",null,13,26,50,70,40,null,null,null,null,null,null,null,null,null,null,null,null,""]
["INFIELDERS",null,null,null,null,null,null,null,null,null,null,null,null,null,null,null,null,null,null,""]
["H Kendrick",null,60,51,80,20,75,null,null,null,null,null,null,null,null,null,null,null,null,""]
["K Morales",null,66,67,60,20,35,null,null,null,null,null,null,null,null,null,null,null,null,""]
["A Callaspo",null,43,33,92,20,80,null,null,null,null,null,null,null,null,null,null,null,null,""]
["E Aybar",null,46,36,75,20,70,null,null,null,null,null,null,null,null,null,null,null,null,""]
["K Frandsen",null,44,34,60,20,55,null,null,null,null,null,null,null,null,null,null,null,null,{"$f":"IF(O21=\"\",\"\",R21*9/P21)","v":""}]
["M Izturis",null,44,43,65,20,70,null,null,null,null,null,null,null,null,null,null,null,null,""]
["OUTFIELDERS"]
["J Rivera",null,45,52,30,50,20]
["B Abreu",null,47,57,60,80,65]
["T Hunter",null,61,63,80,85,60]
["H Matsui",null,57,62,75,30,25]
["P Bourjos",null,18,46,40,55,80]
["R Willits",null,48,30,80,70,80]
[]
[]
[]
[]
[]
[]
[]
[]
[]
[]
[]
[]
[]
[null,null,"AB","H","RBI","Run","HR","3B","2B","SB"]
["PITCHERS",null,0,0,0,0,0,0,0,0]
["J Weaver",1,0,0,0,0,0,0,0,0]
["E Santana",null,0,0,0,0,0,0,0,0]
["J Piniero",null,0,0,0,0,0,0,0,0]
["S Kazmir",null,0,0,0,0,0,0,0,0]
["B Fuentes",null,0,0,0,0,0,0,0,0]
["F Rodney",null,0,0,0,0,0,0,0,0]
["K Jepsen",null,0,0,0,0,0,0,0,0]
["F Rodriguez",null,0,0,0,0,0,0,0,0]
["S Shields",null,0,0,0,0,0,0,0,0]
["T Bell",null,0,0,0,0,0,0,0,0]
["M Palmer",null,0,0,0,0,0,0,0,0]
["CATCHERS",null,0,0,0,0,0,0,0,0]
["M Napoli",1,0,0,0,0,0,0,0,0]
["J Mathis",null,0,0,0,0,0,0,0,0]
["INFIELDERS",null,0,0,0,0,0,0,0,0]
["H Kendrick",1,0,0,0,0,0,0,0,0]
["K Morales",1,0,0,0,0,0,0,0,0]
["A Callaspo",1,0,0,0,0,0,0,0,0]
["E Aybar",1,0,0,0,0,0,0,0,0]
["K Frandsen",null,0,0,0,0,0,0,0,0]
["M Izturis",null,0,0,0,0,0,0,0,0]
["OUTFIELDERS",null,0,0,0,0,0,0,0,0]
["J Rivera",1,0,0,0,0,0,0,0,0]
["B Abreu",1,0,0,0,0,0,0,0,0]
["T Hunter",1,0,0,0,0,0,0,0,0]
["H Matsui",1,0,0,0,0,0,0,0,0]
["P Bourjos",null,0,0,0,0,0,0,0,0]
["R Willits",null,0,0,0,0,0,0,0,0]
[null,99,0,0,0,0,0,0,0,0]

{"sheet":"Astros","index":4,"n_rows":73,"n_cols":406,"rows_kept":73,"cut":false,"hidden":false,"merged":[]}
["PITCHERS",null,"Effectiveness","Stamina",1,"CF","M Bourn",null,1,"R Oswalt",null,null,1,"CF","M Bourn"]
["R Oswalt",null,72,1,2,"2B","J Keppinger",null,2,"B Myers",null,null,2,"2B","J Keppinger"]
["B Myers",null,60,1,3,"RF","H Pence",null,3,"W Rodriguez",null,null,3,"RF","H Pence"]
["W Rodriguez",null,56,1,4,"1B","L Berkman",null,4,"B Norris",null,null,4,"1B","L Berkman"]
["B Norris",null,38,1,5,"LF","C Lee",null,null,null,null,null,5,"LF","C Lee"]
["M Lindstrom",null,23,3,6,"3B","C Johnson",null,null,null,null,null,6,"3B","C Johnson"]
["B Lyon",null,57,3,7,"C","H Quintero",null,null,null,null,null,7,"C","H Quintero"]
["W Lopez",null,76,3,8,"SS","T Manzella",null,null,null,null,null,8,"SS","T Manzella"]
["J Fulchino",null,29,3,9,"P","R Oswalt",null,null,null,null,null,9,"P","R Oswalt",null,null,null,null,null,null,null,null,null,null,null,null,null,null,null,null,null,null,null,null,null,null,null,null,null,null,null,null,null,null,null,null,null,null,null,null,null,null,null,null,null,null,null,null,null,null,null,null,null,null,null,null,null,null,null,null,null,null,null,null,null,null,null,null,null,null,null,null,null,null,null,null,null,null,null,null,null,null,null,null,null,null,null,null,null,null,null,null,null,null,null,null,null,null,null,null,null,null,null,null,null,null,null,null,null,null,null,null,null,null,null,null,null,null,null,null,null,null,null,null,null,null,null,null,null,null,null,null,null,null,null,null,null,null,null,null,null,null,null,null,null,null,null,null,null,null,null,null,null,null,null,null,null,null,null,null,null,null,null,null,null,null,null,null,null,null,null,null,null,null,null,null,null,null,null,null,null,null,null,null,null,null,null,null,null,null,null,null,null,null,null,null,null,null,null,null,null,null,null,null,null,null,null,null,null,null,null,null,null,null,null,null,null,null,null,null,null,null,null,null,null,null,null,null,null,null,null,null,null,null,null,null,null,null,null,null,null,null,null,null,null,null,null,null,null,null,null,null,null,null,null,null,null,null,null,null,null,null,null,null,null,null,null,null,null,null,null,null,null,null,null,null,null,null,null,null,null,null,null,null,null,null,null,null,null,null,null,null,null,null,null,null,null,null,null,null,null,null,null,null,null,null,null,null,null,null,null,null,null,null,null,null,null,null,null,null,null,null,null,null,null,null,null,null,null,null,null,null,null,null,null,null,null,null,null,null,null,null,null,null,null,null,null,null,null,null,null,null,null,null,null,null,null,null,null,null,null,null,null,null,null,null,null,null,null,null,null,null,null,null,null,null,null,null,null,null,null,null,null,null,null,null,null,null,null,null,null,null,null,null,"D Brocail"]
["T Byrdak",null,32,2]
["N Figueroa",null,52,2,null,null,null,null,null,null,null,null,null,"P","R Oswalt"]
["J Happ",null,53,2,null,null,null,null,null,null,null,null,null,null,null,null,null,null,null,{"$f":"IF(O12=\"\",\"\",(9*R12)/P12)","v":""}]
["CATCHERS",null,"AVG","Slug%","Speed","Def/Arm","Bunt",null,null,null,null,null,null,null,null,"IP","H","R","K","ERA",null,null,"BB"]
["H Quintero",null,35,33,40,75,60,null,null,null,null,null,null,"Starter","R Oswalt",null,null,null,null,{"$f":"IFERROR(IF(O14=\"\",\"\",R14*9/P14),\"INF\")","v":"INF"},null,null,null,null,0,0]
["J Castro",null,19,27,20,65,55,null,null,null,null,null,null,null,null,null,null,null,null,"",null,null,null,null,0,0]
["INFIELDERS",null,null,null,null,null,null,null,null,null,null,null,null,null,null,null,null,null,null,"",null,null,null,null,0,0]
["L Berkman",null,41,57,30,50,20,null,null,null,null,null,null,null,null,null,null,null,null,""]
["J Keppinger",null,65,49,60,20,65,null,null,null,null,null,null,null,null,null,null,null,null,""]
["G Blum",null,53,41,60,50,65,null,null,null,null,null,null,null,null,null,null,null,null,""]
["T Manzella",null,30,23,75,20,70,null,null,null,null,null,null,null,null,null,null,null,null,""]
["C Johnson",null,76,66,65,20,80,null,null,null,null,null,null,null,null,null,null,null,null,{"$f":"IF(O21=\"\",\"\",R21*9/P21)","v":""}]
["P Feliz",null,28,32,75,20,75,null,null,null,null,null,null,null,null,null,null,null,null,""]
["A Sanchez",null,61,40,60,20,60]
["OUTFIELDERS"]
["C Lee",null,42,53,65,60,40]
["M Bourn",null,52,39,95,50,80]
["H Pence",null,62,62,70,60,75]
["J Michaels",null,46,64,30,55,20]
["J Bourgeois",null,27,24,75,60,65]
[]
[]
[]
[]
[]
[]
[]
[]
[]
[]
[]
[]
[]
[null,null,"AB","H","RBI","Run","HR","3B","2B","SB"]
["PITCHERS",null,0,0,0,0,0,0,0,0]
["R Oswalt",1,0,0,0,0,0,0,0,0]
["B Myers",null,0,0,0,0,0,0,0,0]
["W Rodriguez",null,0,0,0,0,0,0,0,0]
["B Norris",null,0,0,0,0,0,0,0,0]
["M Lindstrom",null,0,0,0,0,0,0,0,0]
["B Lyon",null,0,0,0,0,0,0,0,0]
["W Lopez",null,0,0,0,0,0,0,0,0]
["J Fulchino",null,0,0,0,0,0,0,0,0]
["T Byrdak",null,0,0,0,0,0,0,0,0]
["N Figueroa",null,0,0,0,0,0,0,0,0]
["J Happ",null,0,0,0,0,0,0,0,0]
["CATCHERS",null,0,0,0,0,0,0,0,0]
["H Quintero",1,0,0,0,0,0,0,0,0]
["J Castro",null,0,0,0,0,0,0,0,0]
["INFIELDERS",null,0,0,0,0,0,0,0,0]
["L Berkman",1,0,0,0,0,0,0,0,0]
["J Keppinger",1,0,0,0,0,0,0,0,0]
["G Blum",null,0,0,0,0,0,0,0,0]
["T Manzella",1,0,0,0,0,0,0,0,0]
["C Johnson",1,0,0,0,0,0,0,0,0]
["P Feliz",null,0,0,0,0,0,0,0,0]
["A Sanchez",null,0,0,0,0,0,0,0,0]
["OUTFIELDERS",null,0,0,0,0,0,0,0,0]
["C Lee",1,0,0,0,0,0,0,0,0]
["M Bourn",1,0,0,0,0,0,0,0,0]
["H Pence",1,0,0,0,0,0,0,0,0]
["J Michaels",null,0,0,0,0,0,0,0,0]
["J Bourgeois",null,0,0,0,0,0,0,0,0]
[null,99,0,0,0,0,0,0,0,0]

{"sheet":"Athletics","index":5,"n_rows":73,"n_cols":23,"rows_kept":73,"cut":false,"hidden":false,"merged":[]}
["PITCHERS",null,"Effectiveness","Stamina",1,"CF","R Davis",null,1,"G Gonzalez",null,null,1,"CF","R Davis"]
["G Gonzalez",null,54,1,2,"1B","D Barton",null,2,"T Cahill",null,null,2,"1B","D Barton"]
["T Cahill",null,72,1,3,"C","K Suzuki",null,3,"D Braden",null,null,3,"C","K Suzuki"]
["D Braden",null,68,1,4,"3B","K Kouzmanoff",null,4,"B Anderson",null,null,4,"3B","K Kouzmanoff"]
["B Anderson",null,64,1,5,"DH","J Cust",null,null,null,null,null,5,"DH","J Cust"]
["A Bailey",null,86,3,6,"RF","R Sweeney",null,null,null,null,null,6,"RF","R Sweeney"]
["C Breslow",null,73,3,7,"2B","M Ellis",null,null,null,null,null,7,"2B","M Ellis"]
["B Ziegler",null,50,3,8,"LF","C Crisp",null,null,null,null,null,8,"LF","C Crisp"]
["J Blevins",null,38,3,9,"SS","C Pennington",null,null,null,null,null,9,"SS","C Pennington"]
["M Wuertz",null,44,2]
["B Sheets",null,46,2,null,null,null,null,null,null,null,null,null,"P","A Bailey"]
["V Mazzaro",null,41,2]
["CATCHERS",null,"Contact","Power","Speed","Def/Arm","Bunt",null,null,null,null,null,null,null,null,"IP","H","R","K","ERA",null,null,"BB"]
["K Suzuki",null,39,43,75,70,60,null,null,null,null,null,null,"Starter","G Gonzalez",{"$f":"ROUND(7,2)","v":7},8,3,6,{"$f":"ROUND(3.85714285714286,2)","v":3.86},"W",null,2]
["L Powell",null,24,31,45,65,50,null,null,null,null,null,null,null,"B Ziegler",{"$f":"ROUND(1,2)","v":1},0,0,1,{"$f":"ROUND(0,2)","v":0},null,null,0]
["INFIELDERS",null,null,null,null,null,null,null,null,null,null,null,null,null,"A Bailey",{"$f":"ROUND(1,2)","v":1},0,0,1,{"$f":"ROUND(0,2)","v":0},null,null,0]
["D Barton",null,57,43,40,20,40,null,null,null,null,null,null,null,null,null,null,null,null,{"$f":"IFERROR(IF(O17=\"\",\"\",R17*9/P17),\"INF\")","v":""}]
["E Chavez",null,35,37,40,20,35,null,null,null,null,null,null,null,null,null,null,null,null,{"$f":"IFERROR(IF(O18=\"\",\"\",R18*9/P18),\"INF\")","v":""}]
["M Ellis",null,67,46,70,20,75,null,null,null,null,null,null,null,null,null,null,null,null,{"$f":"IFERROR(IF(O19=\"\",\"\",R19*9/P19),\"INF\")","v":""}]
["C Pennington",null,44,44,60,20,55,null,null,null,null,null,null,null,null,null,null,null,null,{"$f":"IFERROR(IF(O20=\"\",\"\",R20*9/P20),\"INF\")","v":""}]
["K Kouzmanoff",null,42,49,30,20,40,null,null,null,null,null,null,null,null,null,null,null,null,{"$f":"IF(O21=\"\",\"\",R21*9/P21)","v":""}]
["J Cust",null,56,58,55,50,35,null,null,null,null,null,null,null,null,null,null,null,null,""]
["A Rosales",null,56,50,60,20,60]
["OUTFIELDERS"]
["G Gross",null,38,32,65,65,40]
["R Davis",null,63,45,85,85,75]
["R Sweeney",null,69,47,70,90,50]
["C Crisp",null,60,58,65,55,75]
["C Jackson",null,31,33,55,65,45]
[]
[]
[]
[]
[]
[]
[]
[]
[]
[]
[]
[]
[]
[null,null,"AB","H","RBI","Run","HR","3B","2B","SB"]
["PITCHERS",null,0,0,0,0,0,0,0,0]
["G Gonzalez",1,0,0,0,0,0,0,0,0]
["T Cahill",null,0,0,0,0,0,0,0,0]
["D Braden",null,0,0,0,0,0,0,0,0]
["B Anderson",null,0,0,0,0,0,0,0,0]
["A Bailey",1,0,0,0,0,0,0,0,0]
["C Breslow",null,0,0,0,0,0,0,0,0]
["B Ziegler",1,0,0,0,0,0,0,0,0]
["J Blevins",null,0,0,0,0,0,0,0,0]
["M Wuertz",null,0,0,0,0,0,0,0,0]
["B Sheets",null,0,0,0,0,0,0,0,0]
["V Mazzaro",null,0,0,0,0,0,0,0,0]
["CATCHERS",null,0,0,0,0,0,0,0,0]
["K Suzuki",1,5,2,0,0,0,0,0,0]
["L Powell",null,0,0,0,0,0,0,0,0]
["INFIELDERS",null,0,0,0,0,0,0,0,0]
["D Barton",1,5,4,3,1,1,0,1,0]
["E Chavez",null,0,0,0,0,0,0,0,0]
["M Ellis",1,5,2,2,1,1,0,0,0]
["C Pennington",1,4,2,0,1,0,0,1,0]
["K Kouzmanoff",1,5,0,0,0,0,0,0,0]
["J Cust",1,5,3,1,1,1,0,1,0]
["A Rosales",null,0,0,0,0,0,0,0,0]
["OUTFIELDERS",null,0,0,0,0,0,0,0,0]
["G Gross",null,0,0,0,0,0,0,0,0]
["R Davis",1,5,2,1,1,0,0,2,0]
["R Sweeney",1,5,3,0,1,0,0,0,1]
["C Crisp",1,5,3,1,2,1,0,1,0]
["C Jackson",null,0,0,0,0,0,0,0,0]
[null,99,0,0,0,0,0,0,0,0]

{"sheet":"BlueJays","index":6,"n_rows":73,"n_cols":23,"rows_kept":73,"cut":false,"hidden":false,"merged":[]}
["PITCHERS",null,"Effectiveness","Stamina",1,"LF","F Lewis",null,1,"R Romero",null,null,1,"LF","F Lewis"]
["R Romero",null,55,1,2,"SS","A Gonzalez",null,2,"S Marcum",null,null,2,"SS","A Gonzalez"]
["S Marcum",null,68,1,3,"RF","J Bautista",null,3,"B Cecil",null,null,3,"RF","J Bautista"]
["B Cecil",null,52,1,4,"CF","V Wells",null,4,"B Morrow",null,null,4,"CF","V Wells"]
["B Morrow",null,47,1,5,"DH","A Lind",null,null,null,null,null,5,"DH","A Lind"]
["M Rzepczynski",null,27,2,6,"C","J Buck",null,null,null,null,null,6,"C","J Buck"]
["K Gregg",null,46,3,7,"1B","L Overbay",null,null,null,null,null,7,"1B","L Overbay"]
["S Camp",null,61,3,8,"3B","E Encarnacion",null,null,null,null,null,8,"3B","E Encarnacion"]
["C Janssen",null,47,2,9,"2B","J McDonald",null,null,null,null,null,9,"2B","J McDonald"]
["J Frasor",null,47,3]
["S Downs",null,82,3,null,null,null,null,null,null,null,null,null,"P","S Marcum"]
["B Tallet",null,29,2]
["CATCHERS",null,"Contact","Power","Speed","Def/Arm","Bunt",null,null,null,null,null,null,null,null,"IP","H","R","K","ERA",null,null,"BB"]
["J Buck",null,61,68,40,60,55,null,null,null,null,null,null,"Starter","S Marcum",null,null,null,null,{"$f":"IFERROR(IF(O14=\"\",\"\",R14*9/P14),\"INF\")","v":"INF"}]
["J Molina",null,42,45,30,75,60,null,null,null,null,null,null,null,null,null,null,null,null,{"$f":"IFERROR(IF(O15=\"\",\"\",R15*9/P15),\"INF\")","v":""}]
["INFIELDERS",null,null,null,null,null,null,null,null,null,null,null,null,null,null,null,null,null,null,{"$f":"IFERROR(IF(O16=\"\",\"\",R16*9/P16),\"INF\")","v":""}]
["L Overbay",null,40,57,45,20,40,null,null,null,null,null,null,null,null,null,null,null,null,{"$f":"IFERROR(IF(O17=\"\",\"\",R17*9/P17),\"INF\")","v":""}]
["A Hill",null,19,49,70,20,70,null,null,null,null,null,null,null,null,null,null,null,null,{"$f":"IFERROR(IF(O18=\"\",\"\",R18*9/P18),\"INF\")","v":""}]
["A Gonzalez",null,49,69,70,20,60,null,null,null,null,null,null,null,null,null,null,null,null,{"$f":"IFERROR(IF(O19=\"\",\"\",R19*9/P19),\"INF\")","v":""}]
["E Encarnacion",null,40,66,70,20,60,null,null,null,null,null,null,null,null,null,null,null,null,{"$f":"IFERROR(IF(O20=\"\",\"\",R20*9/P20),\"INF\")","v":""}]
["A Lind",null,37,55,40,20,40,null,null,null,null,null,null,null,null,null,null,null,null,{"$f":"IF(O21=\"\",\"\",R21*9/P21)","v":""}]
["J McDonald",null,44,61,75,20,70,null,null,null,null,null,null,null,null,null,null,null,null,""]
["Y Escobar",null,58,41,65,20,70]
["OUTFIELDERS"]
["F Lewis",null,51,53,60,65,60]
["V Wells",null,57,73,75,80,35]
["J Bautista",null,49,93,60,75,25]
["T Snider",null,47,63,60,60,60]
["D Wise",null,44,49,75,50,70]
[]
[]
[]
[]
[]
[]
[]
[]
[]
[]
[]
[]
[]
[null,null,"AB","H","RBI","Run","HR","3B","2B","SB"]
["PITCHERS",null,0,0,0,0,0,0,0,0]
["R Romero",null,0,0,0,0,0,0,0,0]
["S Marcum",1,0,0,0,0,0,0,0,0]
["B Cecil",null,0,0,0,0,0,0,0,0]
["B Morrow",null,0,0,0,0,0,0,0,0]
["M Rzepczynski",null,0,0,0,0,0,0,0,0]
["K Gregg",null,0,0,0,0,0,0,0,0]
["S Camp",null,0,0,0,0,0,0,0,0]
["C Janssen",null,0,0,0,0,0,0,0,0]
["J Frasor",null,0,0,0,0,0,0,0,0]
["S Downs",null,0,0,0,0,0,0,0,0]
["B Tallet",null,0,0,0,0,0,0,0,0]
["CATCHERS",null,0,0,0,0,0,0,0,0]
["J Buck",1,0,0,0,0,0,0,0,0]
["J Molina",null,0,0,0,0,0,0,0,0]
["INFIELDERS",null,0,0,0,0,0,0,0,0]
["L Overbay",1,0,0,0,0,0,0,0,0]
["A Hill",null,0,0,0,0,0,0,0,0]
["A Gonzalez",1,0,0,0,0,0,0,0,0]
["E Encarnacion",1,0,0,0,0,0,0,0,0]
["A Lind",1,0,0,0,0,0,0,0,0]
["J McDonald",1,0,0,0,0,0,0,0,0]
["Y Escobar",null,0,0,0,0,0,0,0,0]
["OUTFIELDERS",null,0,0,0,0,0,0,0,0]
["F Lewis",1,0,0,0,0,0,0,0,0]
["V Wells",1,0,0,0,0,0,0,0,0]
["J Bautista",1,0,0,0,0,0,0,0,0]
["T Snider",null,0,0,0,0,0,0,0,0]
["D Wise",null,0,0,0,0,0,0,0,0]
[null,99,0,0,0,0,0,0,0,0]

{"sheet":"Braves","index":7,"n_rows":73,"n_cols":406,"rows_kept":73,"cut":false,"hidden":false,"merged":[]}
["PITCHERS",null,"Effectiveness","Stamina",1,"2B","M Prado",null,1,"T Hudson",null,null,1,"2B","M Prado"]
["T Hudson",null,68,1,2,"LF","M Cabrera",null,2,"T Hanson",null,null,2,"LF","M Cabrera"]
["T Hanson",null,66,1,3,"3B","O Infante",null,3,"D Lowe",null,null,3,"3B","O Infante"]
["D Lowe",null,48,1,4,"RF","J Heyward",null,4,"J Jurrjens",null,null,4,"RF","J Heyward"]
["J Jurrjens",null,46,1,5,"1B","T Glaus",null,null,null,null,null,5,"1B","T Glaus"]
["B Wagner",null,94,3,6,"C","B McCann",null,null,null,null,null,6,"C","B McCann"]
["J Venters",null,63,3,7,"SS","A Gonzalez",null,null,null,null,null,7,"SS","A Gonzalez"]
["P Moylan",null,44,2,8,"CF","R Ankiel",null,null,null,null,null,8,"CF","R Ankiel"]
["T Saito",null,75,3,9,"P","T Hudson",null,null,null,null,null,9,"P","T Hanson",null,null,null,null,null,null,null,null,null,null,null,null,null,null,null,null,null,null,null,null,null,null,null,null,null,null,null,null,null,null,null,null,null,null,null,null,null,null,null,null,null,null,null,null,null,null,null,null,null,null,null,null,null,null,null,null,null,null,null,null,null,null,null,null,null,null,null,null,null,null,null,null,null,null,null,null,null,null,null,null,null,null,null,null,null,null,null,null,null,null,null,null,null,null,null,null,null,null,null,null,null,null,null,null,null,null,null,null,null,null,null,null,null,null,null,null,null,null,null,null,null,null,null,null,null,null,null,null,null,null,null,null,null,null,null,null,null,null,null,null,null,null,null,null,null,null,null,null,null,null,null,null,null,null,null,null,null,null,null,null,null,null,null,null,null,null,null,null,null,null,null,null,null,null,null,null,null,null,null,null,null,null,null,null,null,null,null,null,null,null,null,null,null,null,null,null,null,null,null,null,null,null,null,null,null,null,null,null,null,null,null,null,null,null,null,null,null,null,null,null,null,null,null,null,null,null,null,null,null,null,null,null,null,null,null,null,null,null,null,null,null,null,null,null,null,null,null,null,null,null,null,null,null,null,null,null,null,null,null,null,null,null,null,null,null,null,null,null,null,null,null,null,null,null,null,null,null,null,null,null,null,null,null,null,null,null,null,null,null,null,null,null,null,null,null,null,null,null,null,null,null,null,null,null,null,null,null,null,null,null,null,null,null,null,null,null,null,null,null,null,null,null,null,null,null,null,null,null,null,null,null,null,null,null,null,null,null,null,null,null,null,null,null,null,null,null,null,null,null,null,null,null,null,null,null,null,null,null,null,null,null,null,null,null,null,null,null,null,null,null,null,null,null,null,null,null,null,null,null,null,null,null,null,null,null,null,null,null,null,null,"B Wagner"]
["E O'Flaherty",null,59,2]
["K Medlen",null,64,2,null,null,null,null,null,null,null,null,null,"P","T Hanson"]
["C Kimbrel",null,54,3]
["CATCHERS",null,"Contact","Power","Speed","Def/Arm","Bunt",null,null,null,null,null,null,null,null,"IP","H","R","K","ERA",null,null,"BB"]
["B McCann",null,54,61,35,70,55,null,null,null,null,null,null,"Starter","T Hanson",{"$f":"ROUND(9,2)","v":9},5,0,4,{"$f":"ROUND(0,2)","v":0},"W",null,0,0,0,0]
["D Ross",null,66,66,40,60,40,null,null,null,null,null,null,null,null,null,null,null,null,{"$f":"IFERROR(IF(O15=\"\",\"\",R15*9/P15),\"INF\")","v":""},null,null,null,null,0,0]
["INFIELDERS",null,null,null,null,null,null,null,null,null,null,null,null,null,null,null,null,null,null,"",null,null,null,null,0,0]
["T Glaus",null,38,50,40,20,35,null,null,null,null,null,null,null,null,null,null,null,null,"",null,null,null,null,0,0]
["M Prado",null,76,62,70,20,70,null,null,null,null,null,null,null,null,null,null,null,null,"",null,null,null,null,0,0]
["A Gonzalez",null,38,47,60,20,60,null,null,null,null,null,null,null,null,null,null,null,null,""]
["C Jones",null,52,55,40,40,35,null,null,null,null,null,null,null,null,null,null,null,null,""]
["E Hinske",null,47,61,45,20,35,null,null,null,null,null,null,null,null,null,null,null,null,{"$f":"IF(O21=\"\",\"\",R21*9/P21)","v":""}]
["O Infante",null,84,53,70,20,65,null,null,null,null,null,null,null,null,null,null,null,null,""]
["B Conrad",null,44,67,50,20,35]
["OUTFIELDERS"]
["M Cabrera",null,47,41,70,70,60]
["N McLouth",null,10,34,80,80,70]
["J Heyward",null,59,61,70,85,40]
["M Diaz",null,44,58,55,50,55]
["R Ankiel",null,21,36,70,75,45]
[]
[]
[]
[]
[]
[]
[]
[]
[]
[]
[]
[]
[]
[null,null,"AB","H","RBI","Run","HR","3B","2B","SB"]
["PITCHERS",null,0,0,0,0,0,0,0,0]
["T Hudson",null,0,0,0,0,0,0,0,0]
["T Hanson",1,3,0,0,0,0,0,0,0]
["D Lowe",null,0,0,0,0,0,0,0,0]
["J Jurrjens",null,0,0,0,0,0,0,0,0]
["B Wagner",null,0,0,0,0,0,0,0,0]
["J Venters",null,0,0,0,0,0,0,0,0]
["P Moylan",null,0,0,0,0,0,0,0,0]
["T Saito",null,0,0,0,0,0,0,0,0]
["E O'Flaherty",null,0,0,0,0,0,0,0,0]
["K Medlen",null,0,0,0,0,0,0,0,0]
["C Kimbrel",null,0,0,0,0,0,0,0,0]
["CATCHERS",null,0,0,0,0,0,0,0,0]
["B McCann",1,3,0,0,0,0,0,0,0]
["D Ross",null,0,0,0,0,0,0,0,0]
["INFIELDERS",null,0,0,0,0,0,0,0,0]
["T Glaus",1,3,0,0,0,0,0,0,0]
["M Prado",1,1,0,0,0,0,0,0,0]
["A Gonzalez",1,3,1,0,0,0,0,0,0]
["C Jones",null,0,0,0,0,0,0,0,0]
["E Hinske",null,0,0,0,0,0,0,0,0]
["O Infante",1,4,2,0,1,0,0,1,0]
["B Conrad",null,0,0,0,0,0,0,0,0]
["OUTFIELDERS",null,0,0,0,0,0,0,0,0]
["M Cabrera",1,4,1,0,1,0,0,1,0]
["N McLouth",null,0,0,0,0,0,0,0,0]
["J Heyward",1,4,2,4,2,2,0,0,0]
["M Diaz",null,0,0,0,0,0,0,0,0]
["R Ankiel",1,3,1,0,0,0,0,1,0]
[null,99,0,0,0,0,0,0,0,0]

{"sheet":"Brewers","index":8,"n_rows":73,"n_cols":406,"rows_kept":73,"cut":false,"hidden":false,"merged":[]}
["PITCHERS",null,"Effectiveness","Stamina",1,"2B","R Weeks",null,1,"R Wolf",null,null,1,"2B","R Weeks"]
["R Wolf",null,46,1,2,"CF","C Gomez",null,2,"Y Gallardo",null,null,2,"CF","C Gomez"]
["Y Gallardo",null,48,1,3,"LF","R Braun",null,3,"D Bush",null,null,3,"LF","R Braun"]
["D Bush",null,36,1,4,"1B","P Fielder",null,4,"C Narveson",null,null,4,"1B","P Fielder"]
["C Narveson",null,47,1,5,"RF","C Hart",null,null,null,null,null,5,"RF","C Hart"]
["J Axford",null,65,3,6,"3B","C McGehee",null,null,null,null,null,6,"3B","C McGehee"]
["T Coffey",null,44,3,7,"SS","A Escobar",null,null,null,null,null,7,"SS","A Escobar"]
["K Loe",null,65,3,8,"C","J Lucroy",null,null,null,null,null,8,"C","J Lucroy"]
["C Villanueva",null,52,3,9,"P","R Wolf",null,null,null,null,null,9,"P","R Wolf",null,null,null,null,null,null,null,null,null,null,null,null,null,null,null,null,null,null,null,null,null,null,null,null,null,null,null,null,null,null,null,null,null,null,null,null,null,null,null,null,null,null,null,null,null,null,null,null,null,null,null,null,null,null,null,null,null,null,null,null,null,null,null,null,null,null,null,null,null,null,null,null,null,null,null,null,null,null,null,null,null,null,null,null,null,null,null,null,null,null,null,null,null,null,null,null,null,null,null,null,null,null,null,null,null,null,null,null,null,null,null,null,null,null,null,null,null,null,null,null,null,null,null,null,null,null,null,null,null,null,null,null,null,null,null,null,null,null,null,null,null,null,null,null,null,null,null,null,null,null,null,null,null,null,null,null,null,null,null,null,null,null,null,null,null,null,null,null,null,null,null,null,null,null,null,null,null,null,null,null,null,null,null,null,null,null,null,null,null,null,null,null,null,null,null,null,null,null,null,null,null,null,null,null,null,null,null,null,null,null,null,null,null,null,null,null,null,null,null,null,null,null,null,null,null,null,null,null,null,null,null,null,null,null,null,null,null,null,null,null,null,null,null,null,null,null,null,null,null,null,null,null,null,null,null,null,null,null,null,null,null,null,null,null,null,null,null,null,null,null,null,null,null,null,null,null,null,null,null,null,null,null,null,null,null,null,null,null,null,null,null,null,null,null,null,null,null,null,null,null,null,null,null,null,null,null,null,null,null,null,null,null,null,null,null,null,null,null,null,null,null,null,null,null,null,null,null,null,null,null,null,null,null,null,null,null,null,null,null,null,null,null,null,null,null,null,null,null,null,null,null,null,null,null,null,null,null,null,null,null,null,null,null,null,null,null,null,null,null,null,null,null,null,null,null,null,null,null,null,null,null,null,null,null,null,null,null,null,null,null,"E Gagne"]
["T Hoffman",null,42,3]
["M Parra",null,25,2,null,null,null,null,null,null,null,null,null,"P","R Wolf"]
["C Capuano",null,54,2]
["CATCHERS",null,"Contact","Power","Speed","Def/Arm","Bunt",null,null,null,null,null,null,null,null,"IP","H","R","K","ERA",null,null,"BB"]
["J Lucroy",null,46,36,55,70,60,null,null,null,null,null,null,"Starter","R Wolf",null,null,null,null,{"$f":"IFERROR(IF(O14=\"\",\"\",R14*9/P14),\"INF\")","v":"INF"},null,null,null,null,0,0]
["G Kottaras",null,17,49,30,60,45,null,null,null,null,null,null,null,null,null,null,null,null,"",null,null,null,null,0,0]
["INFIELDERS",null,null,null,null,null,null,null,null,null,null,null,null,null,null,null,null,null,null,"",null,null,null,null,0,0]
["P Fielder",null,50,64,25,20,15,null,null,null,null,null,null,null,null,null,null,null,null,""]
["R Weeks",null,54,63,80,20,70,null,null,null,null,null,null,null,null,null,null,null,null,""]
["A Escobar",null,35,35,70,20,65,null,null,null,null,null,null,null,null,null,null,null,null,""]
["C McGehee",null,63,63,60,35,45,null,null,null,null,null,null,null,null,null,null,null,null,""]
["C Counsell",null,44,34,65,20,80,null,null,null,null,null,null,null,null,null,null,null,null,{"$f":"IF(O21=\"\",\"\",R21*9/P21)","v":""}]
["J Inglett",null,46,50,70,20,70,null,null,null,null,null,null,null,null,null,null,null,null,""]
["OUTFIEDLERS"]
["R Braun",null,74,70,75,65,35]
["C Gomez",null,42,41,80,55,70]
["C Hart",null,62,75,65,65,45]
["J Edmonds",null,64,69,45,65,45]
["L Cain",null,75,53,85,60,60]
["C Dickerson",null,20,23,60,60,65]
[]
[]
[]
[]
[]
[]
[]
[]
[]
[]
[]
[]
[]
[null,null,"AB","H","RBI","Run","HR","3B","2B","SB"]
["PITCHERS",null,0,0,0,0,0,0,0,0]
["R Wolf",1,0,0,0,0,0,0,0,0]
["Y Gallardo",null,0,0,0,0,0,0,0,0]
["D Bush",null,0,0,0,0,0,0,0,0]
["C Narveson",null,0,0,0,0,0,0,0,0]
["J Axford",null,0,0,0,0,0,0,0,0]
["T Coffey",null,0,0,0,0,0,0,0,0]
["K Loe",null,0,0,0,0,0,0,0,0]
["C Villanueva",null,0,0,0,0,0,0,0,0]
["T Hoffman",null,0,0,0,0,0,0,0,0]
["M Parra",null,0,0,0,0,0,0,0,0]
["C Capuano",null,0,0,0,0,0,0,0,0]
["CATCHERS",null,0,0,0,0,0,0,0,0]
["J Lucroy",1,0,0,0,0,0,0,0,0]
["G Kottaras",null,0,0,0,0,0,0,0,0]
["INFIELDERS",null,0,0,0,0,0,0,0,0]
["P Fielder",1,0,0,0,0,0,0,0,0]
["R Weeks",1,0,0,0,0,0,0,0,0]
["A Escobar",1,0,0,0,0,0,0,0,0]
["C McGehee",1,0,0,0,0,0,0,0,0]
["C Counsell",null,0,0,0,0,0,0,0,0]
["J Inglett",null,0,0,0,0,0,0,0,0]
["OUTFIEDLERS",null,0,0,0,0,0,0,0,0]
["R Braun",1,0,0,0,0,0,0,0,0]
["C Gomez",1,0,0,0,0,0,0,0,0]
["C Hart",1,0,0,0,0,0,0,0,0]
["J Edmonds",null,0,0,0,0,0,0,0,0]
["L Cain",null,0,0,0,0,0,0,0,0]
["C Dickerson",null,0,0,0,0,0,0,0,0]
[null,99,0,0,0,0,0,0,0,0]

{"sheet":"Cardinals","index":9,"n_rows":73,"n_cols":406,"rows_kept":73,"cut":false,"hidden":false,"merged":[]}
["PITCHERS",null,"Effectiveness","Stamina",1,"2B","S Schumaker",null,1,"C Carpenter",null,null,1,"2B","S Schumaker"]
["C Carpenter",null,66,1,2,"CF","C Rasmus",null,2,"A Wainwright",null,null,2,"CF","C Rasmus"]
["A Wainwright",null,77,1,3,"1B","A Pujols",null,3,"J Garcia",null,null,3,"1B","A Pujols"]
["J Garcia",null,53,1,4,"LF","M Holliday",null,4,"K Lohse",null,null,4,"LF","M Holliday"]
["K Lohse",null,11,1,5,"RF","R Ludwick",null,null,null,null,null,5,"RF","R Ludwick"]
["J Suppan",null,37,2,6,"3B","D Freese",null,null,null,null,null,6,"3B","D Freese"]
["R Franklin",null,79,3,7,"C","Y Molina",null,null,null,null,null,7,"C","Y Molina"]
["K McClellan",null,75,2,8,"SS","B Ryan",null,null,null,null,null,8,"SS","B Ryan"]
["M Boggs",null,55,3,9,"P","C Carpenter",null,null,null,null,null,9,"P","M Boggs",null,null,null,null,null,null,null,null,null,null,null,null,null,null,null,null,null,null,null,null,null,null,null,null,null,null,null,null,null,null,null,null,null,null,null,null,null,null,null,null,null,null,null,null,null,null,null,null,null,null,null,null,null,null,null,null,null,null,null,null,null,null,null,null,null,null,null,null,null,null,null,null,null,null,null,null,null,null,null,null,null,null,null,null,null,null,null,null,null,null,null,null,null,null,null,null,null,null,null,null,null,null,null,null,null,null,null,null,null,null,null,null,null,null,null,null,null,null,null,null,null,null,null,null,null,null,null,null,null,null,null,null,null,null,null,null,null,null,null,null,null,null,null,null,null,null,null,null,null,null,null,null,null,null,null,null,null,null,null,null,null,null,null,null,null,null,null,null,null,null,null,null,null,null,null,null,null,null,null,null,null,null,null,null,null,null,null,null,null,null,null,null,null,null,null,null,null,null,null,null,null,null,null,null,null,null,null,null,null,null,null,null,null,null,null,null,null,null,null,null,null,null,null,null,null,null,null,null,null,null,null,null,null,null,null,null,null,null,null,null,null,null,null,null,null,null,null,null,null,null,null,null,null,null,null,null,null,null,null,null,null,null,null,null,null,null,null,null,null,null,null,null,null,null,null,null,null,null,null,null,null,null,null,null,null,null,null,null,null,null,null,null,null,null,null,null,null,null,null,null,null,null,null,null,null,null,null,null,null,null,null,null,null,null,null,null,null,null,null,null,null,null,null,null,null,null,null,null,null,null,null,null,null,null,null,null,null,null,null,null,null,null,null,null,null,null,null,null,null,null,null,null,null,null,null,null,null,null,null,null,null,null,null,null,null,null,null,null,null,null,null,null,null,null,null,null,null,null,null,null,null,null,null,null,null,null,null,null,null,null,"M Boggs"]
["D Reyes",null,41,3]
["T Miller",null,57,3,null,null,null,null,null,null,null,null,null,"P","M Boggs"]
["B Hawksworth",null,24,2,null,null,null,null,null,null,null,null,null,null,null,null,null,null,null,{"$f":"IFERROR(IF(O12=\"\",\"\",R12/P12),\"INF\")","v":""}]
["CATCHERS",null,"Contact","Power","Speed","Def/Arm","Bunt",null,null,null,null,null,null,null,null,"IP","H","R","K","ERA",null,null,"BB"]
["Y Molina",null,51,38,50,75,60,null,null,null,null,null,null,"Starter","J Garcia",{"$f":"ROUND(7,2)","v":7},6,4,5,{"$f":"ROUND(5.14285714285714,2)","v":5.14},"L",null,2,0,0,0]
["J LaRue",null,57,34,60,60,70,null,null,null,null,null,null,null,"M Boggs",{"$f":"ROUND(1,2)","v":1},1,0,1,{"$f":"ROUND(0,2)","v":0},null,null,1,0,0,0]
["INFIELDERS",null,null,null,null,null,null,null,null,null,null,null,null,null,null,null,null,null,null,{"$f":"IFERROR(IF(O16=\"\",\"\",R16*9/P16),\"INF\")","v":""},null,null,null,null,0,0]
["A Pujols",null,79,89,50,20,70,null,null,null,null,null,null,null,null,null,null,null,null,"",null,null,null,null,0,0]
["S Schumaker",null,52,38,65,20,35,null,null,null,null,null,null,null,null,null,null,null,null,""]
["B Ryan",null,29,29,80,20,80,null,null,null,null,null,null,null,null,null,null,null,null,""]
["D Freese",null,70,51,70,20,85,null,null,null,null,null,null,null,null,null,null,null,null,""]
["F Lopez",null,33,38,60,20,70,null,null,null,null,null,null,null,null,null,null,null,null,{"$f":"IF(O21=\"\",\"\",R21*9/P21)","v":""}]
["A Miles",null,61,33,55,20,60,null,null,null,null,null,null,null,null,null,null,null,null,""]
["OUTFIELDERS"]
["M Holliday",null,79,76,70,90,65]
["C Rasmus",null,58,70,65,55,60]
["R Ludwick",null,61,67,78,50,80]
["J Jay",null,72,54,60,60,25]
["R Winn",null,44,46,62,65,70]
["N Stavinoha",null,47,38,75,60,80]
[]
[]
[]
[]
[]
[]
[]
[]
[]
[]
[]
[]
[]
[null,null,"AB","H","RBI","Run","HR","3B","2B","SB"]
["PITCHERS",null,0,0,0,0,0,0,0,0]
["C Carpenter",null,0,0,0,0,0,0,0,0]
["A Wainwright",null,0,0,0,0,0,0,0,0]
["J Garcia",1,2,1,0,0,0,0,1,0]
["K Lohse",null,0,0,0,0,0,0,0,0]
["J Suppan",null,0,0,0,0,0,0,0,0]
["R Franklin",null,0,0,0,0,0,0,0,0]
["K McClellan",null,0,0,0,0,0,0,0,0]
["M Boggs",1,0,0,0,0,0,0,0,0]
["D Reyes",null,0,0,0,0,0,0,0,0]
["T Miller",null,0,0,0,0,0,0,0,0]
["B Hawksworth",null,0,0,0,0,0,0,0,0]
["CATCHERS",null,0,0,0,0,0,0,0,0]
["Y Molina",1,3,1,0,0,0,0,1,0]
["J LaRue",null,0,0,0,0,0,0,0,0]
["INFIELDERS",null,0,0,0,0,0,0,0,0]
["A Pujols",1,4,1,0,0,0,0,0,0]
["S Schumaker",1,4,0,0,0,0,0,0,0]
["B Ryan",1,3,0,0,0,0,0,0,0]
["D Freese",1,3,1,0,0,0,0,0,0]
["F Lopez",null,0,0,0,0,0,0,0,0]
["A Miles",null,0,0,0,0,0,0,0,0]
["OUTFIELDERS",null,0,0,0,0,0,0,0,0]
["M Holliday",1,4,0,0,0,0,0,0,0]
["C Rasmus",1,4,1,0,0,0,0,0,1]
["R Ludwick",1,3,0,0,0,0,0,0,0]
["J Jay",1,1,0,0,0,0,0,0,0]
["R Winn",null,0,0,0,0,0,0,0,0]
["N Stavinoha",null,0,0,0,0,0,0,0,0]
[null,99,0,0,0,0,0,0,0,0]

{"sheet":"Cubs","index":10,"n_rows":73,"n_cols":406,"rows_kept":73,"cut":false,"hidden":false,"merged":[]}
["PITCHERS",null,"Effectiveness","Stamina",1,"CF","M Byrd",null,1,"R Dempster",null,null,1,"CF","M Byrd"]
["R Dempster",null,53,1,2,"SS","S Castro",null,2,"R Wells",null,null,2,"SS","S Castro"]
["R Wells",null,45,1,3,"1B","D Lee",null,3,"C Silva",null,null,3,"1B","D Lee"]
["C Silva",null,57,1,4,"3B","A Ramirez",null,4,"T Lilly",null,null,4,"3B","A Ramirez"]
["T Lilly",null,69,1,5,"LF","A Soriano",null,null,null,null,null,5,"LF","A Soriano"]
["C Zambrano",null,41,2,6,"C","G Soto",null,null,null,null,null,6,"C","G Soto"]
["C Marmol",null,65,3,7,"2B","R Theriot",null,null,null,null,null,7,"2B","R Theriot"]
["S Marshall",null,72,3,8,"RF","K Fukudome",null,null,null,null,null,8,"RF","K Fukudome"]
["A Cashner",null,31,3,9,"P","R Dempster",null,null,null,null,null,9,"P","C Marmol",null,null,null,null,null,null,null,null,null,null,null,null,null,null,null,null,null,null,null,null,null,null,null,null,null,null,null,null,null,null,null,null,null,null,null,null,null,null,null,null,null,null,null,null,null,null,null,null,null,null,null,null,null,null,null,null,null,null,null,null,null,null,null,null,null,null,null,null,null,null,null,null,null,null,null,null,null,null,null,null,null,null,null,null,null,null,null,null,null,null,null,null,null,null,null,null,null,null,null,null,null,null,null,null,null,null,null,null,null,null,null,null,null,null,null,null,null,null,null,null,null,null,null,null,null,null,null,null,null,null,null,null,null,null,null,null,null,null,null,null,null,null,null,null,null,null,null,null,null,null,null,null,null,null,null,null,null,null,null,null,null,null,null,null,null,null,null,null,null,null,null,null,null,null,null,null,null,null,null,null,null,null,null,null,null,null,null,null,null,null,null,null,null,null,null,null,null,null,null,null,null,null,null,null,null,null,null,null,null,null,null,null,null,null,null,null,null,null,null,null,null,null,null,null,null,null,null,null,null,null,null,null,null,null,null,null,null,null,null,null,null,null,null,null,null,null,null,null,null,null,null,null,null,null,null,null,null,null,null,null,null,null,null,null,null,null,null,null,null,null,null,null,null,null,null,null,null,null,null,null,null,null,null,null,null,null,null,null,null,null,null,null,null,null,null,null,null,null,null,null,null,null,null,null,null,null,null,null,null,null,null,null,null,null,null,null,null,null,null,null,null,null,null,null,null,null,null,null,null,null,null,null,null,null,null,null,null,null,null,null,null,null,null,null,null,null,null,null,null,null,null,null,null,null,null,null,null,null,null,null,null,null,null,null,null,null,null,null,null,null,null,null,null,null,null,null,null,null,null,null,null,null,null,null,null,null,null,null,null,null,"S Marshall"]
["J Russell",null,50,2]
["J Berg",null,25,3,null,null,null,null,null,null,null,null,null,"P","C Marmol"]
["T Gorzelanny",null,37,2]
["CATCHERS",null,"Contact","Power","Speed","Def/Arm","Bunt",null,null,null,null,null,null,null,null,"IP","H","R","K","ERA",null,null,"BB"]
["G Soto",null,61,69,30,70,65,null,null,null,null,null,null,"Starter","C Silva",{"$f":"ROUND(4,2)","v":4},7,5,3,{"$f":"ROUND(11.25,2)","v":11.25},"L",null,2,0,0,0]
["K Hill",null,24,30,55,55,50,null,null,null,null,null,null,null,"S Marshall",{"$f":"ROUND(2,2)","v":2},5,3,1,{"$f":"ROUND(13.5,2)","v":13.5},null,null,0,0,0,0]
["INFIELDERS",null,null,null,null,null,null,null,null,null,null,null,null,null,"J Russell",{"$f":"ROUND(1,2)","v":1},3,2,0,{"$f":"ROUND(18,2)","v":18},null,null,1,0,0,0]
["D Lee",null,44,53,55,20,40,null,null,null,null,null,null,null,"C Marmol",{"$f":"ROUND(1,2)","v":1},1,0,0,{"$f":"ROUND(0,2)","v":0},null,null,0,0,0,0]
["R Theriot",null,63,35,70,20,70,null,null,null,null,null,null,null,null,null,null,null,null,{"$f":"IFERROR(IF(O18=\"\",\"\",R18*9/P18),\"INF\")","v":""}]
["S Castro",null,72,52,80,20,65,null,null,null,null,null,null,null,null,null,null,null,null,{"$f":"IFERROR(IF(O19=\"\",\"\",R19*9/P19),\"INF\")","v":""}]
["A Ramirez",null,39,60,35,20,25,null,null,null,null,null,null,null,null,null,null,null,null,{"$f":"IFERROR(IF(O20=\"\",\"\",R20*9/P20),\"INF\")","v":""}]
["J Baker",null,56,53,70,20,70,null,null,null,null,null,null,null,null,null,null,null,null,{"$f":"IF(O21=\"\",\"\",R21*9/P21)","v":""}]
["M Fontenot",null,63,50,70,20,75,null,null,null,null,null,null,null,null,null,null,null,null,""]
["OUTFIELDERS"]
["A Soriano",null,48,69,75,60,30]
["M Byrd",null,68,56,75,80,65]
["K Fukudome",null,51,58,70,70,70]
["T Colvin",null,46,70,70,65,45]
["X Nady",null,47,41,65,70,55]
["M Hoffpauir",null,1,16,60,60,65]
[]
[]
[]
[]
[]
[]
[]
[]
[]
[]
[]
[]
[]
[null,null,"AB","H","RBI","Run","HR","3B","2B","SB"]
["PITCHERS",null,0,0,0,0,0,0,0,0]
["R Dempster",null,0,0,0,0,0,0,0,0]
["R Wells",null,0,0,0,0,0,0,0,0]
["C Silva",1,1,0,0,0,0,0,0,0]
["T Lilly",null,0,0,0,0,0,0,0,0]
["C Zambrano",null,0,0,0,0,0,0,0,0]
["C Marmol",1,0,0,0,0,0,0,0,0]
["S Marshall",1,0,0,0,0,0,0,0,0]
["A Cashner",null,0,0,0,0,0,0,0,0]
["J Russell",1,1,0,0,0,0,0,0,0]
["J Berg",null,0,0,0,0,0,0,0,0]
["T Gorzelanny",null,0,0,0,0,0,0,0,0]
["CATCHERS",null,0,0,0,0,0,0,0,0]
["G Soto",1,4,1,0,1,0,0,0,0]
["K Hill",null,0,0,0,0,0,0,0,0]
["INFIELDERS",null,0,0,0,0,0,0,0,0]
["D Lee",1,4,1,0,0,0,0,0,0]
["R Theriot",1,4,2,0,0,0,0,1,0]
["S Castro",1,4,1,0,0,0,0,0,0]
["A Ramirez",1,3,1,0,0,0,0,0,0]
["J Baker",null,0,0,0,0,0,0,0,0]
["M Fontenot",1,1,0,1,0,0,0,0,0]
["OUTFIELDERS",null,0,0,0,0,0,0,0,0]
["A Soriano",1,4,0,0,0,0,0,0,0]
["M Byrd",1,4,2,0,0,0,0,0,1]
["K Fukudome",1,4,0,0,0,0,0,0,0]
["T Colvin",null,0,0,0,0,0,0,0,0]
["X Nady",null,0,0,0,0,0,0,0,0]
["M Hoffpauir",null,0,0,0,0,0,0,0,0]
[null,99,0,0,0,0,0,0,0,0]

{"sheet":"DBacks","index":11,"n_rows":73,"n_cols":23,"rows_kept":73,"cut":false,"hidden":false,"merged":[]}
["PITCHERS",null,"Effectiveness","Stamina",1,"CF","C Young",null,1,"R Lopez",null,null,1,"CF","C Young"]
["R Lopez",null,44,1,2,"2B","K Johnson",null,2,"I Kennedy",null,null,2,"2B","K Johnson"]
["I Kennedy",null,64,1,3,"RF","J Upton",null,3,"D Haren",null,null,3,"RF","J Upton"]
["D Haren",null,50,1,4,"C","M Montero",null,4,"E Jackson",null,null,4,"C","M Montero"]
["E Jackson",null,37,1,5,"3B","M Reynolds",null,null,null,null,null,5,"3B","M Reynolds"]
["J Gutierrez",null,48,3,6,"1B","A LaRoche",null,null,null,null,null,6,"1B","A LaRoche"]
["A Heilman",null,48,2,7,"SS","S Drew",null,null,null,null,null,7,"SS","S Drew"]
["B Boyer",null,32,3,8,"LF","G Parra",null,null,null,null,null,8,"LF","G Parra"]
["E Vasquez",null,30,3,9,"P","R Lopez",null,null,null,null,null,9,"P","D Haren"]
["C Qualls",null,-9,3]
["D Hudson",null,96,2,null,null,null,null,null,null,null,null,null,"P","D Haren"]
["B Enright",null,57,2]
["CATCHERS",null,"Contact","Power","Speed","Def/Arm","Bunt",null,null,null,null,null,null,null,null,"IP","H","R","K","ERA",null,null,"BB"]
["M Montero",null,53,58,65,65,60,null,null,null,null,null,null,"Starter","D Haren",null,null,null,null,{"$f":"IFERROR(IF(O14=\"\",\"\",R14*9/P14),\"INF\")","v":"INF"}]
["C Snyder",null,33,55,45,60,55,null,null,null,null,null,null,null,null,null,null,null,null,""]
["INFIELDERS",null,null,null,null,null,null,null,null,null,null,null,null,null,null,null,null,null,null,""]
["A LaRoche",null,50,64,50,20,35,null,null,null,null,null,null,null,null,null,null,null,null,""]
["K Johnson",null,63,69,70,20,70,null,null,null,null,null,null,null,null,null,null,null,null,""]
["S Drew",null,60,62,75,20,65,null,null,null,null,null,null,null,null,null,null,null,null,""]
["M Reynolds",null,15,57,70,20,30,null,null,null,null,null,null,null,null,null,null,null,null,""]
["R Ryal",null,50,40,65,20,65,null,null,null,null,null,null,null,null,null,null,null,null,{"$f":"IF(O21=\"\",\"\",R21*9/P21)","v":""}]
["T Abreu",null,34,33,70,20,65,null,null,null,null,null,null,null,null,null,null,null,null,""]
["OUTFIELDERS"]
["G Parra",null,50,44,65,65,70]
["C Young",null,48,60,75,75,65]
["J Upton",null,57,58,80,70,45]
["C Jackson",null,37,36,55,60,55]
["C Gillespie",null,33,43,70,60,70]
["R Church",null,52,68,50,50,55]
[]
[]
[]
[]
[]
[]
[]
[]
[]
[]
[]
[]
[]
[null,null,"AB","H","RBI","Run","HR","3B","2B","SB"]
["PITCHERS",null,0,0,0,0,0,0,0,0]
["R Lopez",null,0,0,0,0,0,0,0,0]
["I Kennedy",null,0,0,0,0,0,0,0,0]
["D Haren",1,0,0,0,0,0,0,0,0]
["E Jackson",null,0,0,0,0,0,0,0,0]
["J Gutierrez",null,0,0,0,0,0,0,0,0]
["A Heilman",null,0,0,0,0,0,0,0,0]
["B Boyer",null,0,0,0,0,0,0,0,0]
["E Vasquez",null,0,0,0,0,0,0,0,0]
["C Qualls",null,0,0,0,0,0,0,0,0]
["D Hudson",null,0,0,0,0,0,0,0,0]
["B Enright",null,0,0,0,0,0,0,0,0]
["CATCHERS",null,0,0,0,0,0,0,0,0]
["M Montero",1,0,0,0,0,0,0,0,0]
["C Snyder",null,0,0,0,0,0,0,0,0]
["INFIELDERS",null,0,0,0,0,0,0,0,0]
["A LaRoche",1,0,0,0,0,0,0,0,0]
["K Johnson",1,0,0,0,0,0,0,0,0]
["S Drew",1,0,0,0,0,0,0,0,0]
["M Reynolds",1,0,0,0,0,0,0,0,0]
["R Ryal",null,0,0,0,0,0,0,0,0]
["T Abreu",null,0,0,0,0,0,0,0,0]
["OUTFIELDERS",null,0,0,0,0,0,0,0,0]
["G Parra",1,0,0,0,0,0,0,0,0]
["C Young",1,0,0,0,0,0,0,0,0]
["J Upton",1,0,0,0,0,0,0,0,0]
["C Jackson",null,0,0,0,0,0,0,0,0]
["C Gillespie",null,0,0,0,0,0,0,0,0]
["R Church",null,0,0,0,0,0,0,0,0]
[null,99,0,0,0,0,0,0,0,0]

{"sheet":"Dodgers","index":12,"n_rows":73,"n_cols":23,"rows_kept":73,"cut":false,"hidden":false,"merged":[]}
["PITCHERS",null,"Effectiveness","Stamina",1,"SS","R Furcal",null,1,"C Kershaw",null,null,1,"SS","R Furcal"]
["C Kershaw",null,66,1,2,"C","R Martin",null,2,"H Kuroda",null,null,2,"C","R Martin"]
["H Kuroda",null,67,1,3,"RF","A Ethier",null,3,"C Billingsley",null,null,3,"RF","A Ethier"]
["C Billingsley",null,57,1,4,"LF","M Ramirez",null,4,"V Padilla",null,null,4,"LF","M Ramirez"]
["V Padilla",null,74,1,5,"CF","M Kemp",null,null,null,null,null,5,"CF","M Kemp"]
["J Ely",null,41,2,6,"1B","J Loney",null,null,null,null,null,6,"1B","J Loney"]
["J Broxton",null,39,3,7,"3B","C Blake",null,null,null,null,null,7,"3B","C Blake"]
["H Kuo",null,102,3,8,"2B","B DeWitt",null,null,null,null,null,8,"2B","B DeWitt"]
["R Belisario",null,56,3,9,"P","C Kershaw",null,null,null,null,null,9,"P","C Kershaw"]
["R Troncoso",null,50,3]
["G Sherrill",null,-2,2,null,null,null,null,null,null,null,null,null,"P","C Kershaw"]
["C Monasterios",null,41,2]
["CATCHERS",null,"Contact","Power","Speed","Def/Arm","Bunt",null,null,null,null,null,null,null,null,"IP","H","R","K","ERA",null,null,"BB"]
["R Martin",null,43,36,30,60,60,null,null,null,null,null,null,"Starter","C Kershaw",null,null,null,null,{"$f":"IFERROR(IF(O14=\"\",\"\",R14*9/P14),\"INF\")","v":"INF"}]
["A Ellis",null,60,35,40,40,50,null,null,null,null,null,null,null,null,null,null,null,null,""]
["INFIELDERS",null,null,null,null,null,null,null,null,null,null,null,null,null,null,null,null,null,null,""]
["J Loney",null,53,49,75,20,75,null,null,null,null,null,null,null,null,null,null,null,null,""]
["B DeWitt",null,55,44,60,70,70,null,null,null,null,null,null,null,null,null,null,null,null,""]
["R Furcal",null,72,62,75,20,60,null,null,null,null,null,null,null,null,null,null,null,null,""]
["C Blake",null,43,51,88,20,90,null,null,null,null,null,null,null,null,null,null,null,null,""]
["J Carroll",null,67,38,65,20,20,null,null,null,null,null,null,null,null,null,null,null,null,{"$f":"IF(O21=\"\",\"\",R21*9/P21)","v":""}]
["R Belliard",null,25,35,30,20,20,null,null,null,null,null,null,null,null,null,null,null,null,""]
["OUTFIELDERS"]
["M Ramirez",null,78,72,75,70,40]
["M Kemp",null,43,60,65,95,35]
["A Ethier",null,67,69,90,40,95]
["R Johnson",null,51,43,40,50,10]
["G Anderson",null,5,24,70,60,40]
["S Podsednik",null,51,37,70,60,40]
[]
[]
[]
[]
[]
[]
[]
[]
[]
[]
[]
[]
[]
[null,null,"AB","H","RBI","Run","HR","3B","2B","SB"]
["PITCHERS",null,0,0,0,0,0,0,0,0]
["C Kershaw",1,0,0,0,0,0,0,0,0]
["H Kuroda",null,0,0,0,0,0,0,0,0]
["C Billingsley",null,0,0,0,0,0,0,0,0]
["V Padilla",null,0,0,0,0,0,0,0,0]
["J Ely",null,0,0,0,0,0,0,0,0]
["J Broxton",null,0,0,0,0,0,0,0,0]
["H Kuo",null,0,0,0,0,0,0,0,0]
["R Belisario",null,0,0,0,0,0,0,0,0]
["R Troncoso",null,0,0,0,0,0,0,0,0]
["G Sherrill",null,0,0,0,0,0,0,0,0]
["C Monasterios",null,0,0,0,0,0,0,0,0]
["CATCHERS",null,0,0,0,0,0,0,0,0]
["R Martin",1,0,0,0,0,0,0,0,0]
["A Ellis",null,0,0,0,0,0,0,0,0]
["INFIELDERS",null,0,0,0,0,0,0,0,0]
["J Loney",1,0,0,0,0,0,0,0,0]
["B DeWitt",1,0,0,0,0,0,0,0,0]
["R Furcal",1,0,0,0,0,0,0,0,0]
["C Blake",1,0,0,0,0,0,0,0,0]
["J Carroll",null,0,0,0,0,0,0,0,0]
["R Belliard",null,0,0,0,0,0,0,0,0]
["OUTFIELDERS",null,0,0,0,0,0,0,0,0]
["M Ramirez",1,0,0,0,0,0,0,0,0]
["M Kemp",1,0,0,0,0,0,0,0,0]
["A Ethier",1,0,0,0,0,0,0,0,0]
["R Johnson",null,0,0,0,0,0,0,0,0]
["G Anderson",null,0,0,0,0,0,0,0,0]
["S Podsednik",null,0,0,0,0,0,0,0,0]
[null,99,0,0,0,0,0,0,0,0]

{"sheet":"Giants","index":13,"n_rows":73,"n_cols":406,"rows_kept":73,"cut":false,"hidden":false,"merged":[]}
["PITCHERS",null,"Effectiveness","Stamina",1,"CF","A Torres",null,1,"T Lincecum",null,null,1,"CF","A Torres"]
["M Cain",null,74,1,2,"2B","F Sanchez",null,2,"M Cain",null,null,2,"2B","F Sanchez"]
["T Lincecum",null,57,1,3,"C","B Posey",null,3,"J Sanchez",null,null,3,"C","B Posey"]
["J Sanchez",null,61,1,4,"LF","C Ross",null,4,"M Bumgarner",null,null,4,"LF","C Ross"]
["M Bumgarner",null,54,1,5,"1B","A Huff",null,null,null,null,null,5,"1B","A Huff"]
["B Zito",null,51,2,6,"3B","J Uribe",null,null,null,null,null,6,"3B","J Uribe"]
["B Wilson",null,66,3,7,"SS","E Renteria",null,null,null,null,null,7,"SS","E Renteria"]
["S Romo",null,85,3,8,"RF","N Schierholtz",null,null,null,null,null,8,"RF","N Schierholtz"]
["S Casilla",null,64,3,9,"P","T Lincecum",null,null,null,null,null,9,"P","T Lincecum",null,null,null,null,null,null,null,null,null,null,null,null,null,null,null,null,null,null,null,null,null,null,null,null,null,null,null,null,null,null,null,null,null,null,null,null,null,null,null,null,null,null,null,null,null,null,null,null,null,null,null,null,null,null,null,null,null,null,null,null,null,null,null,null,null,null,null,null,null,null,null,null,null,null,null,null,null,null,null,null,null,null,null,null,null,null,null,null,null,null,null,null,null,null,null,null,null,null,null,null,null,null,null,null,null,null,null,null,null,null,null,null,null,null,null,null,null,null,null,null,null,null,null,null,null,null,null,null,null,null,null,null,null,null,null,null,null,null,null,null,null,null,null,null,null,null,null,null,null,null,null,null,null,null,null,null,null,null,null,null,null,null,null,null,null,null,null,null,null,null,null,null,null,null,null,null,null,null,null,null,null,null,null,null,null,null,null,null,null,null,null,null,null,null,null,null,null,null,null,null,null,null,null,null,null,null,null,null,null,null,null,null,null,null,null,null,null,null,null,null,null,null,null,null,null,null,null,null,null,null,null,null,null,null,null,null,null,null,null,null,null,null,null,null,null,null,null,null,null,null,null,null,null,null,null,null,null,null,null,null,null,null,null,null,null,null,null,null,null,null,null,null,null,null,null,null,null,null,null,null,null,null,null,null,null,null,null,null,null,null,null,null,null,null,null,null,null,null,null,null,null,null,null,null,null,null,null,null,null,null,null,null,null,null,null,null,null,null,null,null,null,null,null,null,null,null,null,null,null,null,null,null,null,null,null,null,null,null,null,null,null,null,null,null,null,null,null,null,null,null,null,null,null,null,null,null,null,null,null,null,null,null,null,null,null,null,null,null,null,null,null,null,null,null,null,null,null,null,null,null,null,null,null,null,null,null,null,null,null,null,"S Romo"]
["G Mota",null,53,3]
["J Affeldt",null,27,2,null,null,null,null,null,null,null,null,null,"P","T Lincecum"]
["D Bautista",null,32,3]
["CATCHERS",null,"Contact","Power","Speed","Def/Arm","Bunt",null,null,null,null,null,null,null,null,"IP","H","R","K","ERA",null,null,"BB"]
["B Posey",null,75,71,55,75,55,null,null,null,null,null,null,"Starter","T Lincecum",null,null,null,null,{"$f":"IFERROR(IF(O14=\"\",\"\",R14*9/P14),\"INF\")","v":"INF"},null,null,null,null,0,0]
["E Whiteside",null,37,49,60,60,55,null,null,null,null,null,null,null,null,null,null,null,null,"",null,null,null,null,0,0]
["INFIELDERS",null,null,null,null,null,null,null,null,null,null,null,null,null,null,null,null,null,null,""]
["A Huff",null,66,71,45,20,35,null,null,null,null,null,null,null,null,null,null,null,null,""]
["F Sanchez",null,67,49,70,20,80,null,null,null,null,null,null,null,null,null,null,null,null,""]
["J Uribe",null,43,58,60,20,40,null,null,null,null,null,null,null,null,null,null,null,null,""]
["P Sandoval",null,54,52,45,20,45,null,null,null,null,null,null,null,null,null,null,null,null,""]
["E Renteria",null,58,45,60,20,70,null,null,null,null,null,null,null,null,null,null,null,null,{"$f":"IF(O21=\"\",\"\",R21*9/P21)","v":""}]
["T Ishikawa",null,53,48,50,20,55,null,null,null,null,null,null,null,null,null,null,null,null,""]
["OUTFIELDERS"]
["P Burrell",null,53,72,40,45,30]
["A Rowand",null,33,26,65,70,65]
["N Schierholtz",null,39,43,65,80,65]
["A Torres",null,54,66,85,70,70]
["J Guillen",null,53,45,60,80,40]
["C Ross",null,65,63,70,60,65]
[]
[]
[]
[]
[]
[]
[]
[]
[]
[]
[]
[]
[]
[null,null,"AB","H","RBI","Run","HR","3B","2B","SB"]
["PITCHERS",null,0,0,0,0,0,0,0,0]
["M Cain",null,0,0,0,0,0,0,0,0]
["T Lincecum",1,0,0,0,0,0,0,0,0]
["J Sanchez",null,0,0,0,0,0,0,0,0]
["M Bumgarner",null,0,0,0,0,0,0,0,0]
["B Zito",null,0,0,0,0,0,0,0,0]
["B Wilson",null,0,0,0,0,0,0,0,0]
["S Romo",null,0,0,0,0,0,0,0,0]
["S Casilla",null,0,0,0,0,0,0,0,0]
["G Mota",null,0,0,0,0,0,0,0,0]
["J Affeldt",null,0,0,0,0,0,0,0,0]
["D Bautista",null,0,0,0,0,0,0,0,0]
["CATCHERS",null,0,0,0,0,0,0,0,0]
["B Posey",1,0,0,0,0,0,0,0,0]
["E Whiteside",null,0,0,0,0,0,0,0,0]
["INFIELDERS",null,0,0,0,0,0,0,0,0]
["A Huff",1,0,0,0,0,0,0,0,0]
["F Sanchez",1,0,0,0,0,0,0,0,0]
["J Uribe",1,0,0,0,0,0,0,0,0]
["P Sandoval",null,0,0,0,0,0,0,0,0]
["E Renteria",1,0,0,0,0,0,0,0,0]
["T Ishikawa",null,0,0,0,0,0,0,0,0]
["OUTFIELDERS",null,0,0,0,0,0,0,0,0]
["P Burrell",null,0,0,0,0,0,0,0,0]
["A Rowand",null,0,0,0,0,0,0,0,0]
["N Schierholtz",1,0,0,0,0,0,0,0,0]
["A Torres",1,0,0,0,0,0,0,0,0]
["J Guillen",null,0,0,0,0,0,0,0,0]
["C Ross",1,0,0,0,0,0,0,0,0]
[null,99,0,0,0,0,0,0,0,0]

{"sheet":"Indians","index":14,"n_rows":73,"n_cols":23,"rows_kept":73,"cut":false,"hidden":false,"merged":[]}
["PITCHERS",null,"WHIP","Stamina",1,"CF","M Brantley",null,1,"F Carmona",null,null,1,"CF","M Brantley"]
["F Carmona",null,54,1,2,"SS","A Cabrera",null,2,"J Masterson",null,null,2,"SS","A Cabrera"]
["J Masterson",null,36,1,3,"RF","S Choo",null,3,"J Westbrook",null,null,3,"RF","S Choo"]
["J Westbrook",null,47,1,4,"LF","S Duncan",null,4,"M Talbot",null,null,4,"LF","S Duncan"]
["M Talbot",null,37,1,5,"C","C Santana",null,null,null,null,null,5,"C","C Santana"]
["J Tomlin",null,59,2,6,"DH","T Hafner",null,null,null,null,null,6,"DH","T Hafner"]
["C Perez",null,75,3,7,"1B","M LaPorta",null,null,null,null,null,7,"1B","M LaPorta"]
["T Sipp",null,47,3,8,"2B","L Valbuena",null,null,null,null,null,8,"2B","L Valbuena"]
["F Herrmann",null,57,2,9,"3B","J Nix",null,null,null,null,null,9,"3B","J Nix"]
["J Smith",null,50,2]
["A Laffey",null,26,2,null,null,null,null,null,null,null,null,null,"P","J Westbrook"]
["J Lewis",null,55,3]
["CATCHERS",null,"AVG","Slug%","Speed","Def/Arm","Bunt",null,null,null,null,null,null,null,null,"IP","H","R","K","ERA",null,null,"BB"]
["C Santana",null,49,63,30,80,60,null,null,null,null,null,null,"Starter","J Westbrook",null,null,null,null,{"$f":"IFERROR(IF(O14=\"\",\"\",R14*9/P14),\"INF\")","v":"INF"}]
["L Marson",null,13,27,55,75,45,null,null,null,null,null,null,null,null,null,null,null,null,{"$f":"IFERROR(IF(O15=\"\",\"\",R15*9/P15),\"INF\")","v":""}]
["INFIELDERS",null,null,null,null,null,null,null,null,null,null,null,null,null,null,null,null,null,null,{"$f":"IFERROR(IF(O16=\"\",\"\",R16*9/P16),\"INF\")","v":""}]
["M LaPorta",null,28,42,30,20,20,null,null,null,null,null,null,null,null,null,null,null,null,{"$f":"IFERROR(IF(O17=\"\",\"\",R17*9/P17),\"INF\")","v":""}]
["L Valbuena",null,12,22,75,20,70,null,null,null,null,null,null,null,null,null,null,null,null,{"$f":"IFERROR(IF(O18=\"\",\"\",R18*9/P18),\"INF\")","v":""}]
["A Cabrera",null,58,39,75,20,80,null,null,null,null,null,null,null,null,null,null,null,null,{"$f":"IFERROR(IF(O19=\"\",\"\",R19*9/P19),\"INF\")","v":""}]
["J Nix",null,35,54,65,20,55,null,null,null,null,null,null,null,null,null,null,null,null,{"$f":"IFERROR(IF(O20=\"\",\"\",R20*9/P20),\"INF\")","v":""}]
["T Hafner",null,60,60,25,10,10,null,null,null,null,null,null,null,null,null,null,null,null,{"$f":"IF(O21=\"\",\"\",R21*9/P21)","v":""}]
["J Donald",null,46,46,65,20,55,null,null,null,null,null,null,null,null,null,null,null,null,""]
["OUTFIELDERS"]
["T Crowe",null,44,37,70,65,60]
["S Choo",null,72,67,80,90,35]
["M Brantley",null,42,35,85,70,65]
["S Duncan",null,33,54,45,55,50]
["J Brown",null,33,32,40,60,45]
["G Sizemore",null,22,28,70,60,70]
[]
[]
[]
[]
[]
[]
[]
[]
[]
[]
[]
[]
[]
[null,null,"AB","H","RBI","Run","HR","3B","2B","SB"]
["PITCHERS",null,0,0,0,0,0,0,0,0]
["F Carmona",null,0,0,0,0,0,0,0,0]
["J Masterson",null,0,0,0,0,0,0,0,0]
["J Westbrook",1,0,0,0,0,0,0,0,0]
["M Talbot",null,0,0,0,0,0,0,0,0]
["J Tomlin",null,0,0,0,0,0,0,0,0]
["C Perez",null,0,0,0,0,0,0,0,0]
["T Sipp",null,0,0,0,0,0,0,0,0]
["F Herrmann",null,0,0,0,0,0,0,0,0]
["J Smith",null,0,0,0,0,0,0,0,0]
["A Laffey",null,0,0,0,0,0,0,0,0]
["J Lewis",null,0,0,0,0,0,0,0,0]
["CATCHERS",null,0,0,0,0,0,0,0,0]
["C Santana",1,0,0,0,0,0,0,0,0]
["L Marson",null,0,0,0,0,0,0,0,0]
["INFIELDERS",null,0,0,0,0,0,0,0,0]
["M LaPorta",1,0,0,0,0,0,0,0,0]
["L Valbuena",1,0,0,0,0,0,0,0,0]
["A Cabrera",1,0,0,0,0,0,0,0,0]
["J Nix",1,0,0,0,0,0,0,0,0]
["T Hafner",1,0,0,0,0,0,0,0,0]
["J Donald",null,0,0,0,0,0,0,0,0]
["OUTFIELDERS",null,0,0,0,0,0,0,0,0]
["T Crowe",null,0,0,0,0,0,0,0,0]
["S Choo",1,0,0,0,0,0,0,0,0]
["M Brantley",1,0,0,0,0,0,0,0,0]
["S Duncan",1,0,0,0,0,0,0,0,0]
["J Brown",null,0,0,0,0,0,0,0,0]
["G Sizemore",null,0,0,0,0,0,0,0,0]
[null,99,0,0,0,0,0,0,0,0]

{"sheet":"Mariners","index":15,"n_rows":73,"n_cols":23,"rows_kept":73,"cut":false,"hidden":false,"merged":[]}
["PITCHERS",null,"Effectiveness","Stamina",1,"RF","Ichiro",null,1,"F Hernandez",null,null,1,"RF","Ichiro"]
["F Hernandez",null,77,1,2,"2B","C Figgins",null,2,"J Vargas",null,null,2,"2B","C Figgins"]
["J Vargas",null,59,1,3,"CF","F Gutierrez",null,3,"D Fister",null,null,3,"CF","F Gutierrez"]
["D Fister",null,56,1,4,"3B","J Lopez",null,4,"R Rowland-Smith",null,null,4,"3B","J Lopez"]
["R Rowland-Smith",null,19,1,5,"DH","R Branyan",null,null,null,null,null,5,"DH","R Branyan"]
["D Pauley",null,53,2,6,"1B","C Kotchman",null,null,null,null,null,6,"1B","C Kotchman"]
["D Aardsma",null,67,3,7,"SS","Jo. Wilson",null,null,null,null,null,7,"SS","Jo. Wilson"]
["B League",null,65,3,8,"LF","M Saunders",null,null,null,null,null,8,"LF","M Saunders"]
["G Olson",null,35,3,9,"C","A Moore",null,null,null,null,null,9,"C","A Moore"]
["J Wright",null,60,2]
["S White",null,24,3,null,null,null,null,null,null,null,null,null,"P","J Vargas"]
["L French",null,51,2]
["CATCHERS",null,"Contact","Power","Speed","Def/Arm","Bunt",null,null,null,null,null,null,null,null,"IP","H","R","K","ERA",null,null,"BB"]
["A Moore",null,13,27,45,60,65,null,null,null,null,null,null,"Starter","J Vargas",null,null,null,null,{"$f":"IFERROR(IF(O14=\"\",\"\",R14*9/P14),\"INF\")","v":"INF"}]
["R Johnson",null,11,26,55,50,40,null,null,null,null,null,null,null,null,null,null,null,null,""]
["INFIELDERS",null,null,null,null,null,null,null,null,null,null,null,null,null,null,null,null,null,null,""]
["C Kotchman",null,25,37,45,20,35,null,null,null,null,null,null,null,null,null,null,null,null,""]
["C Figgins",null,49,31,80,45,75,null,null,null,null,null,null,null,null,null,null,null,null,""]
["Jo. Wilson",null,31,29,65,20,60,null,null,null,null,null,null,null,null,null,null,null,null,""]
["J Lopez",null,38,38,60,20,55,null,null,null,null,null,null,null,null,null,null,null,null,""]
["Ja. Wilson",null,43,33,70,20,70,null,null,null,null,null,null,null,null,null,null,null,null,{"$f":"IF(O21=\"\",\"\",R21*9/P21)","v":""}]
["J Smoak",null,38,51,50,20,45,null,null,null,null,null,null,null,null,null,null,null,null,""]
["OUTFIELDERS"]
["M Saunders",null,22,43,65,60,55]
["F Gutierrez",null,41,43,80,90,65]
["Ichiro",null,80,49,90,95,80]
["R Branyan",null,24,67,40,35,20]
["M Bradley",null,19,40,70,60,45]
["K Griffey Jr.",null,7,11,45,60,55]
[]
[]
[]
[]
[]
[]
[]
[]
[]
[]
[]
[]
[]
[null,null,"AB","H","RBI","Run","HR","3B","2B","SB"]
["PITCHERS",null,0,0,0,0,0,0,0,0]
["F Hernandez",null,0,0,0,0,0,0,0,0]
["J Vargas",1,0,0,0,0,0,0,0,0]
["D Fister",null,0,0,0,0,0,0,0,0]
["R Rowland-Smith",null,0,0,0,0,0,0,0,0]
["D Pauley",null,0,0,0,0,0,0,0,0]
["D Aardsma",null,0,0,0,0,0,0,0,0]
["B League",null,0,0,0,0,0,0,0,0]
["G Olson",null,0,0,0,0,0,0,0,0]
["J Wright",null,0,0,0,0,0,0,0,0]
["S White",null,0,0,0,0,0,0,0,0]
["L French",null,0,0,0,0,0,0,0,0]
["CATCHERS",null,0,0,0,0,0,0,0,0]
["A Moore",1,0,0,0,0,0,0,0,0]
["R Johnson",null,0,0,0,0,0,0,0,0]
["INFIELDERS",null,0,0,0,0,0,0,0,0]
["C Kotchman",1,0,0,0,0,0,0,0,0]
["C Figgins",1,0,0,0,0,0,0,0,0]
["Jo. Wilson",1,0,0,0,0,0,0,0,0]
["J Lopez",1,0,0,0,0,0,0,0,0]
["Ja. Wilson",null,0,0,0,0,0,0,0,0]
["J Smoak",null,0,0,0,0,0,0,0,0]
["OUTFIELDERS",null,0,0,0,0,0,0,0,0]
["M Saunders",1,0,0,0,0,0,0,0,0]
["F Gutierrez",1,0,0,0,0,0,0,0,0]
["Ichiro",1,0,0,0,0,0,0,0,0]
["R Branyan",1,0,0,0,0,0,0,0,0]
["M Bradley",null,0,0,0,0,0,0,0,0]
["K Griffey Jr.",null,0,0,0,0,0,0,0,0]
[null,99,0,0,0,0,0,0,0,0]

{"sheet":"Marlins","index":16,"n_rows":73,"n_cols":406,"rows_kept":73,"cut":false,"hidden":false,"merged":[]}
["PITCHERS",null,"Effectiveness","Stamina",1,"LF","C Coghlan",null,1,"J Johnson",null,null,1,"LF","C Coghlan"]
["J Johnson",null,72,1,2,"1B","G Sanchez",null,2,"A Sanchez",null,null,2,"1B","G Sanchez"]
["A Sanchez",null,51,1,3,"SS","H Ramirez",null,3,"C Volstad",null,null,3,"SS","H Ramirez"]
["C Volstad",null,44,1,4,"3B","J Cantu",null,4,"R Nolasco",null,null,4,"3B","J Cantu"]
["R Nolasco",null,56,1,5,"2B","D Uggla",null,null,null,null,null,5,"2B","D Uggla"]
["N Robertson",null,37,2,6,"C","R Paulino",null,null,null,null,null,6,"C","R Paulino"]
["L Nunez",null,57,3,7,"CF","C Maybin",null,null,null,null,null,7,"CF","C Maybin"]
["C Hensley",null,72,3,8,"RF","L Morrison",null,null,null,null,null,8,"RF","L Morrison"]
["B Badenhop",null,61,3,9,"P","J Johnson",null,null,null,null,null,9,"P","J Johnson",null,null,null,null,null,null,null,null,null,null,null,null,null,null,null,null,null,null,null,null,null,null,null,null,null,null,null,null,null,null,null,null,null,null,null,null,null,null,null,null,null,null,null,null,null,null,null,null,null,null,null,null,null,null,null,null,null,null,null,null,null,null,null,null,null,null,null,null,null,null,null,null,null,null,null,null,null,null,null,null,null,null,null,null,null,null,null,null,null,null,null,null,null,null,null,null,null,null,null,null,null,null,null,null,null,null,null,null,null,null,null,null,null,null,null,null,null,null,null,null,null,null,null,null,null,null,null,null,null,null,null,null,null,null,null,null,null,null,null,null,null,null,null,null,null,null,null,null,null,null,null,null,null,null,null,null,null,null,null,null,null,null,null,null,null,null,null,null,null,null,null,null,null,null,null,null,null,null,null,null,null,null,null,null,null,null,null,null,null,null,null,null,null,null,null,null,null,null,null,null,null,null,null,null,null,null,null,null,null,null,null,null,null,null,null,null,null,null,null,null,null,null,null,null,null,null,null,null,null,null,null,null,null,null,null,null,null,null,null,null,null,null,null,null,null,null,null,null,null,null,null,null,null,null,null,null,null,null,null,null,null,null,null,null,null,null,null,null,null,null,null,null,null,null,null,null,null,null,null,null,null,null,null,null,null,null,null,null,null,null,null,null,null,null,null,null,null,null,null,null,null,null,null,null,null,null,null,null,null,null,null,null,null,null,null,null,null,null,null,null,null,null,null,null,null,null,null,null,null,null,null,null,null,null,null,null,null,null,null,null,null,null,null,null,null,null,null,null,null,null,null,null,null,null,null,null,null,null,null,null,null,null,null,null,null,null,null,null,null,null,null,null,null,null,null,null,null,null,null,null,null,null,null,null,null,null,null,null,null,null,"A Rhodes"]
["B Sanches",null,73,3]
["J Veras",null,57,3,null,null,null,null,null,null,null,null,null,"P","J Johnson"]
["J Sosa",null,31,2]
["CATCHERS",null,"Contact","Power","Speed","Def/Arm","Bunt",null,null,null,null,null,null,null,null,"IP","H","R","K","ERA",null,null,"BB"]
["R Paulino",null,49,41,45,65,55,null,null,null,null,null,null,"Starter","J Johnson",null,null,null,null,{"$f":"IFERROR(IF(O14=\"\",\"\",R14*9/P14),\"INF\")","v":"INF"},null,null,null,null,0,0]
["B Davis",null,22,45,55,50,60,null,null,null,null,null,null,null,null,null,null,null,null,"",null,null,null,null,0,0]
["INFIELDERS",null,null,null,null,null,null,null,null,null,null,null,null,null,null,null,null,null,null,"",null,null,null,null,0,0]
["G Sanchez",null,57,60,40,20,45,null,null,null,null,null,null,null,null,null,null,null,null,""]
["D Uggla",null,65,72,65,20,60,null,null,null,null,null,null,null,null,null,null,null,null,""]
["H Ramirez",null,72,65,80,20,55,null,null,null,null,null,null,null,null,null,null,null,null,""]
["J Cantu",null,51,52,55,45,45,null,null,null,null,null,null,null,null,null,null,null,null,""]
["W Helms",null,27,39,40,20,65,null,null,null,null,null,null,null,null,null,null,null,null,{"$f":"IF(O21=\"\",\"\",R21*9/P21)","v":""}]
["C Tracy",null,41,37,40,40,35,null,null,null,null,null,null,null,null,null,null,null,null,""]
["E Bonifacio",null,50,36,75,20,65]
["OUTFIELDERS"]
["C Coghlan",null,54,47,70,60,55]
["C Maybin",null,35,42,80,60,55]
["M Stanton",null,49,71,50,55,40]
["L Morrison",null,62,59,55,65,60]
["B Carroll",null,14,36,60,55,60]
[]
[]
[]
[]
[]
[]
[]
[]
[]
[]
[]
[]
[]
[null,null,"AB","H","RBI","Run","HR","3B","2B","SB"]
["PITCHERS",null,0,0,0,0,0,0,0,0]
["J Johnson",1,0,0,0,0,0,0,0,0]
["A Sanchez",null,0,0,0,0,0,0,0,0]
["C Volstad",null,0,0,0,0,0,0,0,0]
["R Nolasco",null,0,0,0,0,0,0,0,0]
["N Robertson",null,0,0,0,0,0,0,0,0]
["L Nunez",null,0,0,0,0,0,0,0,0]
["C Hensley",null,0,0,0,0,0,0,0,0]
["B Badenhop",null,0,0,0,0,0,0,0,0]
["B Sanches",null,0,0,0,0,0,0,0,0]
["J Veras",null,0,0,0,0,0,0,0,0]
["J Sosa",null,0,0,0,0,0,0,0,0]
["CATCHERS",null,0,0,0,0,0,0,0,0]
["R Paulino",1,0,0,0,0,0,0,0,0]
["B Davis",null,0,0,0,0,0,0,0,0]
["INFIELDERS",null,0,0,0,0,0,0,0,0]
["G Sanchez",1,0,0,0,0,0,0,0,0]
["D Uggla",1,0,0,0,0,0,0,0,0]
["H Ramirez",1,0,0,0,0,0,0,0,0]
["J Cantu",1,0,0,0,0,0,0,0,0]
["W Helms",null,0,0,0,0,0,0,0,0]
["C Tracy",null,0,0,0,0,0,0,0,0]
["E Bonifacio",null,0,0,0,0,0,0,0,0]
["OUTFIELDERS",null,0,0,0,0,0,0,0,0]
["C Coghlan",1,0,0,0,0,0,0,0,0]
["C Maybin",1,0,0,0,0,0,0,0,0]
["M Stanton",null,0,0,0,0,0,0,0,0]
["L Morrison",1,0,0,0,0,0,0,0,0]
["B Carroll",null,0,0,0,0,0,0,0,0]
[null,99,0,0,0,0,0,0,0,0]

{"sheet":"Mets","index":17,"n_rows":73,"n_cols":406,"rows_kept":73,"cut":false,"hidden":false,"merged":[]}
["PITCHERS",null,"Effectiveness","Stamina",1,"SS","J Reyes",null,1,"J Santana",null,null,1,"SS","J Reyes"]
["J Santana",null,66,1,2,"RF","A Pagan",null,2,"M Pelfrey",null,null,2,"RF","A Pagan"]
["M Pelfrey",null,48,1,3,"3B","D Wright",null,3,"R Dickey",null,null,3,"3B","D Wright"]
["R Dickey",null,65,1,4,"CF","C Beltran",null,4,"J Niese",null,null,4,"CF","C Beltran"]
["J Niese",null,40,1,5,"LF","J Bay",null,null,null,null,null,5,"LF","J Bay"]
["F Rodriguez",null,68,3,6,"1B","I Davis",null,null,null,null,null,6,"1B","I Davis"]
["H Takahashi",null,54,2,7,"C","R Barajas",null,null,null,null,null,7,"C","R Barajas"]
["P Feliciano",null,33,2,8,"2B","L Castillo",null,null,null,null,null,8,"2B","L Castillo"]
["E Dessens",null,62,3,9,"P","J Santana",null,null,null,null,null,9,"P","M Pelfrey",null,null,null,null,null,null,null,null,null,null,null,null,null,null,null,null,null,null,null,null,null,null,null,null,null,null,null,null,null,null,null,null,null,null,null,null,null,null,null,null,null,null,null,null,null,null,null,null,null,null,null,null,null,null,null,null,null,null,null,null,null,null,null,null,null,null,null,null,null,null,null,null,null,null,null,null,null,null,null,null,null,null,null,null,null,null,null,null,null,null,null,null,null,null,null,null,null,null,null,null,null,null,null,null,null,null,null,null,null,null,null,null,null,null,null,null,null,null,null,null,null,null,null,null,null,null,null,null,null,null,null,null,null,null,null,null,null,null,null,null,null,null,null,null,null,null,null,null,null,null,null,null,null,null,null,null,null,null,null,null,null,null,null,null,null,null,null,null,null,null,null,null,null,null,null,null,null,null,null,null,null,null,null,null,null,null,null,null,null,null,null,null,null,null,null,null,null,null,null,null,null,null,null,null,null,null,null,null,null,null,null,null,null,null,null,null,null,null,null,null,null,null,null,null,null,null,null,null,null,null,null,null,null,null,null,null,null,null,null,null,null,null,null,null,null,null,null,null,null,null,null,null,null,null,null,null,null,null,null,null,null,null,null,null,null,null,null,null,null,null,null,null,null,null,null,null,null,null,null,null,null,null,null,null,null,null,null,null,null,null,null,null,null,null,null,null,null,null,null,null,null,null,null,null,null,null,null,null,null,null,null,null,null,null,null,null,null,null,null,null,null,null,null,null,null,null,null,null,null,null,null,null,null,null,null,null,null,null,null,null,null,null,null,null,null,null,null,null,null,null,null,null,null,null,null,null,null,null,null,null,null,null,null,null,null,null,null,null,null,null,null,null,null,null,null,null,null,null,null,null,null,null,null,null,null,null,null,null,null,null,"B Parnell"]
["M Acosta",null,63,3]
["R Valdes",null,39,2,null,null,null,null,null,null,null,null,null,"P","M Pelfrey"]
["F Nieve",null,45,3]
["CATCHERS",null,"Contact","Power","Speed","Def/Arm","Bunt",null,null,null,null,null,null,null,null,"IP","H","R","K","ERA",null,null,"BB"]
["R Barajas",null,30,53,30,75,55,null,null,null,null,null,null,"Starter","M Pelfrey",null,null,null,null,{"$f":"IFERROR(IF(O14=\"\",\"\",R14*9/P14),\"INF\")","v":"INF"}]
["J Thole",null,47,55,45,55,50,null,null,null,null,null,null,null,null,null,null,null,null,""]
["INFIELDERS",null,null,null,null,null,null,null,null,null,null,null,null,null,null,null,null,null,null,""]
["I Davis",null,52,58,45,20,30,null,null,null,null,null,null,null,null,null,null,null,null,""]
["L Castillo",null,35,23,70,20,75,null,null,null,null,null,null,null,null,null,null,null,null,""]
["J Reyes",null,62,56,85,20,70,null,null,null,null,null,null,null,null,null,null,null,null,""]
["D Wright",null,62,71,70,20,70,null,null,null,null,null,null,null,null,null,null,null,null,""]
["R Tejada",null,23,26,65,20,60,null,null,null,null,null,null,null,null,null,null,null,null,{"$f":"IF(O21=\"\",\"\",R21*9/P21)","v":""}]
["A Cora",null,20,26,60,20,60,null,null,null,null,null,null,null,null,null,null,null,null,""]
["OUTFIELDERS"]
["J Bay",null,49,50,65,65,55]
["A Pagan",null,66,55,75,75,60]
["J Francoeur",null,37,44,55,80,50]
["C Beltran",null,47,55,70,85,70]
["C Carter",null,51,48,55,50,40]
["J Feliciano",null,33,27,50,50,35]
[]
[]
[]
[]
[]
[]
[]
[]
[]
[]
[]
[]
[]
[null,null,"AB","H","RBI","Run","HR","3B","2B","SB"]
["PITCHERS",null,0,0,0,0,0,0,0,0]
["J Santana",null,0,0,0,0,0,0,0,0]
["M Pelfrey",1,0,0,0,0,0,0,0,0]
["R Dickey",null,0,0,0,0,0,0,0,0]
["J Niese",null,0,0,0,0,0,0,0,0]
["F Rodriguez",null,0,0,0,0,0,0,0,0]
["H Takahashi",null,0,0,0,0,0,0,0,0]
["P Feliciano",null,0,0,0,0,0,0,0,0]
["E Dessens",null,0,0,0,0,0,0,0,0]
["M Acosta",null,0,0,0,0,0,0,0,0]
["R Valdes",null,0,0,0,0,0,0,0,0]
["F Nieve",null,0,0,0,0,0,0,0,0]
["CATCHERS",null,0,0,0,0,0,0,0,0]
["R Barajas",1,0,0,0,0,0,0,0,0]
["J Thole",null,0,0,0,0,0,0,0,0]
["INFIELDERS",null,0,0,0,0,0,0,0,0]
["I Davis",1,0,0,0,0,0,0,0,0]
["L Castillo",1,0,0,0,0,0,0,0,0]
["J Reyes",1,0,0,0,0,0,0,0,0]
["D Wright",1,0,0,0,0,0,0,0,0]
["R Tejada",null,0,0,0,0,0,0,0,0]
["A Cora",null,0,0,0,0,0,0,0,0]
["OUTFIELDERS",null,0,0,0,0,0,0,0,0]
["J Bay",1,0,0,0,0,0,0,0,0]
["A Pagan",1,0,0,0,0,0,0,0,0]
["J Francoeur",null,0,0,0,0,0,0,0,0]
["C Beltran",1,0,0,0,0,0,0,0,0]
["C Carter",null,0,0,0,0,0,0,0,0]
["J Feliciano",null,0,0,0,0,0,0,0,0]
[null,99,0,0,0,0,0,0,0,0]

{"sheet":"Nationals","index":18,"n_rows":73,"n_cols":406,"rows_kept":73,"cut":false,"hidden":false,"merged":[]}
["PITCHERS",null,"Effectiveness","Stamina",1,"CF","N Morgan",null,1,"L Hernandez",null,null,1,"CF","N Morgan"]
["L Hernandez",null,52,1,2,"2B","C Guzman",null,2,"J Lannan",null,null,2,"2B","C Guzman"]
["J Lannan",null,31,1,3,"3B","R Zimmerman",null,3,"C Stammen",null,null,3,"3B","R Zimmerman"]
["C Stammen",null,36,1,4,"1B","A Dunn",null,4,"L Atilano",null,null,4,"1B","A Dunn"]
["L Atilano",null,37,1,5,"LF","J Willingham",null,null,null,null,null,5,"LF","J Willingham"]
["S Olsen",null,38,2,6,"RF","M Morse",null,null,null,null,null,6,"RF","M Morse"]
["M Capps",null,54,3,7,"C","I Rodriguez",null,null,null,null,null,7,"C","I Rodriguez"]
["T Clippard",null,63,3,8,"SS","I Desmond",null,null,null,null,null,8,"SS","I Desmond"]
["M Batista",null,52,2,9,"P","L Hernandez",null,null,null,null,null,9,"P","M Capps",null,null,null,null,null,null,null,null,null,null,null,null,null,null,null,null,null,null,null,null,null,null,null,null,null,null,null,null,null,null,null,null,null,null,null,null,null,null,null,null,null,null,null,null,null,null,null,null,null,null,null,null,null,null,null,null,null,null,null,null,null,null,null,null,null,null,null,null,null,null,null,null,null,null,null,null,null,null,null,null,null,null,null,null,null,null,null,null,null,null,null,null,null,null,null,null,null,null,null,null,null,null,null,null,null,null,null,null,null,null,null,null,null,null,null,null,null,null,null,null,null,null,null,null,null,null,null,null,null,null,null,null,null,null,null,null,null,null,null,null,null,null,null,null,null,null,null,null,null,null,null,null,null,null,null,null,null,null,null,null,null,null,null,null,null,null,null,null,null,null,null,null,null,null,null,null,null,null,null,null,null,null,null,null,null,null,null,null,null,null,null,null,null,null,null,null,null,null,null,null,null,null,null,null,null,null,null,null,null,null,null,null,null,null,null,null,null,null,null,null,null,null,null,null,null,null,null,null,null,null,null,null,null,null,null,null,null,null,null,null,null,null,null,null,null,null,null,null,null,null,null,null,null,null,null,null,null,null,null,null,null,null,null,null,null,null,null,null,null,null,null,null,null,null,null,null,null,null,null,null,null,null,null,null,null,null,null,null,null,null,null,null,null,null,null,null,null,null,null,null,null,null,null,null,null,null,null,null,null,null,null,null,null,null,null,null,null,null,null,null,null,null,null,null,null,null,null,null,null,null,null,null,null,null,null,null,null,null,null,null,null,null,null,null,null,null,null,null,null,null,null,null,null,null,null,null,null,null,null,null,null,null,null,null,null,null,null,null,null,null,null,null,null,null,null,null,null,null,null,null,null,null,null,null,null,null,null,null,null,null,"T Clippard"]
["S Burnett",null,69,3]
["D Storen",null,58,3,null,null,null,null,null,null,null,null,null,"P","M Capps"]
["S Strasburg",null,75,2]
["CATCHERS",null,"Contact","Power","Speed","Def/Arm","Bunt",null,null,null,null,null,null,null,null,"IP","H","R","K","ERA",null,null,"BB"]
["I Rodriguez",null,53,39,35,65,50,null,null,null,null,null,null,"Starter","L Hernandez",{"$f":"ROUND(6.33333333333333,2)","v":6.33},7,3,3,{"$f":"ROUND(4.2654028436019,2)","v":4.2699999999999996},null,null,2,0,0,0]
["W Nieves",null,17,32,35,60,60,null,null,null,null,null,null,null,"D Storen",{"$f":"ROUND(0.666666666666667,2)","v":0.67},0,0,0,{"$f":"ROUND(0,2)","v":0},null,null,0,0,0,0]
["INFIELDERS",null,null,null,null,null,null,null,null,null,null,null,null,null,"T Clippard",{"$f":"ROUND(1,2)","v":1},0,0,1,{"$f":"ROUND(0,2)","v":0},"W",null,0,0,0,0]
["A Dunn",null,49,77,55,20,60,null,null,null,null,null,null,null,"M Capps",{"$f":"ROUND(1,2)","v":1},1,0,0,{"$f":"ROUND(0,2)","v":0},null,"S",0,0,0,0]
["A Kennedy",null,43,35,65,20,70,null,null,null,null,null,null,null,null,null,null,null,null,{"$f":"IFERROR(IF(O18=\"\",\"\",R18*9/P18),\"INF\")","v":""}]
["I Desmond",null,54,48,60,20,60,null,null,null,null,null,null,null,null,null,null,null,null,""]
["R Zimmerman",null,76,72,50,20,65,null,null,null,null,null,null,null,null,null,null,null,null,""]
["C Guzman",null,62,42,70,20,65,null,null,null,null,null,null,null,null,null,null,null,null,{"$f":"IF(O21=\"\",\"\",R21*9/P21)","v":""}]
["A Gonzalez",null,42,30,60,20,80,null,null,null,null,null,null,null,null,null,null,null,null,""]
["OUTFIELDERS"]
["J Willingham",null,54,62,60,60,50]
["N Morgan",null,46,33,70,70,20]
["M Morse",null,66,74,75,40,75]
["R Bernadina",null,42,47,40,65,30]
["W Harris",null,6,42,50,60,35]
["J Maxwell",null,-16,28,75,60,25]
[]
[]
[]
[]
[]
[]
[]
[]
[]
[]
[]
[]
[]
[null,null,"AB","H","RBI","Run","HR","3B","2B","SB"]
["PITCHERS",null,0,0,0,0,0,0,0,0]
["L Hernandez",1,0,0,0,1,0,0,0,0]
["J Lannan",null,0,0,0,0,0,0,0,0]
["C Stammen",null,0,0,0,0,0,0,0,0]
["L Atilano",null,0,0,0,0,0,0,0,0]
["S Olsen",null,0,0,0,0,0,0,0,0]
["M Capps",1,0,0,0,0,0,0,0,0]
["T Clippard",1,0,0,0,0,0,0,0,0]
["M Batista",null,0,0,0,0,0,0,0,0]
["S Burnett",null,0,0,0,0,0,0,0,0]
["D Storen",1,0,0,0,0,0,0,0,0]
["S Strasburg",null,0,0,0,0,0,0,0,0]
["CATCHERS",null,0,0,0,0,0,0,0,0]
["I Rodriguez",1,3,1,0,0,0,0,0,0]
["W Nieves",null,0,0,0,0,0,0,0,0]
["INFIELDERS",null,0,0,0,0,0,0,0,0]
["A Dunn",1,4,2,2,1,1,0,0,0]
["A Kennedy",1,1,0,0,0,0,0,0,0]
["I Desmond",1,3,0,0,0,0,0,0,0]
["R Zimmerman",1,4,0,0,0,0,0,0,0]
["C Guzman",1,4,1,1,1,0,0,1,0]
["A Gonzalez",null,0,0,0,0,0,0,0,0]
["OUTFIELDERS",null,0,0,0,0,0,0,0,0]
["J Willingham",1,4,1,1,1,1,0,0,0]
["N Morgan",1,4,1,0,0,0,0,1,0]
["M Morse",1,4,0,0,0,0,0,0,0]
["R Bernadina",null,0,0,0,0,0,0,0,0]
["W Harris",null,0,0,0,0,0,0,0,0]
["J Maxwell",null,0,0,0,0,0,0,0,0]
[null,99,0,0,0,0,0,0,0,0]

{"sheet":"Orioles","index":19,"n_rows":73,"n_cols":23,"rows_kept":73,"cut":false,"hidden":false,"merged":[]}
["PITCHERS",null,"Effectiveness","Stamina",1,"2B","B Roberts",null,1,"J Guthrie",null,null,1,"2B","B Roberts"]
["J Guthrie",null,67,1,2,"LF","F Pie",null,2,"K Millwood",null,null,2,"LF","F Pie"]
["K Millwood",null,35,1,3,"1B","T Wigginton",null,3,"B Matusz",null,null,3,"1B","T Wigginton"]
["B Matusz",null,51,1,4,"DH","L Scott",null,4,"B Bergeson",null,null,4,"DH","L Scott"]
["B Bergeson",null,42,1,5,"CF","A Jones",null,null,null,null,null,5,"CF","A Jones"]
["A Simon",null,33,3,6,"RF","N Markakis",null,null,null,null,null,6,"RF","N Markakis"]
["M Albers",null,38,2,7,"3B","M Tejada",null,null,null,null,null,7,"3B","M Tejada"]
["M Hendrickson",null,32,2,8,"C","M Wieters",null,null,null,null,null,8,"C","M Wieters"]
["K Uehara",null,86,3,9,"SS","C Izturis",null,null,null,null,null,9,"SS","C Izturis"]
["W Ohman",null,27,3]
["J Arrieta",null,33,2,null,null,null,null,null,null,null,null,null,"P","K Millwood"]
["C Tillman",null,34,2]
["CATCHERS",null,"Contact","Power","Speed","Def/Arm","Bunt",null,null,null,null,null,null,null,null,"IP","H","R","K","ERA",null,null,"BB"]
["M Wieters",null,43,45,50,70,60,null,null,null,null,null,null,"Starter","K Millwood",null,null,null,null,{"$f":"IFERROR(IF(O14=\"\",\"\",R14*9/P14),\"INF\")","v":"INF"}]
["C Tatum",null,61,33,40,60,55,null,null,null,null,null,null,null,null,null,null,null,null,""]
["INFIELDERS",null,null,null,null,null,null,null,null,null,null,null,null,null,null,null,null,null,null,""]
["T Wigginton",null,43,53,50,35,65,null,null,null,null,null,null,null,null,null,null,null,null,""]
["B Roberts",null,60,48,70,20,75,null,null,null,null,null,null,null,null,null,null,null,null,""]
["C Izturis",null,33,24,60,20,65,null,null,null,null,null,null,null,null,null,null,null,null,""]
["M Tejada",null,54,42,45,20,30,null,null,null,null,null,null,null,null,null,null,null,null,""]
["J Lugo",null,43,26,60,20,60,null,null,null,null,null,null,null,null,null,null,null,null,{"$f":"IF(O21=\"\",\"\",R21*9/P21)","v":""}]
["J Bell",null,24,30,60,20,55,null,null,null,null,null,null,null,null,null,null,null,null,""]
["OUTFIELDERS"]
["F Pie",null,57,53,75,70,60]
["A Jones",null,63,58,65,75,40]
["N Markakis",null,70,57,55,70,45]
["L Scott",null,63,77,40,45,40]
["C Patterson",null,54,51,70,60,70]
["N Reimold",null,20,36,50,60,50]
[]
[]
[]
[]
[]
[]
[]
[]
[]
[]
[]
[]
[]
[null,null,"AB","H","RBI","Run","HR","3B","2B","SB"]
["PITCHERS",null,0,0,0,0,0,0,0,0]
["J Guthrie",null,0,0,0,0,0,0,0,0]
["K Millwood",1,0,0,0,0,0,0,0,0]
["B Matusz",null,0,0,0,0,0,0,0,0]
["B Bergeson",null,0,0,0,0,0,0,0,0]
["A Simon",null,0,0,0,0,0,0,0,0]
["M Albers",null,0,0,0,0,0,0,0,0]
["M Hendrickson",null,0,0,0,0,0,0,0,0]
["K Uehara",null,0,0,0,0,0,0,0,0]
["W Ohman",null,0,0,0,0,0,0,0,0]
["J Arrieta",null,0,0,0,0,0,0,0,0]
["C Tillman",null,0,0,0,0,0,0,0,0]
["CATCHERS",null,0,0,0,0,0,0,0,0]
["M Wieters",1,0,0,0,0,0,0,0,0]
["C Tatum",null,0,0,0,0,0,0,0,0]
["INFIELDERS",null,0,0,0,0,0,0,0,0]
["T Wigginton",1,0,0,0,0,0,0,0,0]
["B Roberts",1,0,0,0,0,0,0,0,0]
["C Izturis",1,0,0,0,0,0,0,0,0]
["M Tejada",1,0,0,0,0,0,0,0,0]
["J Lugo",null,0,0,0,0,0,0,0,0]
["J Bell",null,0,0,0,0,0,0,0,0]
["OUTFIELDERS",null,0,0,0,0,0,0,0,0]
["F Pie",1,0,0,0,0,0,0,0,0]
["A Jones",1,0,0,0,0,0,0,0,0]
["N Markakis",1,0,0,0,0,0,0,0,0]
["L Scott",1,0,0,0,0,0,0,0,0]
["C Patterson",null,0,0,0,0,0,0,0,0]
["N Reimold",null,0,0,0,0,0,0,0,0]
[null,99,0,0,0,0,0,0,0,0]

{"sheet":"Padres","index":20,"n_rows":73,"n_cols":23,"rows_kept":73,"cut":false,"hidden":false,"merged":[]}
["PITCHERS",null,"Effectiveness","Stamina",1,"2B","D Eckstein",null,1,"M Latos",null,null,1,"2B","D Eckstein"]
["M Latos",null,74,1,2,"3B","C Headley",null,2,"C Richard",null,null,2,"3B","C Headley"]
["C Richard",null,45,1,3,"1B","A Gonzalez",null,3,"J Garland",null,null,3,"1B","A Gonzalez"]
["J Garland",null,53,1,4,"LF","S Hairston",null,4,"W LeBlanc",null,null,4,"LF","S Hairston"]
["W LeBlanc",null,43,1,5,"C","Y Torrealba",null,null,null,null,null,5,"C","Y Torrealba"]
["H Bell",null,64,3,6,"RF","W Venable",null,null,null,null,null,6,"RF","W Venable"]
["L Gregerson",null,97,3,7,"SS","J Hairston",null,null,null,null,null,7,"SS","J Hairston"]
["E Mujica",null,88,2,8,"CF","T Gwynn",null,null,null,null,null,8,"CF","T Gwynn"]
["M Adams",null,76,3,9,"P","M Latos",null,null,null,null,null,9,"P","J Garland"]
["J Thatcher",null,95,3]
["K Correia",null,37,2,null,null,null,null,null,null,null,null,null,"P","J Garland"]
["T Stauffer",null,75,2]
["CATCHERS",null,"Contact","Power","Speed","Def/Arm","Bunt",null,null,null,null,null,null,null,null,"IP","H","R","K","ERA",null,null,"BB"]
["Y Torrealba",null,56,46,55,70,65,null,null,null,null,null,null,"Starter","J Garland",null,null,null,null,{"$f":"IFERROR(IF(O14=\"\",\"\",R14*9/P14),\"INF\")","v":"INF"}]
["N Hundley",null,43,54,50,60,50,null,null,null,null,null,null,null,null,null,null,null,null,""]
["INFIELDERS",null,null,null,null,null,null,null,null,null,null,null,null,null,null,null,null,null,null,""]
["A Gonzalez",null,71,72,55,20,25,null,null,null,null,null,null,null,null,null,null,null,null,""]
["D Eckstein",null,53,35,70,20,70,null,null,null,null,null,null,null,null,null,null,null,null,""]
["M Tejada",null,54,53,60,20,45,null,null,null,null,null,null,null,null,null,null,null,null,""]
["E Cabrera",null,20,26,70,20,60,null,null,null,null,null,null,null,null,null,null,null,null,""]
["C Headley",null,52,45,55,20,55,null,null,null,null,null,null,null,null,null,null,null,null,{"$f":"IF(O21=\"\",\"\",R21*9/P21)","v":""}]
["J Hairston",null,21,39,65,20,65,null,null,null,null,null,null,null,null,null,null,null,null,""]
["OUTFIELDERS"]
["S Hairston",null,21,39,65,60,60]
["T Gwynn",null,18,27,65,65,60]
["W Venable",null,41,52,75,70,40]
["C Denorfia",null,56,57,60,50,45]
["R Ludwick",null,22,36,60,60,45]
["M Stairs",null,34,65,30,30,20]
[]
[]
[]
[]
[]
[]
[]
[]
[]
[]
[]
[]
[]
[null,null,"AB","H","RBI","Run","HR","3B","2B","SB"]
["PITCHERS",null,0,0,0,0,0,0,0,0]
["M Latos",null,0,0,0,0,0,0,0,0]
["C Richard",null,0,0,0,0,0,0,0,0]
["J Garland",1,0,0,0,0,0,0,0,0]
["W LeBlanc",null,0,0,0,0,0,0,0,0]
["H Bell",null,0,0,0,0,0,0,0,0]
["L Gregerson",null,0,0,0,0,0,0,0,0]
["E Mujica",null,0,0,0,0,0,0,0,0]
["M Adams",null,0,0,0,0,0,0,0,0]
["J Thatcher",null,0,0,0,0,0,0,0,0]
["K Correia",null,0,0,0,0,0,0,0,0]
["T Stauffer",null,0,0,0,0,0,0,0,0]
["CATCHERS",null,0,0,0,0,0,0,0,0]
["Y Torrealba",1,0,0,0,0,0,0,0,0]
["N Hundley",null,0,0,0,0,0,0,0,0]
["INFIELDERS",null,0,0,0,0,0,0,0,0]
["A Gonzalez",1,0,0,0,0,0,0,0,0]
["D Eckstein",1,0,0,0,0,0,0,0,0]
["M Tejada",null,0,0,0,0,0,0,0,0]
["E Cabrera",null,0,0,0,0,0,0,0,0]
["C Headley",1,0,0,0,0,0,0,0,0]
["J Hairston",1,0,0,0,0,0,0,0,0]
["OUTFIELDERS",null,0,0,0,0,0,0,0,0]
["S Hairston",1,0,0,0,0,0,0,0,0]
["T Gwynn",1,0,0,0,0,0,0,0,0]
["W Venable",1,0,0,0,0,0,0,0,0]
["C Denorfia",null,0,0,0,0,0,0,0,0]
["R Ludwick",null,0,0,0,0,0,0,0,0]
["M Stairs",null,0,0,0,0,0,0,0,0]
[null,99,0,0,0,0,0,0,0,0]

{"sheet":"Phillies","index":21,"n_rows":73,"n_cols":23,"rows_kept":73,"cut":false,"hidden":false,"merged":[]}
["PITCHERS",null,"Effectiveness","Stamina",1,"CF","S Victorino",null,1,"R Halladay",null,null,1,"CF","S Victorino"]
["R Halladay",null,78,1,2,"3B","P Polanco",null,2,"C Hamels",null,null,2,"3B","P Polanco"]
["C Hamels",null,66,1,3,"2B","C Utley",null,3,"K Kendrick",null,null,3,"2B","C Utley"]
["K Kendrick",null,48,1,4,"1B","R Howard",null,4,"J Moyer",null,null,4,"1B","R Howard"]
["J Moyer",null,73,1,5,"LF","J Werth",null,null,null,null,null,5,"LF","J Werth"]
["B Lidge",null,61,3,6,"C","C Ruiz",null,null,null,null,null,6,"C","C Ruiz"]
["C Durbin",null,54,3,7,"RF","R Ibanez",null,null,null,null,null,7,"RF","R Ibanez"]
["J Contreras",null,62,2,8,"SS","J Rollins",null,null,null,null,null,8,"SS","J Rollins"]
["R Madson",null,78,3,9,"P","R Halladay",null,null,null,null,null,9,"P","K Kendrick"]
["J Romero",null,26,3]
["J Blanton",null,44,2,null,null,null,null,null,null,null,null,null,"P","K Kendrick"]
["D Herndon",null,27,2]
["CATCHERS",null,"Contact","Power","Speed","Def/Arm","Bunt",null,null,null,null,null,null,null,null,"IP","H","R","K","ERA",null,null,"BB"]
["C Ruiz",null,73,59,60,70,70,null,null,null,null,null,null,"Starter","K Kendrick",null,null,null,null,{"$f":"IFERROR(IF(O14=\"\",\"\",R14*9/P14),\"INF\")","v":"INF"}]
["B Scneider",null,38,47,50,60,40,null,null,null,null,null,null,null,null,null,null,null,null,""]
["INFIELDERS",null,null,null,null,null,null,null,null,null,null,null,null,null,null,null,null,null,null,""]
["R Howard",null,58,71,55,20,30,null,null,null,null,null,null,null,null,null,null,null,null,""]
["C Utley",null,58,59,70,20,65,null,null,null,null,null,null,null,null,null,null,null,null,""]
["J Rollins",null,40,45,70,20,75,null,null,null,null,null,null,null,null,null,null,null,null,""]
["P Polanco",null,71,47,65,20,75,null,null,null,null,null,null,null,null,null,null,null,null,""]
["W Valdez",null,48,42,75,20,55,null,null,null,null,null,null,null,null,null,null,null,null,{"$f":"IF(O21=\"\",\"\",R21*9/P21)","v":""}]
["G Dobbs",null,13,36,40,20,60,null,null,null,null,null,null,null,null,null,null,null,null,""]
["OUTFIELDERS"]
["R Ibanez",null,58,59,50,55,55]
["S Victorino",null,49,56,80,75,75]
["J Werth",null,70,76,65,70,45]
["B Francisco",null,54,58,60,60,50]
["R Gload",null,61,67,55,55,60]
["D Brown",null,21,41,70,60,60]
[]
[]
[]
[]
[]
[]
[]
[]
[]
[]
[]
[]
[]
[null,null,"AB","H","RBI","Run","HR","3B","2B","SB"]
["PITCHERS",null,0,0,0,0,0,0,0,0]
["R Halladay",null,0,0,0,0,0,0,0,0]
["C Hamels",null,0,0,0,0,0,0,0,0]
["K Kendrick",1,0,0,0,0,0,0,0,0]
["J Moyer",null,0,0,0,0,0,0,0,0]
["B Lidge",null,0,0,0,0,0,0,0,0]
["C Durbin",null,0,0,0,0,0,0,0,0]
["J Contreras",null,0,0,0,0,0,0,0,0]
["R Madson",null,0,0,0,0,0,0,0,0]
["J Romero",null,0,0,0,0,0,0,0,0]
["J Blanton",null,0,0,0,0,0,0,0,0]
["D Herndon",null,0,0,0,0,0,0,0,0]
["CATCHERS",null,0,0,0,0,0,0,0,0]
["C Ruiz",1,0,0,0,0,0,0,0,0]
["B Scneider",null,0,0,0,0,0,0,0,0]
["INFIELDERS",null,0,0,0,0,0,0,0,0]
["R Howard",1,0,0,0,0,0,0,0,0]
["C Utley",1,0,0,0,0,0,0,0,0]
["J Rollins",1,0,0,0,0,0,0,0,0]
["P Polanco",1,0,0,0,0,0,0,0,0]
["W Valdez",null,0,0,0,0,0,0,0,0]
["G Dobbs",null,0,0,0,0,0,0,0,0]
["OUTFIELDERS",null,0,0,0,0,0,0,0,0]
["R Ibanez",1,0,0,0,0,0,0,0,0]
["S Victorino",1,0,0,0,0,0,0,0,0]
["J Werth",1,0,0,0,0,0,0,0,0]
["B Francisco",null,0,0,0,0,0,0,0,0]
["R Gload",null,0,0,0,0,0,0,0,0]
["D Brown",null,0,0,0,0,0,0,0,0]
[null,99,0,0,0,0,0,0,0,0]

{"sheet":"Pirates","index":22,"n_rows":73,"n_cols":406,"rows_kept":73,"cut":false,"hidden":false,"merged":[]}
["PITCHERS",null,"Effectiveness","Stamina",1,"CF","A McCutchen",null,1,"P Maholm",null,null,1,"CF","A McCutchen"]
["P Maholm",null,30,1,2,"LF","J Tabata",null,2,"Z Duke",null,null,2,"LF","J Tabata"]
["Z Duke",null,22,1,3,"2B","N Walker",null,3,"J Karstens",null,null,3,"2B","N Walker"]
["J Karstens",null,45,1,4,"1B","G Jones",null,4,"R Ohlendorf",null,null,4,"1B","G Jones"]
["R Ohlendorf",null,47,1,5,"C","R Doumit",null,null,null,null,null,5,"C","R Doumit"]
["O Dotel",null,55,3,6,"3B","P Alvarez",null,null,null,null,null,6,"3B","P Alvarez"]
["E Meek",null,77,3,7,"RF","L Milledge",null,null,null,null,null,7,"RF","L Milledge"]
["J Hanrahan",null,63,3,8,"SS","R Cedeno",null,null,null,null,null,8,"SS","R Cedeno"]
["D Carrasco",null,55,2,9,"P","P Maholm",null,null,null,null,null,9,"P","Z Duke",null,null,null,null,null,null,null,null,null,null,null,null,null,null,null,null,null,null,null,null,null,null,null,null,null,null,null,null,null,null,null,null,null,null,null,null,null,null,null,null,null,null,null,null,null,null,null,null,null,null,null,null,null,null,null,null,null,null,null,null,null,null,null,null,null,null,null,null,null,null,null,null,null,null,null,null,null,null,null,null,null,null,null,null,null,null,null,null,null,null,null,null,null,null,null,null,null,null,null,null,null,null,null,null,null,null,null,null,null,null,null,null,null,null,null,null,null,null,null,null,null,null,null,null,null,null,null,null,null,null,null,null,null,null,null,null,null,null,null,null,null,null,null,null,null,null,null,null,null,null,null,null,null,null,null,null,null,null,null,null,null,null,null,null,null,null,null,null,null,null,null,null,null,null,null,null,null,null,null,null,null,null,null,null,null,null,null,null,null,null,null,null,null,null,null,null,null,null,null,null,null,null,null,null,null,null,null,null,null,null,null,null,null,null,null,null,null,null,null,null,null,null,null,null,null,null,null,null,null,null,null,null,null,null,null,null,null,null,null,null,null,null,null,null,null,null,null,null,null,null,null,null,null,null,null,null,null,null,null,null,null,null,null,null,null,null,null,null,null,null,null,null,null,null,null,null,null,null,null,null,null,null,null,null,null,null,null,null,null,null,null,null,null,null,null,null,null,null,null,null,null,null,null,null,null,null,null,null,null,null,null,null,null,null,null,null,null,null,null,null,null,null,null,null,null,null,null,null,null,null,null,null,null,null,null,null,null,null,null,null,null,null,null,null,null,null,null,null,null,null,null,null,null,null,null,null,null,null,null,null,null,null,null,null,null,null,null,null,null,null,null,null,null,null,null,null,null,null,null,null,null,null,null,null,null,null,null,null,null,null,"J Davis"]
["J Lopez",null,39,3]
["C Morton",null,15,2,null,null,null,null,null,null,null,null,null,"P","Z Duke"]
["B Burres",null,34,2]
["CATCHERS",null,"Contact","Power","Speed","Def/Arm","Bunt",null,null,null,null,null,null,null,null,"IP","H","R","K","ERA",null,null,"BB"]
["R Doumit",null,44,51,35,65,40,null,null,null,null,null,null,"Starter","Z Duke",null,null,null,null,{"$f":"IFERROR(IF(O14=\"\",\"\",R14*9/P14),\"INF\")","v":"INF"},null,null,null,null,0,0]
["C Snyder",null,-2,30,40,60,60,null,null,null,null,null,null,null,null,null,null,null,null,"",null,null,null,null,0,0]
["INFIELDERS",null,null,null,null,null,null,null,null,null,null,null,null,null,null,null,null,null,null,"",null,null,null,null,0,0]
["G Jones",null,42,53,25,20,45,null,null,null,null,null,null,null,null,null,null,null,null,""]
["N Walker",null,70,62,35,20,60,null,null,null,null,null,null,null,null,null,null,null,null,""]
["R Cedeno",null,47,46,60,20,65,null,null,null,null,null,null,null,null,null,null,null,null,""]
["P Alvarez",null,47,62,25,20,15,null,null,null,null,null,null,null,null,null,null,null,null,""]
["A LaRoche",null,19,27,60,20,55,null,null,null,null,null,null,null,null,null,null,null,null,{"$f":"IF(O21=\"\",\"\",R21*9/P21)","v":""}]
["A Iwamura",null,6,23,55,20,65,null,null,null,null,null,null,null,null,null,null,null,null,""]
["B Crosby",null,29,29,70,20,80]
["OUTFIELDERS"]
["J Tabata",null,71,50,75,70,60]
["A McCutchen",null,64,60,60,60,70]
["L Milledge",null,59,46,70,50,60]
["D Young",null,36,53,55,60,40]
["R Church",null,6,23,60,65,60]
[]
[]
[]
[]
[]
[]
[]
[]
[]
[]
[]
[]
[]
[null,null,"AB","H","RBI","Run","HR","3B","2B","SB"]
["PITCHERS",null,0,0,0,0,0,0,0,0]
["P Maholm",null,0,0,0,0,0,0,0,0]
["Z Duke",1,0,0,0,0,0,0,0,0]
["J Karstens",null,0,0,0,0,0,0,0,0]
["R Ohlendorf",null,0,0,0,0,0,0,0,0]
["O Dotel",null,0,0,0,0,0,0,0,0]
["E Meek",null,0,0,0,0,0,0,0,0]
["J Hanrahan",null,0,0,0,0,0,0,0,0]
["D Carrasco",null,0,0,0,0,0,0,0,0]
["J Lopez",null,0,0,0,0,0,0,0,0]
["C Morton",null,0,0,0,0,0,0,0,0]
["B Burres",null,0,0,0,0,0,0,0,0]
["CATCHERS",null,0,0,0,0,0,0,0,0]
["R Doumit",1,0,0,0,0,0,0,0,0]
["C Snyder",null,0,0,0,0,0,0,0,0]
["INFIELDERS",null,0,0,0,0,0,0,0,0]
["G Jones",1,0,0,0,0,0,0,0,0]
["N Walker",1,0,0,0,0,0,0,0,0]
["R Cedeno",1,0,0,0,0,0,0,0,0]
["P Alvarez",1,0,0,0,0,0,0,0,0]
["A LaRoche",null,0,0,0,0,0,0,0,0]
["A Iwamura",null,0,0,0,0,0,0,0,0]
["B Crosby",null,0,0,0,0,0,0,0,0]
["OUTFIELDERS",null,0,0,0,0,0,0,0,0]
["J Tabata",1,0,0,0,0,0,0,0,0]
["A McCutchen",1,0,0,0,0,0,0,0,0]
["L Milledge",1,0,0,0,0,0,0,0,0]
["D Young",null,0,0,0,0,0,0,0,0]
["R Church",null,0,0,0,0,0,0,0,0]
[null,99,0,0,0,0,0,0,0,0]

{"sheet":"Rangers","index":23,"n_rows":73,"n_cols":23,"rows_kept":73,"cut":false,"hidden":false,"merged":[]}
["PITCHERS",null,"Effectiveness","Stamina",1,"SS","E Andrus",null,1,"C Lee",null,null,1,"SS","E Andrus"]
["C Lee",null,77,1,2,"3B","M Young",null,2,"C Wilson",null,null,2,"3B","M Young"]
["C Wilson",null,60,1,3,"CF","J Hamilton",null,3,"C Lewis",null,null,3,"CF","J Hamilton"]
["C Lewis",null,65,1,4,"DH","V Guerrero",null,4,"T Hunter",null,null,4,"DH","V Guerrero"]
["T Hunter",null,60,1,5,"LF","N Cruz",null,null,null,null,null,5,"LF","N Cruz"]
["N Feliz",null,93,3,6,"2B","I Kinsler",null,null,null,null,null,6,"2B","I Kinsler"]
["D O'Day",null,92,3,7,"RF","D Murphy",null,null,null,null,null,7,"RF","D Murphy"]
["D Oliver",null,72,3,8,"C","B Molina",null,null,null,null,null,8,"C","B Molina"]
["F Francisco",null,57,3,9,"1B","M Moreland",null,null,null,null,null,9,"1B","M Moreland"]
["A Ogando",null,70,3]
["M Harrison",null,35,2,null,null,null,null,null,null,null,null,null,"P","C Lee"]
["S Feldman",null,27,2]
["CATCHERS",null,"Contact","Power","Speed","Def/Arm","Bunt",null,null,null,null,null,null,null,null,"IP","H","R","K","ERA",null,null,"BB"]
["B Molina",null,38,34,25,75,60,null,null,null,null,null,null,"Starter","C Lee",null,null,null,null,{"$f":"IFERROR(IF(O14=\"\",\"\",R14*9/P14),\"INF\")","v":"INF"}]
["M Treanor",null,22,32,45,60,55,null,null,null,null,null,null,null,null,null,null,null,null,""]
["INFIELDERS",null,null,null,null,null,null,null,null,null,null,null,null,null,null,null,null,null,null,""]
["M Moreland",null,47,64,40,20,45,null,null,null,null,null,null,null,null,null,null,null,null,""]
["I Kinsler",null,64,52,70,20,65,null,null,null,null,null,null,null,null,null,null,null,null,""]
["E Andrus",null,52,30,80,20,65,null,null,null,null,null,null,null,null,null,null,null,null,""]
["M Young",null,63,59,65,20,70,null,null,null,null,null,null,null,null,null,null,null,null,""]
["A Blanco",null,59,40,65,20,65,null,null,null,null,null,null,null,null,null,null,null,null,{"$f":"IF(O21=\"\",\"\",R21*9/P21)","v":""}]
["J Smoak",null,21,41,40,20,35]
["J Cantu",null,35,35,55,45,55,null,null,null,null,null,null,null,null,null,null,null,null,""]
["OUTFIELDERS"]
["D Murphy",null,67,60,60,60,55]
["J Hamilton",null,105,97,70,85,50]
["N Cruz",null,82,85,70,75,45]
["J Francoeur",null,50,68,50,80,40]
["V Guerrero",null,72,69,55,60,30]
[]
[]
[]
[]
[]
[]
[]
[]
[]
[]
[]
[]
[]
[null,null,"AB","H","RBI","Run","HR","3B","2B","SB"]
["PITCHERS",null,0,0,0,0,0,0,0,0]
["C Lee",1,0,0,0,0,0,0,0,0]
["C Wilson",null,0,0,0,0,0,0,0,0]
["C Lewis",null,0,0,0,0,0,0,0,0]
["T Hunter",null,0,0,0,0,0,0,0,0]
["N Feliz",null,0,0,0,0,0,0,0,0]
["D O'Day",null,0,0,0,0,0,0,0,0]
["D Oliver",null,0,0,0,0,0,0,0,0]
["F Francisco",null,0,0,0,0,0,0,0,0]
["A Ogando",null,0,0,0,0,0,0,0,0]
["M Harrison",null,0,0,0,0,0,0,0,0]
["S Feldman",null,0,0,0,0,0,0,0,0]
["CATCHERS",null,0,0,0,0,0,0,0,0]
["B Molina",1,0,0,0,0,0,0,0,0]
["M Treanor",null,0,0,0,0,0,0,0,0]
["INFIELDERS",null,0,0,0,0,0,0,0,0]
["M Moreland",1,0,0,0,0,0,0,0,0]
["I Kinsler",1,0,0,0,0,0,0,0,0]
["E Andrus",1,0,0,0,0,0,0,0,0]
["M Young",1,0,0,0,0,0,0,0,0]
["A Blanco",null,0,0,0,0,0,0,0,0]
["J Smoak",null,0,0,0,0,0,0,0,0]
["J Cantu",null,0,0,0,0,0,0,0,0]
["OUTFIELDERS",null,0,0,0,0,0,0,0,0]
["D Murphy",1,0,0,0,0,0,0,0,0]
["J Hamilton",1,0,0,0,0,0,0,0,0]
["N Cruz",1,0,0,0,0,0,0,0,0]
["J Francoeur",null,0,0,0,0,0,0,0,0]
["V Guerrero",1,0,0,0,0,0,0,0,0]
[null,99,0,0,0,0,0,0,0,0]

{"sheet":"Rays","index":24,"n_rows":73,"n_cols":23,"rows_kept":73,"cut":false,"hidden":false,"merged":[]}
["PITCHERS",null,"Effectiveness","Stamina",1,"SS","J Bartlett",null,1,"D Price",null,null,1,"SS","J Bartlett"]
["D Price",null,64,1,2,"CF","B Upton",null,2,"M Garza",null,null,2,"CF","B Upton"]
["M Garza",null,59,1,3,"LF","C Crawford",null,3,"J Shields",null,null,3,"LF","C Crawford"]
["J Shields",null,40,1,4,"3B","E Longoria",null,4,"J Niemann",null,null,4,"3B","E Longoria"]
["J Niemann",null,58,1,5,"1B","C Pena",null,null,null,null,null,5,"1B","C Pena"]
["R Soriano",null,100,3,6,"RF","B Zobrist",null,null,null,null,null,6,"RF","B Zobrist"]
["L Cormier",null,23,3,7,"C","J Jaso",null,null,null,null,null,7,"C","J Jaso"]
["J Benoit",null,111,3,8,"2B","R Brignac",null,null,null,null,null,8,"2B","R Brignac"]
["D Wheeler",null,75,3,9,"DH","M Joyce",null,null,null,null,null,9,"DH","M Joyce"]
["R Choate",null,55,3]
["W Davis",null,50,2,null,null,null,null,null,null,null,null,null,"P","J Shields"]
["G Balfour",null,74,3]
["CATCHERS",null,"Contact","Power","Speed","Def/Arm","Bunt",null,null,null,null,null,null,null,null,"IP","H","R","K","ERA",null,null,"BB"]
["J Jaso",null,51,26,30,50,40,null,null,null,null,null,null,"Starter","J Shields",null,null,null,null,{"$f":"IFERROR(IF(O14=\"\",\"\",R14*9/P14),\"INF\")","v":"INF"}]
["K Shoppach",null,13,38,50,60,40,null,null,null,null,null,null,null,null,null,null,null,null,""]
["INFIELDERS",null,null,null,null,null,null,null,null,null,null,null,null,null,null,null,null,null,null,""]
["C Pena",null,13,51,75,20,60,null,null,null,null,null,null,null,null,null,null,null,null,""]
["S Rodriguez",null,44,49,70,20,60,null,null,null,null,null,null,null,null,null,null,null,null,""]
["J Bartlett",null,46,40,80,20,80,null,null,null,null,null,null,null,null,null,null,null,null,""]
["E Longoria",null,69,71,55,20,60,null,null,null,null,null,null,null,null,null,null,null,null,""]
["W Aybar",null,33,39,70,20,35,null,null,null,null,null,null,null,null,null,null,null,null,{"$f":"IF(O21=\"\",\"\",R21*9/P21)","v":""}]
["R Brignac",null,47,47,40,20,20,null,null,null,null,null,null,null,null,null,null,null,null,""]
["OUTFIELDERS"]
["C Crawford",null,76,69,70,70,70]
["B Upton",null,37,55,92,55,80]
["B Zobrist",null,37,41,60,75,40]
["M Joyce",null,39,65,50,80,50]
["G Kapler",null,21,28,30,60,40]
["R Baldelli",null,20,45,95,60,60]
[]
[]
[]
[]
[]
[]
[]
[]
[]
[]
[]
[]
[]
[null,null,"AB","H","RBI","Run","HR","3B","2B","SB"]
["PITCHERS",null,0,0,0,0,0,0,0,0]
["D Price",null,0,0,0,0,0,0,0,0]
["M Garza",null,0,0,0,0,0,0,0,0]
["J Shields",1,0,0,0,0,0,0,0,0]
["J Niemann",null,0,0,0,0,0,0,0,0]
["R Soriano",null,0,0,0,0,0,0,0,0]
["L Cormier",null,0,0,0,0,0,0,0,0]
["J Benoit",null,0,0,0,0,0,0,0,0]
["D Wheeler",null,0,0,0,0,0,0,0,0]
["R Choate",null,0,0,0,0,0,0,0,0]
["W Davis",null,0,0,0,0,0,0,0,0]
["G Balfour",null,0,0,0,0,0,0,0,0]
["CATCHERS",null,0,0,0,0,0,0,0,0]
["J Jaso",1,0,0,0,0,0,0,0,0]
["K Shoppach",null,0,0,0,0,0,0,0,0]
["INFIELDERS",null,0,0,0,0,0,0,0,0]
["C Pena",1,0,0,0,0,0,0,0,0]
["S Rodriguez",null,0,0,0,0,0,0,0,0]
["J Bartlett",1,0,0,0,0,0,0,0,0]
["E Longoria",1,0,0,0,0,0,0,0,0]
["W Aybar",null,0,0,0,0,0,0,0,0]
["R Brignac",1,0,0,0,0,0,0,0,0]
["OUTFIELDERS",null,0,0,0,0,0,0,0,0]
["C Crawford",1,0,0,0,0,0,0,0,0]
["B Upton",1,0,0,0,0,0,0,0,0]
["B Zobrist",1,0,0,0,0,0,0,0,0]
["M Joyce",1,0,0,0,0,0,0,0,0]
["G Kapler",null,0,0,0,0,0,0,0,0]
["R Baldelli",null,0,0,0,0,0,0,0,0]
[null,99,0,0,0,0,0,0,0,0]

{"sheet":"RedSox","index":25,"n_rows":73,"n_cols":23,"rows_kept":73,"cut":false,"hidden":false,"merged":[]}
["PITCHERS",null,"Effectiveness","Stamina",1,"CF","M Scutaro",null,1,"J Lester",null,null,1,"CF","M Scutaro"]
["J Lester",null,63,1,2,"2B","D Pedroia",null,2,"J Lackey",null,null,2,"2B","D Pedroia"]
["J Lackey",null,44,1,3,"C","V Martinez",null,3,"C Buchholz",null,null,3,"C","V Martinez"]
["C Buchholz",null,63,1,4,"1B","K Youkilis",null,4,"D Matsuzaka",null,null,4,"1B","K Youkilis"]
["D Matsuzaka",null,48,1,5,"DH","D Ortiz",null,null,null,null,null,5,"DH","D Ortiz"]
["J Papelbon",null,57,3,6,"3B","A Beltre",null,null,null,null,null,6,"3B","A Beltre"]
["D Bard",null,81,3,7,"RF","J Drew",null,null,null,null,null,7,"RF","J Drew"]
["H Okajima",null,17,3,8,"LF","D McDonald",null,null,null,null,null,8,"LF","D McDonald"]
["M Delcarmen",null,47,3,9,"SS","J Lowrie",null,null,null,null,null,9,"SS","J Lowrie"]
["R Ramirez",null,55,3]
["S Atchison",null,56,2,null,null,null,null,null,null,null,null,null,"P","C Buchholz"]
["T Wakefield",null,50,2]
["CATCHERS",null,"Contact","Power","Speed","Def/Arm","Bunt",null,null,null,null,null,null,null,null,"IP","H","R","K","ERA",null,null,"BB"]
["V Martinez",null,73,69,40,55,35,null,null,null,null,null,null,"Starter","C Buchholz",null,null,null,null,{"$f":"IFERROR(IF(O14=\"\",\"\",R14*9/P14),\"INF\")","v":"INF"}]
["J Varitek",null,34,65,35,65,60,null,null,null,null,null,null,null,null,null,null,null,null,""]
["INFIELDERS",null,null,null,null,null,null,null,null,null,null,null,null,null,null,null,null,null,null,""]
["K Youkilis",null,76,83,50,20,60,null,null,null,null,null,null,null,null,null,null,null,null,""]
["D Pedroia",null,65,69,70,20,75,null,null,null,null,null,null,null,null,null,null,null,null,""]
["M Scutaro",null,58,48,65,20,70,null,null,null,null,null,null,null,null,null,null,null,null,""]
["A Beltre",null,84,81,60,20,40,null,null,null,null,null,null,null,null,null,null,null,null,""]
["D Ortiz",null,55,76,30,20,25]
["M Lowell",null,38,43,25,20,50,null,null,null,null,null,null,null,null,null,null,null,null,{"$f":"IF(O22=\"\",\"\",R22*9/P22)","v":""}]
["J Lowrie",null,65,75,65,20,60,null,null,null,null,null,null,null,null,null,null,null,null,""]
["OUTFIELDERS"]
["D Nava",null,39,42,60,70,60]
["D McDonald",null,55,56,70,65,55]
["J Drew",null,47,60,55,60,55]
["M Cameron",null,49,50,70,75,60]
["R Kalish",null,45,51,60,75,45]
[]
[]
[]
[]
[]
[]
[]
[]
[]
[]
[]
[]
[]
[null,null,"AB","H","RBI","Run","HR","3B","2B","SB"]
["PITCHERS",null,0,0,0,0,0,0,0,0]
["J Lester",null,0,0,0,0,0,0,0,0]
["J Lackey",null,0,0,0,0,0,0,0,0]
["C Buchholz",1,0,0,0,0,0,0,0,0]
["D Matsuzaka",null,0,0,0,0,0,0,0,0]
["J Papelbon",null,0,0,0,0,0,0,0,0]
["D Bard",null,0,0,0,0,0,0,0,0]
["H Okajima",null,0,0,0,0,0,0,0,0]
["M Delcarmen",null,0,0,0,0,0,0,0,0]
["R Ramirez",null,0,0,0,0,0,0,0,0]
["S Atchison",null,0,0,0,0,0,0,0,0]
["T Wakefield",null,0,0,0,0,0,0,0,0]
["CATCHERS",null,0,0,0,0,0,0,0,0]
["V Martinez",1,0,0,0,0,0,0,0,0]
["J Varitek",null,0,0,0,0,0,0,0,0]
["INFIELDERS",null,0,0,0,0,0,0,0,0]
["K Youkilis",1,0,0,0,0,0,0,0,0]
["D Pedroia",1,0,0,0,0,0,0,0,0]
["M Scutaro",1,0,0,0,0,0,0,0,0]
["A Beltre",1,0,0,0,0,0,0,0,0]
["D Ortiz",1,0,0,0,0,0,0,0,0]
["M Lowell",null,0,0,0,0,0,0,0,0]
["J Lowrie",1,0,0,0,0,0,0,0,0]
["OUTFIELDERS",null,0,0,0,0,0,0,0,0]
["D Nava",null,0,0,0,0,0,0,0,0]
["D McDonald",1,0,0,0,0,0,0,0,0]
["J Drew",1,0,0,0,0,0,0,0,0]
["M Cameron",null,0,0,0,0,0,0,0,0]
["R Kalish",null,0,0,0,0,0,0,0,0]
[null,99,0,0,0,0,0,0,0,0]

{"sheet":"Reds","index":26,"n_rows":73,"n_cols":23,"rows_kept":73,"cut":false,"hidden":false,"merged":[]}
["PITCHERS",null,"Effectiveness","Stamina",1,"2B","B Phillips",null,1,"B Arroyo",null,null,1,"2B","B Phillips"]
["B Arroyo",null,69,1,2,"SS","O Cabrera",null,2,"J Cueto",null,null,2,"SS","O Cabrera"]
["J Cueto",null,57,1,3,"1B","J Votto",null,3,"M Leake",null,null,3,"1B","J Votto"]
["M Leake",null,37,1,4,"3B","S Rolen",null,4,"H Bailey",null,null,4,"3B","S Rolen"]
["H Bailey",null,48,1,5,"LF","J Gomes",null,null,null,null,null,5,"LF","J Gomes"]
["F Cordero",null,43,3,6,"RF","J Bruce",null,null,null,null,null,6,"RF","J Bruce"]
["N Masset",null,58,3,7,"CF","D Stubbs",null,null,null,null,null,7,"CF","D Stubbs"]
["L Ondrusek",null,66,3,8,"C","R Hernandez",null,null,null,null,null,8,"C","R Hernandez"]
["A Rhodes",null,80,3,9,"P","B Arroyo",null,null,null,null,null,9,"P","J Cueto"]
["J Smith",null,52,3]
["A Harang",null,29,2,null,null,null,null,null,null,null,null,null,"P","J Cueto"]
["E Volquez",null,36,2]
["CATCHERS",null,"Contact","Power","Speed","Def/Arm","Bunt",null,null,null,null,null,null,null,null,"IP","H","R","K","ERA",null,null,"BB"]
["R Hernandez",null,70,56,60,70,65,null,null,null,null,null,null,"Starter","J Cueto",null,null,null,null,{"$f":"IFERROR(IF(O14=\"\",\"\",R14*9/P14),\"INF\")","v":"INF"}]
["R Hanigan",null,72,56,60,60,50,null,null,null,null,null,null,null,null,null,null,null,null,""]
["INFIELDERS",null,null,null,null,null,null,null,null,null,null,null,null,null,null,null,null,null,null,""]
["J Votto",null,85,90,55,20,40,null,null,null,null,null,null,null,null,null,null,null,null,""]
["B Phillips",null,58,56,75,20,70,null,null,null,null,null,null,null,null,null,null,null,null,""]
["O Cabrera",null,51,41,65,20,75,null,null,null,null,null,null,null,null,null,null,null,null,""]
["S Rolen",null,63,69,50,20,60,null,null,null,null,null,null,null,null,null,null,null,null,""]
["P Janish",null,49,47,70,20,55,null,null,null,null,null,null,null,null,null,null,null,null,{"$f":"IF(O21=\"\",\"\",R21*9/P21)","v":""}]
["M Cairo",null,66,52,55,20,60,null,null,null,null,null,null,null,null,null,null,null,null,""]
["J Francisco",null,57,46,65,20,60]
["OUTFIELDERS"]
["J Gomes",null,53,56,55,40,55]
["D Stubbs",null,47,59,70,65,65]
["J Bruce",null,61,69,65,70,55]
["C Heisey",null,46,57,55,60,60]
["L Nix",null,67,61,60,65,60]
[]
[]
[]
[]
[]
[]
[]
[]
[]
[]
[]
[]
[]
[null,null,"AB","H","RBI","Run","HR","3B","2B","SB"]
["PITCHERS",null,0,0,0,0,0,0,0,0]
["B Arroyo",null,0,0,0,0,0,0,0,0]
["J Cueto",1,0,0,0,0,0,0,0,0]
["M Leake",null,0,0,0,0,0,0,0,0]
["H Bailey",null,0,0,0,0,0,0,0,0]
["F Cordero",null,0,0,0,0,0,0,0,0]
["N Masset",null,0,0,0,0,0,0,0,0]
["L Ondrusek",null,0,0,0,0,0,0,0,0]
["A Rhodes",null,0,0,0,0,0,0,0,0]
["J Smith",null,0,0,0,0,0,0,0,0]
["A Harang",null,0,0,0,0,0,0,0,0]
["E Volquez",null,0,0,0,0,0,0,0,0]
["CATCHERS",null,0,0,0,0,0,0,0,0]
["R Hernandez",1,0,0,0,0,0,0,0,0]
["R Hanigan",null,0,0,0,0,0,0,0,0]
["INFIELDERS",null,0,0,0,0,0,0,0,0]
["J Votto",1,0,0,0,0,0,0,0,0]
["B Phillips",1,0,0,0,0,0,0,0,0]
["O Cabrera",1,0,0,0,0,0,0,0,0]
["S Rolen",1,0,0,0,0,0,0,0,0]
["P Janish",null,0,0,0,0,0,0,0,0]
["M Cairo",null,0,0,0,0,0,0,0,0]
["J Francisco",null,0,0,0,0,0,0,0,0]
["OUTFIELDERS",null,0,0,0,0,0,0,0,0]
["J Gomes",1,0,0,0,0,0,0,0,0]
["D Stubbs",1,0,0,0,0,0,0,0,0]
["J Bruce",1,0,0,0,0,0,0,0,0]
["C Heisey",null,0,0,0,0,0,0,0,0]
["L Nix",null,0,0,0,0,0,0,0,0]
[null,99,0,0,0,0,0,0,0,0]

{"sheet":"Rockies","index":27,"n_rows":73,"n_cols":23,"rows_kept":73,"cut":false,"hidden":false,"merged":[]}
["PITCHERS",null,"Effectiveness","Stamina",1,"2B","J Herrera",null,1,"U Jimenez",null,null,1,"2B","J Herrera"]
["U Jimenez",null,68,1,2,"CF","D Fowler",null,2,"J Hammel",null,null,2,"CF","D Fowler"]
["J Hammel",null,46,1,3,"RF","C Gonzalez",null,3,"J Chacin",null,null,3,"RF","C Gonzalez"]
["J Chacin",null,57,1,4,"SS","T Tulowitzki",null,4,"J De La Rosa",null,null,4,"SS","T Tulowitzki"]
["J De La Rosa",null,53,1,5,"3B","M Mora",null,null,null,null,null,5,"3B","M Mora"]
["H Street",null,77,3,6,"1B","T Helton",null,null,null,null,null,6,"1B","T Helton"]
["M Belisle",null,74,3,7,"LF","R Spilborghs",null,null,null,null,null,7,"LF","R Spilborghs"]
["M Corpas",null,44,3,8,"C","M Olivo",null,null,null,null,null,8,"C","M Olivo"]
["R Betancourt",null,85,3,9,"P","U Jimenez",null,null,null,null,null,9,"P","J Chacin"]
["J Beimel",null,49,2]
["J Francis",null,49,2,null,null,null,null,null,null,null,null,null,"P","J Chacin"]
["E Rogers",null,21,3]
["CATCHERS",null,"Contact","Power","Speed","Def/Arm","Bunt",null,null,null,null,null,null,null,null,"IP","H","R","K","ERA",null,null,"BB"]
["M Olivo",null,54,60,45,70,60,null,null,null,null,null,null,"Starter","J Chacin",null,null,null,null,{"$f":"IFERROR(IF(O14=\"\",\"\",R14*9/P14),\"INF\")","v":"INF"}]
["C Iannetta",null,14,47,60,55,50,null,null,null,null,null,null,null,null,null,null,null,null,""]
["INFIELDERS",null,null,null,null,null,null,null,null,null,null,null,null,null,null,null,null,null,null,""]
["T Helton",null,47,43,50,20,45,null,null,null,null,null,null,null,null,null,null,null,null,""]
["C Barmes",null,35,40,60,20,60,null,null,null,null,null,null,null,null,null,null,null,null,""]
["T Tulowitzki",null,80,84,75,20,60,null,null,null,null,null,null,null,null,null,null,null,null,""]
["I Stewart",null,47,59,60,20,65,null,null,null,null,null,null,null,null,null,null,null,null,""]
["M Mora",null,63,54,55,20,45,null,null,null,null,null,null,null,null,null,null,null,null,{"$f":"IF(O21=\"\",\"\",R21*9/P21)","v":""}]
["J Herrera",null,63,38,75,20,65,null,null,null,null,null,null,null,null,null,null,null,null,""]
["J Giambi",null,40,50,40,20,30]
["OUTFIELDERS"]
["S Smith",null,42,64,60,65,35]
["D Fowler",null,49,52,80,75,60]
["B Hawpe",null,47,56,70,30,50]
["C Gonzalez",null,92,90,80,80,60]
["R Spilborghs",null,60,57,65,65,55]
[]
[]
[]
[]
[]
[]
[]
[]
[]
[]
[]
[]
[]
[null,null,"AB","H","RBI","Run","HR","3B","2B","SB"]
["PITCHERS",null,0,0,0,0,0,0,0,0]
["U Jimenez",null,0,0,0,0,0,0,0,0]
["J Hammel",null,0,0,0,0,0,0,0,0]
["J Chacin",1,0,0,0,0,0,0,0,0]
["J De La Rosa",null,0,0,0,0,0,0,0,0]
["H Street",null,0,0,0,0,0,0,0,0]
["M Belisle",null,0,0,0,0,0,0,0,0]
["M Corpas",null,0,0,0,0,0,0,0,0]
["R Betancourt",null,0,0,0,0,0,0,0,0]
["J Beimel",null,0,0,0,0,0,0,0,0]
["J Francis",null,0,0,0,0,0,0,0,0]
["E Rogers",null,0,0,0,0,0,0,0,0]
["CATCHERS",null,0,0,0,0,0,0,0,0]
["M Olivo",1,0,0,0,0,0,0,0,0]
["C Iannetta",null,0,0,0,0,0,0,0,0]
["INFIELDERS",null,0,0,0,0,0,0,0,0]
["T Helton",1,0,0,0,0,0,0,0,0]
["C Barmes",null,0,0,0,0,0,0,0,0]
["T Tulowitzki",1,0,0,0,0,0,0,0,0]
["I Stewart",null,0,0,0,0,0,0,0,0]
["M Mora",1,0,0,0,0,0,0,0,0]
["J Herrera",1,0,0,0,0,0,0,0,0]
["J Giambi",null,0,0,0,0,0,0,0,0]
["OUTFIELDERS",null,0,0,0,0,0,0,0,0]
["S Smith",null,0,0,0,0,0,0,0,0]
["D Fowler",1,0,0,0,0,0,0,0,0]
["B Hawpe",null,0,0,0,0,0,0,0,0]
["C Gonzalez",1,0,0,0,0,0,0,0,0]
["R Spilborghs",1,0,0,0,0,0,0,0,0]
[null,99,0,0,0,0,0,0,0,0]

{"sheet":"Royals","index":28,"n_rows":73,"n_cols":23,"rows_kept":73,"cut":false,"hidden":false,"merged":[]}
["PITCHERS",null,"Effectiveness","Stamina",1,"CF","D DeJesus",null,1,"Z Greinke",null,null,1,"CF","D DeJesus"]
["Z Greinke",null,60,1,2,"C","J Kendall",null,2,"K Davies",null,null,2,"C","J Kendall"]
["K Davies",null,31,1,3,"1B","B Butler",null,3,"B Chen",null,null,3,"1B","B Butler"]
["B Chen",null,48,1,4,"3B","W Betemit",null,4,"B Bannister",null,null,4,"3B","W Betemit"]
["B Bannister",null,25,1,5,"DH","K Ka'aihue",null,null,null,null,null,5,"DH","K Ka'aihue"]
["J Soria",null,77,3,6,"LF","A Gordon",null,null,null,null,null,6,"LF","A Gordon"]
["R Tejeda",null,52,3,7,"2B","M Aviles",null,null,null,null,null,7,"2B","M Aviles"]
["D Hughes",null,39,3,8,"RF","M Maier",null,null,null,null,null,8,"RF","M Maier"]
["B Wood",null,34,3,9,"SS","Y Betancourt",null,null,null,null,null,9,"SS","Y Betancourt"]
["K Farnsworth",null,67,3]
["L Hochevar",null,43,2,null,null,null,null,null,null,null,null,null,"P","Z Greinke"]
["S O'Sullivan",null,31,2]
["CATCHERS",null,"Contact","Power","Speed","Def/Arm","Bunt",null,null,null,null,null,null,null,null,"IP","H","R","K","ERA",null,null,"BB"]
["J Kendall",null,47,29,55,55,70,null,null,null,null,null,null,"Starter","Z Greinke",null,null,null,null,{"$f":"IFERROR(IF(O14=\"\",\"\",R14*9/P14),\"INF\")","v":"INF"}]
["B Pena",null,46,37,40,55,60,null,null,null,null,null,null,null,null,null,null,null,null,""]
["INFIELDERS",null,null,null,null,null,null,null,null,null,null,null,null,null,null,null,null,null,null,""]
["B Butler",null,82,64,50,20,40,null,null,null,null,null,null,null,null,null,null,null,null,""]
["M Aviles",null,74,53,65,20,60,null,null,null,null,null,null,null,null,null,null,null,null,""]
["Y Betancourt",null,49,51,65,20,45,null,null,null,null,null,null,null,null,null,null,null,null,""]
["A Callaspo",null,58,52,65,20,65,null,null,null,null,null,null,null,null,null,null,null,null,""]
["W Betemit",null,70,72,65,40,50,null,null,null,null,null,null,null,null,null,null,null,null,{"$f":"IF(O21=\"\",\"\",R21*9/P21)","v":""}]
["C Getz",null,37,25,60,20,60,null,null,null,null,null,null,null,null,null,null,null,null,""]
["K Ka'aihue",null,25,49,45,20,40]
["OUTFIELDERS"]
["S Podsednik",null,78,50,80,40,75]
["M Maier",null,51,45,60,65,55]
["D DeJesus",null,82,59,75,80,75]
["J Guillen",null,47,56,60,85,35]
["A Gordon",null,24,41,60,60,60]
[]
[]
[]
[]
[]
[]
[]
[]
[]
[]
[]
[]
[]
[null,null,"AB","H","RBI","Run","HR","3B","2B","SB"]
["PITCHERS",null,0,0,0,0,0,0,0,0]
["Z Greinke",1,0,0,0,0,0,0,0,0]
["K Davies",null,0,0,0,0,0,0,0,0]
["B Chen",null,0,0,0,0,0,0,0,0]
["B Bannister",null,0,0,0,0,0,0,0,0]
["J Soria",null,0,0,0,0,0,0,0,0]
["R Tejeda",null,0,0,0,0,0,0,0,0]
["D Hughes",null,0,0,0,0,0,0,0,0]
["B Wood",null,0,0,0,0,0,0,0,0]
["K Farnsworth",null,0,0,0,0,0,0,0,0]
["L Hochevar",null,0,0,0,0,0,0,0,0]
["S O'Sullivan",null,0,0,0,0,0,0,0,0]
["CATCHERS",null,0,0,0,0,0,0,0,0]
["J Kendall",1,0,0,0,0,0,0,0,0]
["B Pena",null,0,0,0,0,0,0,0,0]
["INFIELDERS",null,0,0,0,0,0,0,0,0]
["B Butler",1,0,0,0,0,0,0,0,0]
["M Aviles",1,0,0,0,0,0,0,0,0]
["Y Betancourt",1,0,0,0,0,0,0,0,0]
["A Callaspo",null,0,0,0,0,0,0,0,0]
["W Betemit",1,0,0,0,0,0,0,0,0]
["C Getz",null,0,0,0,0,0,0,0,0]
["K Ka'aihue",1,0,0,0,0,0,0,0,0]
["OUTFIELDERS",null,0,0,0,0,0,0,0,0]
["S Podsednik",null,0,0,0,0,0,0,0,0]
["M Maier",1,0,0,0,0,0,0,0,0]
["D DeJesus",1,0,0,0,0,0,0,0,0]
["J Guillen",null,0,0,0,0,0,0,0,0]
["A Gordon",1,0,0,0,0,0,0,0,0]
[null,99,0,0,0,0,0,0,0,0]

{"sheet":"Tigers","index":29,"n_rows":73,"n_cols":23,"rows_kept":73,"cut":false,"hidden":false,"merged":[]}
["PITCHERS",null,"Effectiveness","Stamina",1,"CF","A Jackson",null,1,"J Verlander",null,null,1,"CF","A Jackson"]
["J Verlander",null,67,1,2,"2B","W Rhymes",null,2,"M Scherzer",null,null,2,"2B","W Rhymes"]
["M Scherzer",null,59,1,3,"1B","M Cabrera",null,3,"J Bonderman",null,null,3,"1B","M Cabrera"]
["J Bonderman",null,41,1,4,"LF","B Boesch",null,4,"R Porcello",null,null,4,"LF","B Boesch"]
["R Porcello",null,46,1,5,"3B","J Peralta",null,null,null,null,null,5,"3B","J Peralta"]
["J Valverde",null,67,3,6,"RF","R Raburn",null,null,null,null,null,6,"RF","R Raburn"]
["B Thomas",null,34,2,7,"DH","C Guillen",null,null,null,null,null,7,"DH","C Guillen"]
["E Bonine",null,31,2,8,"C","A Avila",null,null,null,null,null,8,"C","A Avila"]
["P Coke",null,42,3,9,"SS","R Santiago",null,null,null,null,null,9,"SS","R Santiago"]
["R Perry",null,60,3]
["A Galarraga",null,51,2,null,null,null,null,null,null,null,null,null,"P","J Bonderman"]
["J Zumaya",null,71,3]
["CATCHERS",null,"Contact","Power","Speed","Def/Arm","Bunt",null,null,null,null,null,null,null,null,"IP","H","R","K","ERA",null,null,"BB"]
["A Avila",null,31,38,55,65,60,null,null,null,null,null,null,"Starter","J Bonderman",null,null,null,null,{"$f":"IFERROR(IF(O14=\"\",\"\",R14*9/P14),\"INF\")","v":"INF"}]
["G Laird",null,20,31,40,60,65,null,null,null,null,null,null,null,null,null,null,null,null,""]
["INFIELDERS",null,null,null,null,null,null,null,null,null,null,null,null,null,null,null,null,null,null,""]
["M Cabrera",null,88,94,55,55,35,null,null,null,null,null,null,null,null,null,null,null,null,""]
["W Rhymes",null,74,53,70,20,70,null,null,null,null,null,null,null,null,null,null,null,null,""]
["R Santiago",null,51,35,70,20,75,null,null,null,null,null,null,null,null,null,null,null,null,""]
["B Inge",null,42,49,65,40,60,null,null,null,null,null,null,null,null,null,null,null,null,""]
["C Guillen",null,57,54,35,20,70,null,null,null,null,null,null,null,null,null,null,null,null,{"$f":"IF(O21=\"\",\"\",R21*9/P21)","v":""}]
["J Peralta",null,46,49,40,20,40,null,null,null,null,null,null,null,null,null,null,null,null,""]
["S Sizemore",null,29,37,70,20,65]
["OUTFIELDERS"]
["R Raburn",null,61,65,70,70,65]
["M Ordonez",null,74,65,60,60,50]
["J Damon",null,56,50,65,30,65]
["B Boesch",null,47,53,65,70,60]
["A Jackson",null,68,50,75,75,55]
[]
[]
[]
[]
[]
[]
[]
[]
[]
[]
[]
[]
[]
[null,null,"AB","H","RBI","Run","HR","3B","2B","SB"]
["PITCHERS",null,0,0,0,0,0,0,0,0]
["J Verlander",null,0,0,0,0,0,0,0,0]
["M Scherzer",null,0,0,0,0,0,0,0,0]
["J Bonderman",1,0,0,0,0,0,0,0,0]
["R Porcello",null,0,0,0,0,0,0,0,0]
["J Valverde",null,0,0,0,0,0,0,0,0]
["B Thomas",null,0,0,0,0,0,0,0,0]
["E Bonine",null,0,0,0,0,0,0,0,0]
["P Coke",null,0,0,0,0,0,0,0,0]
["R Perry",null,0,0,0,0,0,0,0,0]
["A Galarraga",null,0,0,0,0,0,0,0,0]
["J Zumaya",null,0,0,0,0,0,0,0,0]
["CATCHERS",null,0,0,0,0,0,0,0,0]
["A Avila",1,0,0,0,0,0,0,0,0]
["G Laird",null,0,0,0,0,0,0,0,0]
["INFIELDERS",null,0,0,0,0,0,0,0,0]
["M Cabrera",1,0,0,0,0,0,0,0,0]
["W Rhymes",1,0,0,0,0,0,0,0,0]
["R Santiago",1,0,0,0,0,0,0,0,0]
["B Inge",null,0,0,0,0,0,0,0,0]
["C Guillen",1,0,0,0,0,0,0,0,0]
["J Peralta",1,0,0,0,0,0,0,0,0]
["S Sizemore",null,0,0,0,0,0,0,0,0]
["OUTFIELDERS",null,0,0,0,0,0,0,0,0]
["R Raburn",1,0,0,0,0,0,0,0,0]
["M Ordonez",null,0,0,0,0,0,0,0,0]
["J Damon",null,0,0,0,0,0,0,0,0]
["B Boesch",1,0,0,0,0,0,0,0,0]
["A Jackson",1,0,0,0,0,0,0,0,0]
[null,99,0,0,0,0,0,0,0,0]

{"sheet":"Twins","index":30,"n_rows":73,"n_cols":23,"rows_kept":73,"cut":false,"hidden":false,"merged":[]}
["PITCHERS",null,"Effectiveness","Stamina",1,"CF","D Span",null,1,"C Pavano",null,null,1,"CF","D Span"]
["C Pavano",null,64,1,2,"2B","O Hudson",null,2,"F Liriano",null,null,2,"2B","O Hudson"]
["F Liriano",null,58,1,3,"C","J Mauer",null,3,"S Baker",null,null,3,"C","J Mauer"]
["S Baker",null,51,1,4,"1B","J Morneau",null,4,"N Blackburn",null,null,4,"1B","J Morneau"]
["N Blackburn",null,41,1,5,"LF","D Young",null,null,null,null,null,5,"LF","D Young"]
["M Capps",null,65,3,6,"DH","J Thome",null,null,null,null,null,6,"DH","J Thome"]
["J Rauch",null,54,3,7,"3B","D Valencia",null,null,null,null,null,7,"3B","D Valencia"]
["B Duensing",null,63,2,8,"SS","J Hardy",null,null,null,null,null,8,"SS","J Hardy"]
["M Guerrier",null,73,3,9,"RF","M Cuddyer",null,null,null,null,null,9,"RF","M Cuddyer"]
["J Crain",null,66,3]
["J Mijares",null,53,3,null,null,null,null,null,null,null,null,null,"P","S Baker"]
["R Mahay",null,63,3]
["CATCHERS",null,"Contact","Power","Speed","Def/Arm","Bunt",null,null,null,null,null,null,null,null,"IP","H","R","K","ERA",null,null,"BB"]
["J Mauer",null,87,64,60,75,60,null,null,null,null,null,null,"Starter","S Baker",null,null,null,null,{"$f":"IFERROR(IF(O14=\"\",\"\",R14*9/P14),\"INF\")","v":"INF"}]
["D Butera",null,14,29,50,60,55,null,null,null,null,null,null,null,null,null,null,null,null,""]
["INFIELDERS",null,null,null,null,null,null,null,null,null,null,null,null,null,null,null,null,null,null,""]
["O Hudson",null,54,44,75,20,75,null,null,null,null,null,null,null,null,null,null,null,null,""]
["J Hardy",null,54,49,60,20,60,null,null,null,null,null,null,null,null,null,null,null,null,""]
["D Valencia",null,78,60,60,20,55,null,null,null,null,null,null,null,null,null,null,null,null,""]
["J Thome",null,62,95,30,20,20,null,null,null,null,null,null,null,null,null,null,null,null,""]
["J Morneau",null,97,94,50,20,25,null,null,null,null,null,null,null,null,null,null,null,null,{"$f":"IF(O21=\"\",\"\",R21*9/P21)","v":""}]
["N Punto",null,37,30,70,20,80,null,null,null,null,null,null,null,null,null,null,null,null,""]
["A Casilla",null,58,49,70,20,75]
["OUTFIELDERS"]
["M Cuddyer",null,56,53,60,60,70]
["D Young",null,71,69,65,70,60]
["D Span",null,52,40,75,70,75]
["J Kubel",null,43,55,50,65,40]
["J Repko",null,31,39,70,50,60]
[]
[]
[]
[]
[]
[]
[]
[]
[]
[]
[]
[]
[]
[null,null,"AB","H","RBI","Run","HR"]
["PITCHERS",null,0,0,0,0,0,0,0,0]
["C Pavano",null,0,0,0,0,0,0,0,0]
["F Liriano",null,0,0,0,0,0,0,0,0]
["S Baker",1,0,0,0,0,0,0,0,0]
["N Blackburn",null,0,0,0,0,0,0,0,0]
["M Capps",null,0,0,0,0,0,0,0,0]
["J Rauch",null,0,0,0,0,0,0,0,0]
["B Duensing",null,0,0,0,0,0,0,0,0]
["M Guerrier",null,0,0,0,0,0,0,0,0]
["J Crain",null,0,0,0,0,0,0,0,0]
["J Mijares",null,0,0,0,0,0,0,0,0]
["R Mahay",null,0,0,0,0,0,0,0,0]
["CATCHERS",null,0,0,0,0,0,0,0,0]
["J Mauer",1,0,0,0,0,0,0,0,0]
["D Butera",null,0,0,0,0,0,0,0,0]
["INFIELDERS",null,0,0,0,0,0,0,0,0]
["M Cuddyer",1,0,0,0,0,0,0,0,0]
["O Hudson",1,0,0,0,0,0,0,0,0]
["J Hardy",1,0,0,0,0,0,0,0,0]
["D Valencia",1,0,0,0,0,0,0,0,0]
["J Thome",1,0,0,0,0,0,0,0,0]
["J Morneau",1,0,0,0,0,0,0,0,0]
["N Punto",null,0,0,0,0,0,0,0,0]
["A Casilla",null,0,0,0,0,0,0,0,0]
["OUTFIELDERS",null,0,0,0,0,0,0,0,0]
["D Young",1,0,0,0,0,0,0,0,0]
["D Span",1,0,0,0,0,0,0,0,0]
["J Kubel",null,0,0,0,0,0,0,0,0]
["J Repko",null,0,0,0,0,0,0,0,0]
[null,99,0,0,0,0,0,0,0,0]

{"sheet":"WhiteSox","index":31,"n_rows":73,"n_cols":23,"rows_kept":73,"cut":false,"hidden":false,"merged":[]}
["PITCHERS",null,"Effectiveness","Stamina",1,"LF","J Pierre",null,1,"J Danks",null,null,1,"LF","J Pierre"]
["J Danks",null,62,1,2,"SS","A Ramirez",null,2,"M Buehrle",null,null,2,"SS","A Ramirez"]
["M Buehrle",null,45,1,3,"CF","A Rios",null,3,"G Floyd",null,null,3,"CF","A Rios"]
["G Floyd",null,48,1,4,"1B","P Konerko",null,4,"F Garcia",null,null,4,"1B","P Konerko"]
["F Garcia",null,48,1,5,"RF","A Jones",null,null,null,null,null,5,"RF","A Jones"]
["B Jenks",null,48,3,6,"C","A Pierzynski",null,null,null,null,null,6,"C","A Pierzynski"]
["T Pena",null,35,2,7,"3B","D Viciedo",null,null,null,null,null,7,"3B","D Viciedo"]
["M Thornton",null,81,3,8,"2B","G Beckham",null,null,null,null,null,8,"2B","G Beckham"]
["J Putz",null,78,3,9,"DH","C Quentin",null,null,null,null,null,9,"DH","C Quentin"]
["S Santos",null,34,3]
["S Linebrink",null,52,3,null,null,null,null,null,null,null,null,null,"P","M Buehrle"]
["J Peavy",null,61,2]
["CATCHERS",null,"Contact","Power","Speed","Def/Arm","Bunt",null,null,null,null,null,null,null,null,"IP","H","R","K","ERA",null,null,"BB"]
["A Pierzynski",null,55,48,55,40,60,null,null,null,null,null,null,"Starter","M Buehrle",null,1,null,null,{"$f":"IFERROR(IF(O14=\"\",\"\",R14*9/P14),\"INF\")","v":"INF"}]
["R Castro",null,60,71,30,60,60,null,null,null,null,null,null,null,null,null,null,null,null,""]
["INFIELDERS",null,null,null,null,null,null,null,null,null,null,null,null,null,null,null,null,null,null,""]
["P Konerko",null,79,87,35,20,30,null,null,null,null,null,null,null,null,null,null,null,null,""]
["G Beckham",null,45,46,65,20,65,null,null,null,null,null,null,null,null,null,null,null,null,""]
["A Ramirez",null,62,56,65,20,55,null,null,null,null,null,null,null,null,null,null,null,null,""]
["O Vizquel",null,58,36,50,20,70,null,null,null,null,null,null,null,null,null,null,null,null,""]
["M Teahen",null,48,46,60,20,60,null,null,null,null,null,null,null,null,null,null,null,null,{"$f":"IF(O21=\"\",\"\",R21*9/P21)","v":""}]
["D Viciedo",null,76,74,55,20,60,null,null,null,null,null,null,null,null,null,null,null,null,""]
["M Kotsay",null,38,45,60,70,45]
["OUTFIELDERS"]
["J Pierre",null,58,33,90,40,70]
["A Rios",null,63,61,75,80,55]
["C Quentin",null,40,66,40,50,35]
["A Jones",null,33,67,60,65,40]
["M Ramirez",null,50,34,40,40,25]
[]
[]
[]
[]
[]
[]
[]
[]
[]
[]
[]
[]
[]
[null,null,"AB","H","RBI","Run","HR","3B","2B","SB"]
["PITCHERS",null,0,0,0,0,0,0,0,0]
["J Danks",null,0,0,0,0,0,0,0,0]
["M Buehrle",1,0,0,0,0,0,0,0,0]
["G Floyd",null,0,0,0,0,0,0,0,0]
["F Garcia",null,0,0,0,0,0,0,0,0]
["B Jenks",null,0,0,0,0,0,0,0,0]
["T Pena",null,0,0,0,0,0,0,0,0]
["M Thornton",null,0,0,0,0,0,0,0,0]
["J Putz",null,0,0,0,0,0,0,0,0]
["S Santos",null,0,0,0,0,0,0,0,0]
["S Linebrink",null,0,0,0,0,0,0,0,0]
["J Peavy",null,0,0,0,0,0,0,0,0]
["CATCHERS",null,0,0,0,0,0,0,0,0]
["A Pierzynski",1,0,0,0,0,0,0,0,0]
["R Castro",null,0,0,0,0,0,0,0,0]
["INFIELDERS",null,0,0,0,0,0,0,0,0]
["P Konerko",1,0,0,0,0,0,0,0,0]
["G Beckham",1,0,0,0,0,0,0,0,0]
["A Ramirez",1,0,0,0,0,0,0,0,0]
["O Vizquel",null,0,0,0,0,0,0,0,0]
["M Teahen",null,0,0,0,0,0,0,0,0]
["D Viciedo",1,0,0,0,0,0,0,0,0]
["M Kotsay",null,0,0,0,0,0,0,0,0]
["OUTFIELDERS",null,0,0,0,0,0,0,0,0]
["J Pierre",1,0,0,0,0,0,0,0,0]
["A Rios",1,0,0,0,0,0,0,0,0]
["C Quentin",1,0,0,0,0,0,0,0,0]
["A Jones",1,0,0,0,0,0,0,0,0]
["M Ramirez",null,0,0,0,0,0,0,0,0]
[null,99,0,0,0,0,0,0,0,0]

{"sheet":"Yankees","index":32,"n_rows":73,"n_cols":23,"rows_kept":73,"cut":false,"hidden":false,"merged":[]}
["PITCHERS",null,"Effectiveness","Stamina",1,"SS","D Jeter",null,1,"C Sabathia",null,null,1,"SS","D Jeter"]
["C Sabathia",null,64,1,2,"RF","N Swisher",null,2,"A Burnett",null,null,2,"RF","N Swisher"]
["A Burnett",null,35,1,3,"1B","M Teixeira",null,3,"P Hughes",null,null,3,"1B","M Teixeira"]
["P Hughes",null,59,1,4,"3B","A Rodriguez",null,4,"A Pettitte",null,null,4,"3B","A Rodriguez"]
["A Pettitte",null,57,1,5,"2B","R Cano",null,null,null,null,null,5,"2B","R Cano"]
["M Rivera",null,97,3,6,"DH","M Thames",null,null,null,null,null,6,"DH","M Thames"]
["J Chamberlin",null,55,3,7,"C","J Posada",null,null,null,null,null,7,"C","J Posada"]
["D Robertson",null,36,3,8,"CF","C Granderson",null,null,null,null,null,8,"CF","C Granderson"]
["C Gaudin",null,48,2,9,"LF","B Gardner",null,null,null,null,null,9,"LF","B Gardner"]
["B Logan",null,50,3]
["J Vazquez",null,46,2,null,null,null,null,null,null,null,null,null,"P","A Burnett"]
["D Moseley",null,43,2]
["CATCHERS",null,"Contact","Power","Speed","Def/Arm","Bunt",null,null,null,null,null,null,null,null,"IP","H","R","K","ERA",null,null,"BB"]
["J Posada",null,43,61,30,65,65,null,null,null,null,null,null,"Starter","A Burnett",null,null,null,null,{"$f":"IFERROR(IF(O14=\"\",\"\",R14*9/P14),\"INF\")","v":"INF"}]
["F Cervelli",null,56,37,45,60,60,null,null,null,null,null,null,null,null,null,null,null,null,""]
["INFIELDERS",null,null,null,null,null,null,null,null,null,null,null,null,null,null,null,null,null,null,""]
["M Teixeira",null,47,66,50,20,35,null,null,null,null,null,null,null,null,null,null,null,null,""]
["R Cano",null,83,77,60,20,55,null,null,null,null,null,null,null,null,null,null,null,null,""]
["D Jeter",null,55,44,70,20,70,null,null,null,null,null,null,null,null,null,null,null,null,""]
["A Rodriguez",null,55,71,60,20,40,null,null,null,null,null,null,null,null,null,null,null,null,""]
["R Pena",null,31,19,70,20,60,null,null,null,null,null,null,null,null,null,null,null,null,{"$f":"IF(O21=\"\",\"\",R21*9/P21)","v":""}]
["L Berkman",null,47,40,35,50,35,null,null,null,null,null,null,null,null,null,null,null,null,""]
["N Johnson",null,-3,31,30,20,30]
["OUTFIELDERS"]
["B Gardner",null,59,46,75,65,70]
["C Granderson",null,42,64,75,70,60]
["N Swisher",null,65,72,60,60,30]
["M Thames",null,65,68,55,55,50]
["A Kearns",null,35,35,50,60,45]
[]
[]
[]
[]
[]
[]
[]
[]
[]
[]
[]
[]
[]
[null,null,"AB","H","RBI","Run","HR","3B","2B","SB"]
["PITCHERS",null,0,0,0,0,0,0,0,0]
["C Sabathia",null,0,0,0,0,0,0,0,0]
["A Burnett",1,0,0,0,0,0,0,0,0]
["P Hughes",null,0,0,0,0,0,0,0,0]
["A Pettitte",null,0,0,0,0,0,0,0,0]
["M Rivera",null,0,0,0,0,0,0,0,0]
["J Chamberlin",null,0,0,0,0,0,0,0,0]
["D Robertson",null,0,0,0,0,0,0,0,0]
["C Gaudin",null,0,0,0,0,0,0,0,0]
["B Logan",null,0,0,0,0,0,0,0,0]
["J Vazquez",null,0,0,0,0,0,0,0,0]
["D Moseley",null,0,0,0,0,0,0,0,0]
["CATCHERS",null,0,0,0,0,0,0,0,0]
["J Posada",1,0,0,0,0,0,0,0,0]
["F Cervelli",null,0,0,0,0,0,0,0,0]
["INFIELDERS",null,0,0,0,0,0,0,0,0]
["M Teixeira",1,0,0,0,0,0,0,0,0]
["R Cano",1,0,0,0,0,0,0,0,0]
["D Jeter",1,1,1,0,0,0,0,0,0]
["A Rodriguez",1,0,0,0,0,0,0,0,0]
["R Pena",null,0,0,0,0,0,0,0,0]
["L Berkman",null,0,0,0,0,0,0,0,0]
["N Johnson",null,0,0,0,0,0,0,0,0]
["OUTFIELDERS",null,0,0,0,0,0,0,0,0]
["B Gardner",1,0,0,0,0,0,0,0,0]
["C Granderson",1,0,0,0,0,0,0,0,0]
["N Swisher",1,0,0,0,0,0,0,0,0]
["M Thames",1,0,0,0,0,0,0,0,0]
["A Kearns",null,0,0,0,0,0,0,0,0]
[null,99,0,0,0,0,0,0,0,0]

{"sheet":"Production","index":33,"n_rows":38,"n_cols":6,"rows_kept":38,"cut":false,"hidden":true,"merged":[]}
[]
[]
[]
[]
[]
[]
[]
[]
[]
[]
[]
[]
[]
[]
[]
[]
[]
[]
[]
[]
["Date","Units","Shipped to","Units Sold","Profit","Valuable  transaction?"]
["2007-01-14",302,4,278,{"$f":"(B22-D22)*31.58","v":757.92},{"$f":"IF(E22>5000,\"Y\",\"N\")","v":"N"}]
["2007-03-18",286,10,91,{"$f":"(B23-D23)*31.58","v":6158.0999999999995},{"$f":"IF(E23>5000,\"Y\",\"N\")","v":"Y"}]
["2007-04-25",646,3,480,5242.28,"Y"]
["2007-07-05",580,7,331,7863.4199999999992,"Y"]
["2007-07-13",627,10,455,5431.7599999999993,"Y"]
["2007-08-14",520,2,269,7926.58,"Y"]
["2007-08-20",541,7,346,6158.0999999999995,"Y"]
["2007-10-08",515,8,226,9126.619999999999,"Y"]
["2008-03-04",199,7,-89,9095.0399999999991,"Y"]
["2008-04-05",224,11,16,6568.6399999999994,"Y"]
["2008-04-28",378,10,327,1610.58,"N"]
["2008-06-06",423,11,305,3726.4399999999996,"N"]
["2008-08-24",308,5,256,1642.1599999999999,"N"]
["2008-08-29",563,3,386,5589.66,"Y"]
["2008-09-26",562,8,336,7137.08,"Y"]
["2008-09-27",660,9,550,3473.7999999999997,"N"]
["2008-10-24",400,1,130,8526.6,"Y"]